Workbook

Sheet Model Description
A2: Tab | B2: Description
A3: Summary | B3: This tab allows the user to input the year, baseline region, and other assumptions. Includes outputs of average bills for current and inputted year.
B4: Bundled represents customers that we procure gas for. System refers to all customer classes combined. Total System for a customer class includes Bundled + Unbundled.
A5: Authorized Rev Req | B5: This tab shows the authorized revenue requirement for each line item that is in existing rates.
A6: Incremental Rev Req | B6: This tab contains several sections: (i) Approved Application(s), (ii) Pending Application(s) Not Yet Approved, and (iii) Applications Projected to be Filed.
B7: The Approved Application(s) section shows the authorized revenue requirement for each line item forecasted out by year.
B8: The Pending Application(s) Not Yet Approved section includes pending advice letters or applications for new proceedings and any pending increases or decreases to current line items.
A9: SAR and RAR | B9: This tab shows the total revenue and the allocated revenue used to calculate Residential rates for the inputted year.
B10: The Residential percent allocations for the Revenue Recovery Mechanisms are estimated using the detailed Cost Allocation and Rate Design Model.
A11: Res Bill Impact | B11: This tab shows the calculation for Residential rates and average monthly bills.
A12: Hypothetical Tabs | B12: These tabs allow the user to estimate rate impacts from hypothetical revenue requirement changes relative to current rates.
A14: *IMPORTANT NOTE: | B14: CRT model uses current year CRT-calculated rates for comparison with future rates. For Hypothetical tabs, CRT uses current rates.

Sheet Summary
A1: Inputs: | F1: Assumptions:
B2: =CONCATENATE("Rate Impact for Year (",SetUp!H5,"-",SetUp!H9,")") -> Rate Impact for Year (2026-2030) | C2: 2026 | F2: Current Effective Rates | H2: =CurrentEffectiveRateDate -> 2026-01-01
B3: Baseline Region - (Residential bill) | C3: 1 | F3: Sales Forecast | H3: 2024
F4: Residential bill calculated using | H4: Schedule GR, Basic, Bundled, Single Family
F5: Non-CARE bill impact calculated with average summer usage of | J5: =IF($C$3="ALL",SUMPRODUCT('Res Bill Impact'!Q22:Q25,'Res Bill Impact'!U22:U25),VLOOKUP($C$3,'Res Bill Impact'!$P$22:$T$25,2,FALSE)) -> 21.82671825 | K5: therms per month
A6: Pending Proceedings | C6: Include in Impact (Y) | D6: Applicable Year(s) | F6: Non-CARE bill impact calculated with average winter usage of | J6: =IF($C$3="ALL",SUMPRODUCT('Res Bill Impact'!R22:R25,'Res Bill Impact'!U22:U25),VLOOKUP(C$3,'Res Bill Impact'!$P$22:$T$25,3,FALSE)) -> 41.84251746 | K6: therms per month
A7: ='Incremental Rev Req'!A128 -> DIMP Interim Recovery | C7: Y | D7: 2026 | F7: CARE bill impact calculated with average summer usage of | J7: =IF($C$3="ALL",SUMPRODUCT('Res Bill Impact'!S22:S25,'Res Bill Impact'!V22:V25),VLOOKUP($C$3,'Res Bill Impact'!$P$22:$T$25,4,FALSE)) -> 18.4179232 | K7: therms per month
A8: ='Incremental Rev Req'!A129 -> GRC PFM | C8: Y | D8: 2026 | F8: CARE bill impact calculated with average winter usage of | J8: =IF($C$3="ALL",SUMPRODUCT('Res Bill Impact'!T22:T25,'Res Bill Impact'!V22:V25),VLOOKUP($C$3,'Res Bill Impact'!$P$22:$T$25,5,FALSE)) -> 32.87761186 | K8: therms per month
A9: ='Incremental Rev Req'!A130 -> TIMPBA Application | C9: Y | D9: 2026 | F9: Average monthly usage is for all customers (Non-CARE and CARE) based on seasonal usage in | K9: 2025
A10: ='Incremental Rev Req'!A131 -> 2024 GRC Track 3 (PSEP and WMPMA) | C10: Y | D10: 2026 | F10: Summer season | H10: 6 | I10: months
A11: ='Incremental Rev Req'!A132 -> Application for Incremental Funding For CIS Replacement | C11: Y | D11: 2026 and 2027 | F11: Winter Season | H11: =12-H10 -> 6 | I11: months
A12: ='Incremental Rev Req'!A133 -> Low Income Bridge Application | C12: Y | D12: 2027
A13: ='Incremental Rev Req'!A134 -> Line Extension Allowance Application | C13: Y | D13: 2028 and 2029
A14: ='Incremental Rev Req'!A135 -> Angeles Link Phase 1 | C14: Y | D14: 2027
A15: ='Incremental Rev Req'!A136 -> MASS Energy | C15: Y | D15: 2027
A16: ='Incremental Rev Req'!A137 -> Angeles Link Phase 2 | C16: Y | D16: 2026,2027 and 2028
A17: ='Incremental Rev Req'!A138 -> TIMPBA (SDGE) | C17: Y | D17: 2026
A18: ='Incremental Rev Req'!A139 -> Advanced Meter Infrastruture Replacment Program (AMIR) | C18: Y | D18: 2027-2030
A21: Outputs:
C22: (A) | D22: (B) | E22: (C) | F22: (D) | G22: (D)/(A) | H22: (D)/(B) | I22: (D)/(C) | M22: (A) | N22: (B) | O22: (C) | P22: (D) | Q22: (D)/(A) | R22: (D)/(B) | S22: (D)/(C)
A23: Bundled Average Rates - ¢/therm | K23: Total System (Bundled and Unbundled) Average Rates - ¢/th
A24: Customer Group | C24: =BOYEffectiveRateDate -> 2026-01-01 | D24: =CurrentEffectiveRateDate -> 2026-01-01 | E24: =$C$2&" Authorized" -> 2026 Authorized | F24: =$C$2&" w/Pending" -> 2026 w/Pending | G24: =CONCATENATE("% Change over ",TEXT(BOYEffectiveRateDate,"m/d/yyyy")) -> % Change over 1/1/2026 | H24: =CONCATENATE("% Change over ",TEXT(CurrentEffectiveRateDate,"m/d/yyyy")) -> % Change over 1/1/2026 | I24: % Change over Authorized | K24: Customer Group | M24: =$C$24 -> 2026-01-01 | N24: =$D$24 -> 2026-01-01 | O24: =$C$2&" Authorized" -> 2026 Authorized | P24: =$C$2&" w/Pending" -> 2026 w/Pending | Q24: =$G$24 -> % Change over 1/1/2026 | R24: =$H$24 -> % Change over 1/1/2026 | S24: % Change over Authorized
A25: Residential | C25: 190.9329178 | D25: ='SAR and RAR'!F28 -> 190.9329178 | E25: ='SAR and RAR'!G28 -> 190.9329178 | F25: ='SAR and RAR'!H28 -> 198.8646483 | G25: =$F25/C25-1 -> 0.04154197526 | H25: =$F25/D25-1 -> 0.04154197526 | I25: =$F25/E25-1 -> 0.04154197526 | K25: Total Residential (RAR) | M25: 166.8870516 | N25: ='SAR and RAR'!Q28 -> 190.4784253 | O25: ='SAR and RAR'!R28 -> 190.4784253 | P25: ='SAR and RAR'!S28 -> 198.4101559 | Q25: =$P25/M25-1 -> 0.1888888561 | R25: =$P25/N25-1 -> 0.0416410968 | S25: 0.0416410968
A26: System | C26: 102.4640046 | D26: ='SAR and RAR'!F29 -> 102.4640046 | E26: ='SAR and RAR'!G29 -> 102.4640046 | F26: ='SAR and RAR'!H29 -> 105.4421128 | G26: =$F26/C26-1 -> 0.02906492079 | H26: 0.02906492079 | I26: =$F26/E26-1 -> 0.02906492079 | K26: Total System (SAR) | M26: 66.70177055 | N26: ='SAR and RAR'!Q29 -> 83.95726504 | O26: ='SAR and RAR'!R29 -> 83.95726504 | P26: ='SAR and RAR'!S29 -> 86.93537322 | Q26: 0.3033443116 | R26: 0.035471715 | S26: 0.035471715
A29: Basic Bundled Residential Monthly Average Bills
C30: =BOYEffectiveRateDate -> 2026-01-01 | D30: =CurrentEffectiveRateDate -> 2026-01-01 | E30: =$C$2&" Authorized" -> 2026 Authorized | F30: =$C$2&" w/Pending" -> 2026 w/Pending | G30: =CONCATENATE("% Change over ",TEXT(BOYEffectiveRateDate,"m/d/yyyy")) -> % Change over 1/1/2026 | H30: =CONCATENATE("% Change over ",TEXT(CurrentEffectiveRateDate,"m/d/yyyy")) -> % Change over 1/1/2026 | I30: % Change over Authorized
A31: Non-CARE | C31: 62.80752381 | D31: =((D37*$H$10)+(D43*$H$11))/12 -> 62.80752381 | E31: 62.80752381 | F31: 65.41631805 | G31: =$F31/C31-1 -> 0.04153633312 | H31: 0.04153633312 | I31: 0.04153633312
A32: CARE | C32: 39.44627222 | D32: =((D38*$H$10)+(D44*$H$11))/12 -> 39.44627222 | E32: 39.44627222 | F32: 41.0449564 | G32: 0.0405281434 | H32: 0.0405281434 | I32: 0.0405281434
A33: Total | C33: 56.60490596 | D33: =((D39*$H$10)+(D45*$H$11))/12 -> 56.60490596 | E33: 56.60490596 | F33: 58.94550708 | G33: 0.04134979264 | H33: 0.04134979264 | I33: 0.04134979264 | L33: ='Res Bill Impact'!P18 -> Basic Bundled
L34: ='Res Bill Impact'!P19 -> 2025 Recorded Data - Average Monthly Usage - ALL-BASIC th
A35: Basic Bundled Residential Monthly Average Bills - Summer | L35: Climate Zone | M35: Summer | N35: Winter | O35: Summer | P35: Winter
C36: =BOYEffectiveRateDate -> 2026-01-01 | D36: =CurrentEffectiveRateDate -> 2026-01-01 | E36: =$C$2&" Authorized" -> 2026 Authorized | F36: =$C$2&" w/Pending" -> 2026 w/Pending | G36: =CONCATENATE("% Change over ",TEXT(BOYEffectiveRateDate,"m/d/yyyy")) -> % Change over 1/1/2026 | H36: =CONCATENATE("% Change over ",TEXT(CurrentEffectiveRateDate,"m/d/yyyy")) -> % Change over 1/1/2026 | I36: % Change over Authorized | M36: Non-CARE | O36: CARE
A37: Non-CARE | C37: =IF($C$3="All",'Res Bill Impact'!$C$47,(VLOOKUP($C$3,'Res Bill Impact'!$B$43:$J$46,2,FALSE))) -> 46.81048536 | D37: =IF($C$3="All",'Res Bill Impact'!$E$47,(VLOOKUP($C$3,'Res Bill Impact'!$B$43:$J$46,4,FALSE))) -> 46.81048536 | E37: =IF($C$3="All",'Res Bill Impact'!$G$47,(VLOOKUP($C$3,'Res Bill Impact'!$B$43:$J$46,6,FALSE))) -> 46.81048536 | F37: =IF($C$3="All",'Res Bill Impact'!$I$47,(VLOOKUP($C$3,'Res Bill Impact'!$B$43:$J$46,8,FALSE))) -> 48.6975393 | G37: =$F37/C37-1 -> 0.04031263358 | H37: =$F37/D37-1 -> 0.04031263358 | I37: =$F37/E37-1 -> 0.04031263358 | L37: =Zones -> 1 | M37: ='Res Bill Impact'!Q22 -> 21.82671825 | N37: ='Res Bill Impact'!R22 -> 41.84251746 | O37: ='Res Bill Impact'!S22 -> 18.4179232 | P37: ='Res Bill Impact'!T22 -> 32.87761186
A38: CARE | C38: =IF($C$3="All",'Res Bill Impact'!$C$57,(VLOOKUP($C$3,'Res Bill Impact'!$B$53:$J$56,2,FALSE))) -> 30.87504027 | D38: =IF($C$3="All",'Res Bill Impact'!$E$57,(VLOOKUP($C$3,'Res Bill Impact'!$B$53:$J$56,4,FALSE))) -> 30.87504027 | E38: =IF($C$3="All",'Res Bill Impact'!$G$57,(VLOOKUP($C$3,'Res Bill Impact'!$B$53:$J$56,6,FALSE))) -> 30.87504027 | F38: =IF($C$3="All",'Res Bill Impact'!$I$57,(VLOOKUP($C$3,'Res Bill Impact'!$B$53:$J$56,8,FALSE))) -> 32.08731072 | G38: =$F38/C38-1 -> 0.03926376887 | H38: =$F38/D38-1 -> 0.03926376887 | I38: 0.03926376887 | L38: 2 | M38: ='Res Bill Impact'!Q23 -> 18.16887727 | N38: ='Res Bill Impact'!R23 -> 45.73604348 | O38: ='Res Bill Impact'!S23 -> 19.08467632 | P38: ='Res Bill Impact'!T23 -> 46.37958422
A39: Total | C39: =C37*(1-'SAR and RAR'!$AB$15)+C38*'SAR and RAR'!$AB$15 -> 42.57948447 | D39: =D37*(1-'SAR and RAR'!$AB$15)+D38*'SAR and RAR'!$AB$15 -> 42.57948447 | E39: =E37*(1-'SAR and RAR'!$AB$15)+E38*'SAR and RAR'!$AB$15 -> 42.57948447 | F39: =F37*(1-'SAR and RAR'!$AB$15)+F38*'SAR and RAR'!$AB$15 -> 44.28737746 | G39: =$F39/C39-1 -> 0.0401107014 | H39: 0.0401107014 | I39: 0.0401107014 | L39: 3 | M39: ='Res Bill Impact'!Q24 -> 19.64221673 | N39: ='Res Bill Impact'!R24 -> 62.15196399 | O39: ='Res Bill Impact'!S24 -> 25.47898298 | P39: ='Res Bill Impact'!T24 -> 73.17270362
L40: 0 | M40: ='Res Bill Impact'!Q25 -> 0 | N40: ='Res Bill Impact'!R25 -> 0 | O40: ='Res Bill Impact'!S25 -> 0 | P40: ='Res Bill Impact'!T25 -> 0
A41: Basic Bundled Residential Monthly Average Bills - Winter
C42: =BOYEffectiveRateDate -> 2026-01-01 | D42: =CurrentEffectiveRateDate -> 2026-01-01 | E42: =$C$2&" Authorized" -> 2026 Authorized | F42: =$C$2&" w/Pending" -> 2026 w/Pending | G42: =CONCATENATE("% Change over ",TEXT(BOYEffectiveRateDate,"m/d/yyyy")) -> % Change over 1/1/2026 | H42: =CONCATENATE("% Change over ",TEXT(CurrentEffectiveRateDate,"m/d/yyyy")) -> % Change over 1/1/2026 | I42: % Change over Authorized
A43: Non-CARE | C43: =IF($C$3="All",'Res Bill Impact'!$D$47,(VLOOKUP($C$3,'Res Bill Impact'!$B$43:$J$46,3,FALSE))) -> 78.80456227 | D43: =IF($C$3="All",'Res Bill Impact'!$F$47,(VLOOKUP($C$3,'Res Bill Impact'!$B$43:$J$46,5,FALSE))) -> 78.80456227 | E43: =IF($C$3="All",'Res Bill Impact'!$H$47,(VLOOKUP($C$3,'Res Bill Impact'!$B$43:$J$46,7,FALSE))) -> 78.80456227 | F43: =IF($C$3="All",'Res Bill Impact'!$J$47,(VLOOKUP($C$3,'Res Bill Impact'!$B$43:$J$46,9,FALSE))) -> 82.13509679 | G43: =$F43/C43-1 -> 0.04226321958 | H43: =$F43/D43-1 -> 0.04226321958 | I43: 0.04226321958
A44: CARE | C44: =IF($C$3="All",'Res Bill Impact'!$D$57,(VLOOKUP($C$3,'Res Bill Impact'!$B$53:$J$56,3,FALSE))) -> 48.01750417 | D44: =IF($C$3="All",'Res Bill Impact'!$F$57,(VLOOKUP($C$3,'Res Bill Impact'!$B$53:$J$56,5,FALSE))) -> 48.01750417 | E44: =IF($C$3="All",'Res Bill Impact'!$H$57,(VLOOKUP($C$3,'Res Bill Impact'!$B$53:$J$56,7,FALSE))) -> 48.01750417 | F44: =IF($C$3="All",'Res Bill Impact'!$J$57,(VLOOKUP($C$3,'Res Bill Impact'!$B$53:$J$56,9,FALSE))) -> 50.00260207 | G44: 0.04134113056 | H44: 0.04134113056 | I44: 0.04134113056
A45: Total | C45: =C43*(1-'SAR and RAR'!$AB$15)+C44*'SAR and RAR'!$AB$15 -> 70.63032744 | D45: =D43*(1-'SAR and RAR'!$AB$15)+D44*'SAR and RAR'!$AB$15 -> 70.63032744 | E45: =E43*(1-'SAR and RAR'!$AB$15)+E44*'SAR and RAR'!$AB$15 -> 70.63032744 | F45: =F43*(1-'SAR and RAR'!$AB$15)+F44*'SAR and RAR'!$AB$15 -> 73.6036367 | G45: 0.04209677865 | H45: 0.04209677865 | I45: 0.04209677865
A48: Basic Bundled Essential Use Residential Monthly Average Bills
C49: =BOYEffectiveRateDate -> 2026-01-01 | D49: =CurrentEffectiveRateDate -> 2026-01-01 | E49: =$C$2&" Authorized" -> 2026 Authorized | F49: =$C$2&" w/Pending" -> 2026 w/Pending | G49: =CONCATENATE("% Change over ",TEXT(BOYEffectiveRateDate,"m/d/yyyy")) -> % Change over 1/1/2026 | H49: =CONCATENATE("% Change over ",TEXT(CurrentEffectiveRateDate,"m/d/yyyy")) -> % Change over 1/1/2026 | I49: % Change over Authorized
A50: Essential Use - Non-CARE | C50: =((C56*$H$10)+(C62*$H$11))/12 -> 48.00363541 | D50: =((D56*$H$10)+(D62*$H$11))/12 -> 48.00363541 | E50: 48.00363541 | F50: 49.94411041 | G50: =$F50/C50-1 -> 0.04042350088 | H50: 0.04042350088 | I50: 0.04042350088
A51: Essential Use - CARE | C51: =((C57*$H$10)+(C63*$H$11))/12 -> 37.69386619 | D51: 37.69386619 | E51: 37.69386619 | F51: 39.2133895 | G51: 0.04031221672 | H51: 0.04031221672 | I51: 0.04031221672
A52: Total | C52: =C50*(1-'SAR and RAR'!$AB$15)+C51*'SAR and RAR'!$AB$15 -> 45.26630097 | D52: =D50*(1-'SAR and RAR'!$AB$15)+D51*'SAR and RAR'!$AB$15 -> 45.26630097 | E52: =E50*(1-'SAR and RAR'!$AB$15)+E51*'SAR and RAR'!$AB$15 -> 45.26630097 | F52: =F50*(1-'SAR and RAR'!$AB$15)+F51*'SAR and RAR'!$AB$15 -> 47.09500959 | G52: =$F52/C52-1 -> 0.04039889676 | H52: =$F52/D52-1 -> 0.04039889676 | I52: 0.04039889676
L53: ='Res Bill Impact'!H19 -> Essential Usage
A54: Basic Bundled Essential Use Residential Monthly Average Bills - Summer | L54: Monthly Tier 1 Baseline Allowance -BASIC (th)
C55: =BOYEffectiveRateDate -> 2026-01-01 | D55: =CurrentEffectiveRateDate -> 2026-01-01 | E55: =$C$2&" Authorized" -> 2026 Authorized | F55: =$C$2&" w/Pending" -> 2026 w/Pending | G55: =CONCATENATE("% Change over ",TEXT(BOYEffectiveRateDate,"m/d/yyyy")) -> % Change over 1/1/2026 | H55: =CONCATENATE("% Change over ",TEXT(CurrentEffectiveRateDate,"m/d/yyyy")) -> % Change over 1/1/2026 | I55: % Change over Authorized | L55: Climate Zone | M55: Summer 2025 | N55: Winter 2025
A56: Essential Use - Non-CARE | C56: =IF($C$3="All",'Res Bill Impact'!C67,(VLOOKUP($C$3,'Res Bill Impact'!$B$63:$J$66,2,FALSE))) -> 27.21379842 | D56: =IF($C$3="All",'Res Bill Impact'!E67,(VLOOKUP($C$3,'Res Bill Impact'!$B$63:$J$66,4,FALSE))) -> 27.21379842 | E56: =IF($C$3="All",'Res Bill Impact'!G67,(VLOOKUP($C$3,'Res Bill Impact'!$B$63:$J$66,6,FALSE))) -> 27.21379842 | F56: =IF($C$3="All",'Res Bill Impact'!I67,(VLOOKUP($C$3,'Res Bill Impact'!$B$63:$J$66,8,FALSE))) -> 28.21616299 | G56: =$F56/C56-1 -> 0.03683295338 | H56: =$F56/D56-1 -> 0.03683295338 | I56: =$F56/E56-1 -> 0.03683295338 | L56: =Zones -> 1 | M56: ='Res Bill Impact'!I22 -> 13 | N56: ='Res Bill Impact'!J22 -> 37.33333333
A57: Essential Use - CARE | C57: =IF($C$3="All",'Res Bill Impact'!C77,(VLOOKUP($C$3,'Res Bill Impact'!$B$73:$J$76,2,FALSE))) -> 21.40477856 | D57: =IF($C$3="All",'Res Bill Impact'!E77,(VLOOKUP($C$3,'Res Bill Impact'!$B$73:$J$76,4,FALSE))) -> 21.40477856 | E57: =IF($C$3="All",'Res Bill Impact'!G77,(VLOOKUP($C$3,'Res Bill Impact'!$B$73:$J$76,6,FALSE))) -> 21.40477856 | F57: =IF($C$3="All",'Res Bill Impact'!I77,(VLOOKUP($C$3,'Res Bill Impact'!$B$73:$J$76,8,FALSE))) -> 22.18969789 | G57: =$F57/C57-1 -> 0.03667028462 | H57: 0.03667028462 | I57: 0.03667028462 | L57: 2 | M57: ='Res Bill Impact'!I23 -> 13 | N57: ='Res Bill Impact'!J23 -> 42.16666667
A58: Total | C58: =C56*(1-'SAR and RAR'!$AB$15)+C57*'SAR and RAR'!$AB$15 -> 25.67145254 | D58: =D56*(1-'SAR and RAR'!$AB$15)+D57*'SAR and RAR'!$AB$15 -> 25.67145254 | E58: =E56*(1-'SAR and RAR'!$AB$15)+E57*'SAR and RAR'!$AB$15 -> 25.67145254 | F58: =F56*(1-'SAR and RAR'!$AB$15)+F57*'SAR and RAR'!$AB$15 -> 26.61608348 | G58: =$F58/C58-1 -> 0.0367969417 | H58: =$F58/D58-1 -> 0.0367969417 | I58: 0.0367969417 | L58: 3 | M58: ='Res Bill Impact'!I24 -> 13 | N58: ='Res Bill Impact'!J24 -> 65
L59: 0 | M59: ='Res Bill Impact'!I25 -> 0 | N59: ='Res Bill Impact'!J25 -> 0
A60: Basic Bundled Essential Use Residential Monthly Average Bills - Winter
C61: =BOYEffectiveRateDate -> 2026-01-01 | D61: =CurrentEffectiveRateDate -> 2026-01-01 | E61: =$C$2&" Authorized" -> 2026 Authorized | F61: =$C$2&" w/Pending" -> 2026 w/Pending | G61: =CONCATENATE("% Change over ",TEXT(BOYEffectiveRateDate,"m/d/yyyy")) -> % Change over 1/1/2026 | H61: =CONCATENATE("% Change over ",TEXT(CurrentEffectiveRateDate,"m/d/yyyy")) -> % Change over 1/1/2026 | I61: % Change over Authorized
A62: Essential Use - Non-CARE | C62: =IF($C$3="All",'Res Bill Impact'!D67,(VLOOKUP($C$3,'Res Bill Impact'!$B$63:$J$66,3,FALSE))) -> 68.7934724 | D62: =IF($C$3="All",'Res Bill Impact'!F67,(VLOOKUP($C$3,'Res Bill Impact'!$B$63:$J$66,5,FALSE))) -> 68.7934724 | E62: =IF($C$3="All",'Res Bill Impact'!H67,(VLOOKUP($C$3,'Res Bill Impact'!$B$63:$J$66,7,FALSE))) -> 68.7934724 | F62: =IF($C$3="All",'Res Bill Impact'!J67,(VLOOKUP($C$3,'Res Bill Impact'!$B$63:$J$66,9,FALSE))) -> 71.67205783 | G62: =$F62/C62-1 -> 0.04184387454 | H62: =$F62/D62-1 -> 0.04184387454 | I62: =$F62/E62-1 -> 0.04184387454
A63: Essential Use - CARE | C63: =IF($C$3="All",'Res Bill Impact'!D77,(VLOOKUP($C$3,'Res Bill Impact'!$B$73:$J$76,3,FALSE))) -> 53.98295383 | D63: =IF($C$3="All",'Res Bill Impact'!F77,(VLOOKUP($C$3,'Res Bill Impact'!$B$73:$J$76,5,FALSE))) -> 53.98295383 | E63: =IF($C$3="All",'Res Bill Impact'!H77,(VLOOKUP($C$3,'Res Bill Impact'!$B$73:$J$76,7,FALSE))) -> 53.98295383 | F63: =IF($C$3="All",'Res Bill Impact'!J77,(VLOOKUP($C$3,'Res Bill Impact'!$B$73:$J$76,9,FALSE))) -> 56.23708111 | G63: =$F63/C63-1 -> 0.04175627905 | H63: 0.04175627905 | I63: 0.04175627905
A64: Total | C64: =C62*(1-'SAR and RAR'!$AB$15)+C63*'SAR and RAR'!$AB$15 -> 64.8611494 | D64: =D62*(1-'SAR and RAR'!$AB$15)+D63*'SAR and RAR'!$AB$15 -> 64.8611494 | E64: =E62*(1-'SAR and RAR'!$AB$15)+E63*'SAR and RAR'!$AB$15 -> 64.8611494 | F64: =F62*(1-'SAR and RAR'!$AB$15)+F63*'SAR and RAR'!$AB$15 -> 67.57393569 | G64: 0.04182451778 | H64: 0.04182451778 | I64: 0.04182451778
A67: Basic Bundled Typical Residential Monthly Average Bills
C68: =BOYEffectiveRateDate -> 2026-01-01 | D68: =CurrentEffectiveRateDate -> 2026-01-01 | E68: =$C$2&" Authorized" -> 2026 Authorized | F68: =$C$2&" w/Pending" -> 2026 w/Pending | G68: =CONCATENATE("% Change over ",TEXT(BOYEffectiveRateDate,"m/d/yyyy")) -> % Change over 1/1/2026 | H68: =CONCATENATE("% Change over ",TEXT(CurrentEffectiveRateDate,"m/d/yyyy")) -> % Change over 1/1/2026 | I68: % Change over Authorized
A69: 5-Year Average Usage- Non-CARE | C69: =((C75*$H$10)+(C81*$H$11))/12 -> 69.80606131 | D69: =((D75*$H$10)+(D81*$H$11))/12 -> 69.80606131 | E69: 69.80606131 | F69: 72.73080343 | G69: =$F69/C69-1 -> 0.04189811114 | H69: 0.04189811114 | I69: 0.04189811114
B70: 5-Year Average Usage - CARE | C70: =((C76*$H$10)+(C82*$H$11))/12 -> 39.46540071 | D70: 39.46540071 | E70: 39.46540071 | F70: 41.06492605 | G70: =$F70/C70-1 -> 0.04052981372 | H70: =$F70/D70-1 -> 0.04052981372 | I70: =$F70/E70-1 -> 0.04052981372
A71: Total | C71: =((C77*$H$10)+(C83*$H$11))/12 -> 61.75034895 | D71: 61.75034895 | E71: 61.75034895 | F71: 64.32323435 | G71: 0.04166592488 | H71: 0.04166592488 | I71: 0.04166592488 | L71: ='Res Bill Impact'!P27 -> Typical Bundled
L72: ='Res Bill Impact'!P28 -> 2021-2025 Recorded Data - Average Monthly Usage - ALL-BASIC th
A73: Basic Bundled Typical Residential Monthly Average Bills - Summer | L73: Climate Zone | M73: Summer | N73: Winter | O73: Summer | P73: Winter
C74: =BOYEffectiveRateDate -> 2026-01-01 | D74: =CurrentEffectiveRateDate -> 2026-01-01 | E74: =$C$2&" Authorized" -> 2026 Authorized | F74: =$C$2&" w/Pending" -> 2026 w/Pending | G74: =CONCATENATE("% Change over ",TEXT(BOYEffectiveRateDate,"m/d/yyyy")) -> % Change over 1/1/2026 | H74: =CONCATENATE("% Change over ",TEXT(CurrentEffectiveRateDate,"m/d/yyyy")) -> % Change over 1/1/2026 | I74: % Change over Authorized | M74: Non-CARE | O74: CARE
A75: 5-Year Average Usage - Non-CARE | C75: =IF($C$3="All",'Res Bill Impact'!C87,(VLOOKUP($C$3,'Res Bill Impact'!$B$83:$J$86,2,FALSE))) -> 48.50804024 | D75: =IF($C$3="All",'Res Bill Impact'!E87,(VLOOKUP($C$3,'Res Bill Impact'!$B$83:$J$86,4,FALSE))) -> 48.50804024 | E75: =IF($C$3="All",'Res Bill Impact'!G87,(VLOOKUP($C$3,'Res Bill Impact'!$B$83:$J$86,6,FALSE))) -> 48.50804024 | F75: =IF($C$3="All",'Res Bill Impact'!I87,(VLOOKUP($C$3,'Res Bill Impact'!$B$83:$J$86,8,FALSE))) -> 50.47173004 | G75: =$F75/C75-1 -> 0.04048173838 | H75: 0.04048173838 | I75: 0.04048173838 | L75: =Zones -> 1 | M75: ='Res Bill Impact'!Q31 -> 22.59132906 | N75: ='Res Bill Impact'!R31 -> 47.38245383 | O75: ='Res Bill Impact'!S31 -> 17.52905798 | P75: ='Res Bill Impact'!T31 -> 34.06667279
B76: 5-Year Average Usage - CARE | C76: =IF($C$3="All",'Res Bill Impact'!C97,(VLOOKUP($C$3,'Res Bill Impact'!$B$93:$J$96,2,FALSE))) -> 29.32134785 | D76: =IF($C$3="All",'Res Bill Impact'!E97,(VLOOKUP($C$3,'Res Bill Impact'!$B$93:$J$96,4,FALSE))) -> 29.32134785 | E76: =IF($C$3="All",'Res Bill Impact'!G97,(VLOOKUP($C$3,'Res Bill Impact'!$B$93:$J$96,6,FALSE))) -> 29.32134785 | F76: =IF($C$3="All",'Res Bill Impact'!I97,(VLOOKUP($C$3,'Res Bill Impact'!$B$93:$J$96,8,FALSE))) -> 30.46350701 | G76: =$F76/C76-1 -> 0.03895316026 | H76: =$F76/D76-1 -> 0.03895316026 | I76: =$F76/E76-1 -> 0.03895316026 | L76: 2 | M76: ='Res Bill Impact'!Q32 -> 19.18689438 | N76: ='Res Bill Impact'!R32 -> 52.84630184 | O76: ='Res Bill Impact'!S32 -> 18.44856514 | P76: ='Res Bill Impact'!T32 -> 49.63336211
A77: Total | C77: =C75*(1-'SAR and RAR'!$AB$15)+C76*'SAR and RAR'!$AB$15 -> 43.41380459 | D77: =D75*(1-'SAR and RAR'!$AB$15)+D76*'SAR and RAR'!$AB$15 -> 43.41380459 | E77: =E75*(1-'SAR and RAR'!$AB$15)+E76*'SAR and RAR'!$AB$15 -> 43.41380459 | F77: =F75*(1-'SAR and RAR'!$AB$15)+F76*'SAR and RAR'!$AB$15 -> 45.15937077 | G77: 0.04020762979 | H77: 0.04020762979 | I77: 0.04020762979 | L77: 3 | M77: ='Res Bill Impact'!Q33 -> 19.80325997 | N77: ='Res Bill Impact'!R33 -> 73.84996822 | O77: ='Res Bill Impact'!S33 -> 24.3672052 | P77: ='Res Bill Impact'!T33 -> 83.44843671
L78: 0 | M78: ='Res Bill Impact'!Q34 -> 0 | N78: ='Res Bill Impact'!R34 -> 0 | O78: ='Res Bill Impact'!S34 -> 0 | P78: ='Res Bill Impact'!T34 -> 0
A79: Basic Bundled Typical Residential Monthly Average Bills - Winter
C80: =BOYEffectiveRateDate -> 2026-01-01 | D80: =CurrentEffectiveRateDate -> 2026-01-01 | E80: =$C$2&" Authorized" -> 2026 Authorized | F80: =$C$2&" w/Pending" -> 2026 w/Pending | G80: =CONCATENATE("% Change over ",TEXT(BOYEffectiveRateDate,"m/d/yyyy")) -> % Change over 1/1/2026 | H80: =CONCATENATE("% Change over ",TEXT(CurrentEffectiveRateDate,"m/d/yyyy")) -> % Change over 1/1/2026 | I80: % Change over Authorized
A81: 5-Year Average Usage - Non-CARE | C81: =IF($C$3="All",'Res Bill Impact'!D87,(VLOOKUP($C$3,'Res Bill Impact'!$B$83:$J$86,3,FALSE))) -> 91.10408238 | D81: =IF($C$3="All",'Res Bill Impact'!F87,(VLOOKUP($C$3,'Res Bill Impact'!$B$83:$J$86,5,FALSE))) -> 91.10408238 | E81: =IF($C$3="All",'Res Bill Impact'!H87,(VLOOKUP($C$3,'Res Bill Impact'!$B$83:$J$86,7,FALSE))) -> 91.10408238 | F81: =IF($C$3="All",'Res Bill Impact'!J87,(VLOOKUP($C$3,'Res Bill Impact'!$B$83:$J$86,9,FALSE))) -> 94.98987682 | G81: =$F81/C81-1 -> 0.04265225372 | H81: 0.04265225372 | I81: 0.04265225372
B82: 5-Year Average Usage - CARE | C82: =IF($C$3="All",'Res Bill Impact'!D97,(VLOOKUP($C$3,'Res Bill Impact'!$B$93:$J$96,3,FALSE))) -> 49.60945357 | D82: =IF($C$3="All",'Res Bill Impact'!F97,(VLOOKUP($C$3,'Res Bill Impact'!$B$93:$J$96,5,FALSE))) -> 49.60945357 | E82: =IF($C$3="All",'Res Bill Impact'!H97,(VLOOKUP($C$3,'Res Bill Impact'!$B$93:$J$96,7,FALSE))) -> 49.60945357 | F82: =IF($C$3="All",'Res Bill Impact'!J97,(VLOOKUP($C$3,'Res Bill Impact'!$B$93:$J$96,9,FALSE))) -> 51.66634508 | G82: =$F82/C82-1 -> 0.04146168459 | H82: =$F82/D82-1 -> 0.04146168459 | I82: =$F82/E82-1 -> 0.04146168459
A83: Total | C83: =C81*(1-'SAR and RAR'!$AB$15)+C82*'SAR and RAR'!$AB$15 -> 80.08689332 | D83: =D81*(1-'SAR and RAR'!$AB$15)+D82*'SAR and RAR'!$AB$15 -> 80.08689332 | E83: =E81*(1-'SAR and RAR'!$AB$15)+E82*'SAR and RAR'!$AB$15 -> 80.08689332 | F83: =F81*(1-'SAR and RAR'!$AB$15)+F82*'SAR and RAR'!$AB$15 -> 83.48709794 | G83: 0.04245644297 | H83: 0.04245644297 | I83: 0.04245644297

Sheet Authorized Rev Req
A2: Annual Period 2026
A3: Reporting Date: Quarter Ended March 31
B5: Revenue Requirement Date: | C5: 2022-01-01 | D5: 2023-01-01 | E5: 2023-03-01 | F5: 2023-08-01 | G5: 2023-11-01 | H5: 2024-01-01 | I5: 2024-07-01 | J5: 2024-10-01 | K5: 2025-01-01 | L5: 2025-02-01 | M5: 2025-07-01 | N5: 2025-09-01 | O5: 2025-10-01 | P5: 2026-01-01
B6: Advice Letter: | C6: AL 5915-G | D6: AL 6071-G | E6: AL 6088-G | F6: AL 6168-G | G6: AL 6213-G | H6: AL 6237-G | I6: AL 6325-G | J6: AL 6369-G | K6: AL 6421-G | L6: AL 6340-G-A | M6: AL 6493-G | N6: AL-6526 | O6: AL-6538 | P6: AL-6578
A7: Filing Description | B7: Authority for Revenue Requirement as of 2/1/2025 | C7: Authorized Revenue Requirement ($000) | D7: Authorized Revenue Requirement ($000) | E7: Authorized Revenue Requirement ($000) | F7: Authorized Revenue Requirement ($000) | G7: Authorized Revenue Requirement ($000) | H7: Authorized Revenue Requirement ($000) | I7: Authorized Revenue Requirement ($000) | J7: Authorized Revenue Requirement ($000) | K7: Authorized Revenue Requirement ($000) | L7: Authorized Revenue Requirement ($000) | M7: Authorized Revenue Requirement ($000) | N7: Authorized Revenue Requirement ($000) | O7: Authorized Revenue Requirement ($000) | P7: Authorized Revenue Requirement ($000) | Q7: Revenue Recovery Mechanism | R7: Balancing Account
A8: Safety Affordability Reliability Proceedings
A9: Total Allocated Base Margin | B9: D.24-12-074 | C9: 2797438.81 | D9: 2813333.282 | E9: 2813333.282 | F9: 2813333.282 | G9: 2813333.28 | H9: 2828192.765 | I9: 2827790.601 | J9: 2827790.601 | K9: 2801126.364 | L9: 3218272.671 | M9: 3218272.671 | N9: 3218272.671 | O9: 3218272.671 | P9: 3332575.223 | Q9: Allocated Base Margin | R9: N
A10: Pipeline Safety Enhancement Plan (PSEP) GRC - Local Transmission (subtracted from Base Margin and allocated here) | B10: D.24-12-074 | C10: 20025.2391 | D10: 20972.1516 | E10: 20972.1516 | F10: 20972.1516 | G10: 20972.1516 | H10: 20972.1516 | I10: 20972.1516 | J10: 20972.1516 | K10: 20972.1516 | L10: 12473.81268 | M10: 12473.81268 | N10: 12473.81268 | O10: 12473.81268 | P10: 12895.03754 | Q10: Local Transmission | R10: N
A11: Pipeline Safety Enhancement Plan (PSEP) GRC -Distribution (subtracted from Base Margin and allocated here) | B11: D.24-12-074 | C11: 28629.01 | D11: 29982.76 | E11: 29982.76 | F11: 29982.76 | G11: 29982.76 | H11: 29982.76 | I11: 29982.76 | J11: 29982.76 | K11: 29982.76 | L11: 73422.06 | M11: 73422.06 | N11: 73422.06 | O11: 73422.06 | P11: 75901.43 | Q11: Distribution | R11: N
A12: Company Use Gas: Other | B12: D.24-07-009, AL 6578-G,AL 6340-G-A | C12: 1792.692921 | D12: 2442.782407 | E12: 2442.782407 | F12: 2442.782407 | G12: 2442.782407 | H12: 2021.517814 | I12: 2086.359644 | J12: 2086.359644 | K12: 1696.960573 | L12: 1283.388791 | M12: 1223.184112 | N12: 1223.184112 | O12: 1223.184112 | P12: 1370.02982 | Q12: ECPT | R12: N
A13: Company Use Gas: Storage Load Balancing | B13: D.24-07-009, AL 6578-G,AL 6340-G-A | C13: 1739.982378 | D13: 2371.288817 | E13: 2371.288817 | F13: 2371.288817 | G13: 2371.288817 | H13: 1962.353492 | I13: 2025.297578 | J13: 2025.297578 | K13: 1647.295157 | L13: 3617.87136 | M13: 3501.139374 | N13: 3501.139374 | O13: 3501.139374 | P13: 3921.458183 | Q13: ECPT | R13: N
A14: Exchange Revenues & Interutility Transactions | B14: D.24-07-009, AL 6578-G,AL 6340-G-A | C14: 342.77791 | D14: 342.77791 | E14: 342.77791 | F14: 342.77791 | G14: 342.77791 | H14: 342.77791 | I14: 342.77791 | J14: 342.77791 | K14: 342.77791 | L14: 342.77791 | M14: 342.77791 | N14: 342.77791 | O14: 342.77791 | P14: 1729.18 | Q14: ECPT | R14: N
A15: Unaccounted For (UAF) Gas | B15: D.24-07-009, AL 6578-G,AL 6340-G-A | C15: 43865.64079 | D15: 59771.78668 | E15: 59771.78668 | F15: 59771.78668 | G15: 59771.78668 | H15: 49463.97649 | I15: 51050.57382 | J15: 51050.57382 | K15: 41522.47251 | L15: 32364.54513 | M15: 30832.58319 | N15: 30832.58319 | O15: 30832.58319 | P15: 34534.09669 | Q15: 47% Res (LUAF, Other) | R15: N
A16: Well Incidents & Surface Leaks | B16: D.24-07-009, AL 6578-G,AL 6340-G-A | C16: 226.3891543 | D16: 308.4843465 | E16: 308.4843465 | F16: 308.4843465 | G16: 308.4843465 | H16: 255.2853664 | I16: 263.4738524 | J16: 263.4738524 | K16: 214.298978 | L16: 45.49847815 | M16: 43.35194566 | N16: 43.35194566 | O16: 43.35194566 | P16: 48.55643375 | Q16: ECPT | R16: N
A17: SCG PSEP - 2017 Forecast Application RevReq Capital Cost - Local Transmission | B17: D.24-07-009, AL 6578-G,AL 6340-G-A | C17: 381.0924644 | D17: 363.8434006 | E17: 363.8434006 | F17: 363.8434006 | G17: 363.8434006 | H17: 373.2391018 | I17: 373.2391018 | J17: 373.2391018 | K17: 338.8845378 | L17: 343.3496879 | M17: 343.4341302 | N17: 343.4341302 | O17: 343.4341302 | P17: 326.1633798 | Q17: Local Transmission | R17: N
A18: SCG PSEP - 2017 Forecast Application RevReq Capital Cost - Distribution | B18: D.24-07-009, AL 6578-G,AL 6340-G-A | C18: 24839.85663 | D18: 24959.79958 | E18: 24959.79958 | F18: 24959.79958 | G18: 24959.79958 | H18: 25796.91107 | I18: 25796.91107 | J18: 25796.91107 | K18: 23492.4964 | L18: 23486.26448 | M18: 23492.26643 | N18: 23492.26643 | O18: 23492.26643 | P18: 22390.62039 | Q18: Distribution | R18: N
A19: AMI Balancing Account (AMIBA) | B19: D.24-07-009, AL 6578-G,AL 6340-G-A | C19: -77756.9011 | D19: -323.9718593 | E19: -323.9718593 | F19: -323.9718593 | G19: -323.9718593 | H19: 0 | I19: 0 | J19: 0 | K19: -589.6895134 | L19: 0 | M19: 0 | N19: 0 | O19: 0 | P19: 0 | Q19: EPAM | R19: Y
A20: Residential Uncollectible Balancing Account (RUBA) | B20: D.24-07-009, AL 6578-G,AL 6340-G-A | C20: 16080.82923 | D20: 44745.19835 | E20: 44745.19835 | F20: 44745.19835 | G20: 44745.19835 | H20: 361045.4563 | I20: 361045.4563 | J20: 361045.4563 | K20: 68088.97402 | L20: 68056.53932 | M20: 68056.53932 | N20: 68056.53932 | O20: 68056.53932 | P20: 35757.56904 | Q20: ECPT | R20: Y
A21: Affiliate Transfer Fee Account (ATFA) | B21: D.24-07-009, AL 6578-G,AL 6340-G-A | C21: -56.8521172 | D21: -106.5216742 | E21: -106.5216742 | F21: -106.5216742 | G21: -106.5218593 | H21: -332.5151735 | I21: -332.5151719 | J21: -332.5151719 | K21: -159.2084278 | L21: -159.1502742 | M21: -159.1502742 | N21: -159.1502742 | O21: -159.1502742 | P21: -123.3238121 | Q21: EPAM | R21: Y
A22: Core Fixed Cost Account - Non NGV (CFCA) | B22: D.24-07-009, AL 6578-G,AL 6340-G-A | C22: -28133.81894 | D22: 121885.4366 | E22: -12481.01707 | F22: -12481.01707 | G22: -15934.57573 | H22: -159234.434 | I22: -159234.434 | J22: -159234.434 | K22: 116918.4048 | L22: 116879.0578 | M22: 116879.0578 | N22: 116879.0578 | O22: 116879.0578 | P22: -19419.92483 | Q22: CFCA | R22: Y
A23: Core Fixed Cost Account - NGV (CFCA) | B23: D.24-07-009, AL 6578-G,AL 6340-G-A | C23: 9826.724141 | D23: -1151.989741 | E23: -1401.302084 | F23: -1401.302084 | G23: -1401.302084 | H23: -6384.867245 | I23: -6384.867245 | J23: -6384.867245 | K23: -10720.89735 | L23: -10717.2894 | M23: -10717.2894 | N23: -10717.2894 | O23: -10717.2894 | P23: -5390.941498 | Q23: Non-Residential | R23: Y
A24: Core Fixed Cost Account - C&I Shortfall (CFCA) | B24: D.24-07-009, AL 6578-G,AL 6340-G-A | C24: 28765.69276 | D24: 0 | E24: 0 | F24: 0 | G24: 0 | H24: 0 | I24: 0 | J24: 0 | K24: -352.80365 | L24: -352.6849195 | M24: -352.6849195 | N24: -352.6849195 | O24: -352.6849195 | P24: 0 | Q24: Non-Residential | R24: Y
A25: Economic Practicality Shortfall Memorandum Account (EPSMA) | B25: D.24-07-009, AL 6578-G,AL 6340-G-A | C25: 395.853484 | D25: 434.2273838 | E25: 434.2273838 | F25: 434.2273838 | G25: 434.2273838 | H25: 623.9141766 | I25: 623.9141766 | J25: 623.9141766 | K25: 331.592532 | L25: 331.4809398 | M25: 331.4809398 | N25: 331.4809398 | O25: 331.4809398 | P25: 826.9374504 | Q25: Non-Residential | R25: Y
A26: Enhanced Oil Recovery Account (EORA) | B26: D.24-07-009, AL 6578-G,AL 6340-G-A | C26: 2530.55974 | D26: -7124.256786 | E26: -7124.256786 | F26: -7124.256786 | G26: -7124.269166 | H26: 9594.38968 | I26: 9594.389634 | J26: 9594.389634 | K26: 1231.783468 | L26: 1231.333538 | M26: 1231.333538 | N26: 1231.333538 | O26: 1231.333538 | P26: 1954.541932 | Q26: EPAM | R26: Y
A27: Hazardous Substance Cost-Recovery Account (HSCRA) | B27: D.24-07-009, AL 6578-G,AL 6340-G-A | C27: 284.26279 | D27: 441.0656654 | E27: 441.0656654 | F27: 441.0656654 | G27: 441.0656654 | H27: 2438.240816 | I27: 2438.240816 | J27: 2438.240816 | K27: 7084.132681 | L27: 7080.758101 | M27: 7080.758101 | N27: 7080.758101 | O27: 7080.758101 | P27: 7761.780065 | Q27: ECPT | R27: Y
A28: Intervenor Award Memorandum Account (IAMA) | B28: D.24-07-009, AL 6578-G,AL 6340-G-A | C28: 731.580665 | D28: 832.9371787 | E28: 832.9371787 | F28: 832.9371787 | G28: 832.9371787 | H28: 435.5787082 | I28: 435.5787082 | J28: 435.5787082 | K28: 1579.573997 | L28: 1578.821555 | M28: 1578.821555 | N28: 1578.821555 | O28: 1578.821555 | P28: 1776.943012 | Q28: ECPT | R28: Y
A29: Master Meter Balancing Account (MMBA) | B29: D.24-07-009, AL 6578-G,AL 6340-G-A | C29: 17468.47031 | D29: 24824.50463 | E29: 24824.50463 | F29: 24824.50463 | G29: 24824.54776 | H29: 27664.39859 | I29: 27664.39846 | J29: 27664.39846 | K29: 57995.52302 | L29: 56029.54399 | M29: 56029.54399 | N29: 56029.54399 | O29: 56029.54399 | P29: 36981.86751 | Q29: EPAM | R29: Y
A30: Noncore Fixed Cost Account (NFCA) Margin | B30: D.24-07-009, AL 6578-G,AL 6340-G-A | C30: 6370.180978 | D30: 12427.60401 | E30: 12427.60401 | F30: 12427.60401 | G30: 12427.83405 | H30: 6309.96825 | I30: 6309.968067 | J30: 6309.968067 | K30: 19275.21055 | L30: 19264.23989 | M30: 19264.23989 | N30: 19264.23989 | O30: 19264.23989 | P30: 34083.17961 | Q30: Non-Residential | R30: Y
A31: Noncore Fixed Cost Account (NFCA) Nonmargin | B31: D.24-07-009, AL 6578-G,AL 6340-G-A | C31: -3275.185198 | D31: 959.6319265 | E31: 959.6319265 | F31: 959.6319265 | G31: -11436.66702 | H31: 913.703406 | I31: 913.703406 | J31: 913.703406 | K31: 18733.58886 | L31: 18722.78709 | M31: 18722.78709 | N31: 18722.78709 | O31: 18722.78709 | P31: 29191.14582 | Q31: Non-Residential | R31: Y
A32: Integrated Transmission Balancing Account (ITBA) Margin | B32: D.24-07-009, AL 6578-G,AL 6340-G-A | C32: 176.0981414 | D32: 5083.885059 | E32: 5083.885059 | F32: 5083.885059 | G32: 5083.885059 | H32: -2088.910606 | I32: -2088.910606 | J32: -2088.910606 | K32: 13617.12929 | L32: 13611.38962 | M32: 13611.38962 | N32: 13611.38962 | O32: 13611.38962 | P32: 23442.79176 | Q32: ECPT | R32: Y
A33: Compressor Station Fuel and Power Balancing Account (CFPBA) | B33: D.24-07-009, AL 6578-G,AL 6340-G-A | C33: -1423.035883 | D33: 3459.772548 | E33: 3459.772548 | F33: 3459.772548 | G33: 3459.772548 | H33: 5089.794203 | I33: 5089.794203 | J33: 5089.794203 | K33: 14061.42309 | L33: 14055.49615 | M33: 14055.49615 | N33: 14055.49615 | O33: 14055.49615 | P33: 7653.029145 | Q33: ECPT | R33: Y
A34: Compression Services Balancing Account (CSBA) | B34: D.24-07-009, AL 6578-G,AL 6340-G-A | C34: -68.36948884 | D34: -73.63685293 | E34: -73.63685293 | F34: -73.63685293 | G34: -73.63685293 | H34: 0 | I34: 0 | J34: 0 | K34: 0 | L34: 0 | M34: 0 | N34: 0 | O34: 0 | P34: 0 | Q34: Non-Residential | R34: Y
A35: Company-Use Fuel for Load Balancing Account (CUFLBA) | B35: D.24-07-009, AL 6578-G,AL 6340-G-A | C35: -1168.448441 | D35: 5918.687245 | E35: 5918.687245 | F35: 5918.687245 | G35: 5918.687245 | H35: 12182.44939 | I35: 12182.44939 | J35: 12182.44939 | K35: 2553.019545 | L35: 2551.992899 | M35: 2552.735232 | N35: 2552.735232 | O35: 2552.735232 | P35: 4353.129968 | Q35: ECPT | R35: Y
A36: Noncore Storage Balancing Account (NSBA) | B36: D.24-07-009, AL 6578-G,AL 6340-G-A | C36: 122.0512176 | D36: 93.94677741 | E36: 93.94677741 | F36: 93.94677741 | G36: 93.94677741 | H36: 0 | I36: 0 | J36: 0 | K36: -28184.0505 | L36: -28170.62481 | M36: -28170.62481 | N36: -28170.62481 | O36: -28170.62481 | P36: -5315.859414 | Q36: ECPT | R36: Y
A37: Pension Balancing Account (PBA) | B37: D.24-07-009, AL 6578-G,AL 6340-G-A | C37: 11312.64409 | D37: 9235.968926 | E37: 9235.968926 | F37: 9235.968926 | G37: 9235.984974 | H37: 23408.24727 | I37: 23408.24716 | J37: 23408.24716 | K37: 41484.86135 | L37: 17893.67727 | M37: 17893.67727 | N37: 17893.67727 | O37: 17893.67727 | P37: 18057.26853 | Q37: EPAM | R37: Y
A38: PBOP Balancing Account (PBOPBA) | B38: D.24-07-009, AL 6578-G,AL 6340-G-A | C38: -4328.422797 | D38: -4765.790274 | E38: -4765.790274 | F38: -4765.790274 | G38: -4765.798555 | H38: -1010.398893 | I38: -1010.398888 | J38: -1010.398888 | K38: -1093.046874 | L38: -3240.981219 | M38: -3240.981219 | N38: -3240.981219 | O38: -3240.981219 | P38: -2875.804299 | Q38: EPAM | R38: Y
A39: Safety Enhancement Capital Cost Balancing Account (SECCBA) - Local Transmission | B39: D.24-07-009, AL 6578-G,AL 6340-G-A | C39: 22874.17654 | D39: 24483.53553 | E39: 24483.53553 | F39: 24483.53553 | G39: 24483.53553 | H39: 25945.72456 | I39: 25945.72456 | J39: 25945.72456 | K39: 25737.97512 | L39: -7932.369624 | M39: -7934.320485 | N39: -7934.320485 | O39: -7934.320485 | P39: 14514.30038 | Q39: Local Transmission | R39: Y
A40: Safety Enhancement Capital Cost Balancing Account (SECCBA) - Distribution | B40: D.24-07-009, AL 6578-G,AL 6340-G-A | C40: 72521.18682 | D40: 74787.02382 | E40: 74787.02382 | F40: 74787.02382 | G40: 74787.02382 | H40: 78908.4625 | I40: 78908.4625 | J40: 78908.4625 | K40: 77781.07254 | L40: -35512.15609 | M40: -35521.23128 | N40: -35521.23128 | O40: -35521.23128 | P40: 32887.99375 | Q40: Distribution | R40: Y
A41: Safety Enhancement Expense Balancing Account (SEEBA) - Local Transmission | B41: D.24-07-009, AL 6578-G,AL 6340-G-A | C41: 572.0979832 | D41: -674.0780882 | E41: -674.0780882 | F41: -674.0780882 | G41: -674.0780882 | H41: -305.1347641 | I41: -305.1347641 | J41: -305.1347641 | K41: 207.9130707 | L41: 210.6525379 | M41: 210.7043451 | N41: 210.7043451 | O41: 210.7043451 | P41: 227.8892489 | Q41: Local Transmission | R41: Y
A42: Safety Enhancement Expense Balancing Account (SEEBA) - Distribution | B42: D.24-07-009, AL 6578-G,AL 6340-G-A | C42: 1611.907472 | D42: 2206.086744 | E42: 2206.086744 | F42: 2206.086744 | G42: 2206.086744 | H42: 402.7958316 | I42: 402.7958316 | J42: 402.7958316 | K42: 586.1714733 | L42: 586.0159779 | M42: 586.1657352 | N42: 586.1657352 | O42: 586.1657352 | P42: 1466.799596 | Q42: Distribution | R42: Y
A43: Research Royalty Memorandum Account (RRMA) | B43: D.24-07-009, AL 6578-G,AL 6340-G-A | C43: -160.8244502 | D43: -247.9508232 | E43: -247.9508232 | F43: -247.9508232 | G43: -247.9512541 | H43: -157.2750448 | I43: -157.275044 | J43: -157.275044 | K43: -187.7276666 | L43: -187.6590959 | M43: -187.6590959 | N43: -187.6590959 | O43: -187.6590959 | P43: -138.632172 | Q43: EPAM | R43: Y
A44: Self-Generation Program Memorandum Account (SGPMA) | B44: D.24-07-009, AL 6578-G,AL 6340-G-A | C44: 16267.79819 | D44: 16265.02543 | E44: 16265.02543 | F44: 16265.02543 | G44: 16265.02543 | H44: 16265.02543 | I44: 16265.02543 | J44: 16265.02543 | K44: 0 | L44: 0 | M44: 0 | N44: 0 | O44: 0 | P44: 0 | Q44: SGIP | R44: Y
A45: System Operator Gas Account (SOGA) | B45: D.24-07-009, AL 6578-G,AL 6340-G-A | C45: -57.47472488 | D45: -54.79102466 | E45: -54.79102466 | F45: -54.79102466 | G45: -54.79102466 | H45: 0 | I45: 0 | J45: 0 | K45: 1062.864181 | L45: 1062.357878 | M45: 1062.357878 | N45: 1062.357878 | O45: 1062.357878 | P45: 175.6142216 | Q45: ECPT | R45: Y
A46: Rewards & Penalties Balancing Account (RPBA) | B46: D.24-07-009, AL 6578-G,AL 6340-G-A | C46: -266.7671576 | D46: -288.8720611 | E46: -288.8720611 | F46: -288.8720611 | G46: -288.872563 | H46: 7370.233834 | I46: 7370.233799 | J46: 7370.233799 | K46: 4000.144377 | L46: 3998.683255 | M46: -4451.889016 | N46: -4451.889016 | O46: -4451.889016 | P46: -287.8656269 | Q46: EPAM | R46: Y
A47: Liability Insurance Premium Balancing Account (LIPBA) | B47: D.24-07-009, AL 6578-G,AL 6340-G-A | C47: 14313.74818 | D47: 23349.85594 | E47: 23349.85594 | F47: 23349.85594 | G47: 23349.89651 | H47: 24061.23156 | I47: 24061.23145 | J47: 24061.23145 | K47: 27244.79019 | L47: -15158.15314 | M47: -15158.15619 | N47: -15158.15619 | O47: -15158.15619 | P47: -14655.81643 | Q47: EPAM | R47: Y
A48: NonCore Backbone Transmission | B48: D.24-07-009, AL 6578-G,AL 6340-G-A | C48: 205899.099 | D48: 307036.3771 | E48: 307036.3771 | F48: 307036.3771 | G48: 307036.3771 | H48: 302321.9664 | I48: 403718.6134 | J48: 403718.6134 | K48: 346725.4363 | L48: 385487.5997 | M48: 439215.9428 | N48: 509219.5642 | O48: 509219.5642 | P48: 733567.714 | Q48: Backbone Transmission | R48: N
A49: Storage Integrity Management Program Balancing Account (SIMPBA) Balance | B49: D.22-07-016, D.20-02-045, AL6578-G | C49: 0 | D49: 35607.36669 | E49: 35607.36669 | F49: 35607.36669 | G49: 35607.42856 | H49: 0 | I49: 0 | J49: 0 | K49: 0 | L49: 0 | M49: =L49 -> 0 | N49: 0 | O49: 0 | P49: 0 | Q49: EPAM | R49: Y
A50: On-Bill Financing Balancing Account (OBFBA) | B50: D.19-03-001, AL 5853-A, AL 6578-G | C50: 0 | D50: 4574.363334 | E50: 4574.363334 | F50: 4574.363334 | G50: 4574.371282 | H50: 0 | I50: 0 | J50: 0 | K50: 0 | L50: 0 | M50: =L50 -> 0 | N50: 0 | O50: 0 | P50: 0 | Q50: EPAM | R50: Y
A51: System Reliability Memorandum Account (SRMA) | B51: D.24-07-009, AL 6578-G,AL 6340-G-A | C51: 0 | D51: 15184.32229 | E51: 15184.32229 | F51: 15184.32229 | G51: 15184.32229 | H51: 32096.06422 | I51: 32096.06422 | J51: 32096.06422 | K51: 15326.50399 | L51: 15319.20309 | M51: 15319.20309 | N51: 15319.20309 | O51: 15319.20309 | P51: 10194.45691 | Q51: ECPT | R51: Y
A52: Distributed Energy Resources Svcs Bal Account (DERSBA) | B52: D.24-07-009, AL 6578-G,AL 6340-G-A | C52: 0 | D52: -61.47842668 | E52: -61.47842668 | F52: -61.47842668 | G52: -61.47853351 | H52: 0 | I52: 0 | J52: 0 | K52: 0 | L52: 0 | M52: 0 | N52: 0 | O52: 0 | P52: -2.100555577 | Q52: EPAM | R52: Y
A53: Percentage of Income Payment Plan Balancing Account (PIPPBA) | B53: D.24-07-009, AL 6578-G,AL 6340-G-A | C53: 0 | D53: 0 | E53: 0 | F53: 0 | G53: 0 | H53: 573.8082412 | I53: 573.8082412 | J53: 573.8082412 | K53: 895.8920064 | L53: 895.4652414 | M53: 895.4652414 | N53: 895.4652414 | O53: 895.4652414 | P53: 1186.653792 | Q53: ECPT | R53: Y
A54: Transmission Integrity Management Program Memorandum Account (TIMPBA) Local Transmission | B54: AL 6325-G, D.24-07-009,AL 6578-G,AL 6340-G-A | C54: 0 | D54: 0 | E54: 0 | F54: 0 | G54: 0 | H54: 0 | I54: 56339.32306 | J54: 56339.32306 | K54: 56339.32306 | L54: 65908.49897 | M54: 0 | N54: 0 | O54: 0 | P54: 0 | Q54: Local Transmission | R54: Y
A55: San Joaquin Valley Disadvantaged Communities Bal Acct (SJVDACBA) - TTM subaccount | B55: D.18-12-015, AL 6578-G | C55: 0 | D55: 0 | E55: 0 | F55: 0 | G55: 0 | H55: 0 | I55: 0 | J55: 0 | K55: 303.2116872 | L55: 303.06725 | M55: 303.06725 | N55: 303.06725 | O55: 303.06725 | P55: 79.44856166 | Q55: ECPT | R55: Y
A56: AB802 Memorandum Account (AB802MA) | B56: D.24-12-074, AL6430-G-A | C56: 0 | D56: 0 | E56: 0 | F56: 0 | G56: 0 | H56: 0 | I56: 0 | J56: 0 | K56: 0 | L56: 1235.818849 | M56: 1235.818849 | N56: 1235.818849 | O56: 1235.818849 | P56: 0 | Q56: EPAM | R56: Y
A57: AMIBA Escalated Jurisdiction Cost Subaccount | B57: D.24-12-074, AL6430-G-A | C57: 0 | D57: 0 | E57: 0 | F57: 0 | G57: 0 | H57: 0 | I57: 0 | J57: 0 | K57: 0 | L57: 952.4052728 | M57: 952.4052728 | N57: 952.4052728 | O57: 952.4052728 | P57: 0 | Q57: EPAM | R57: Y
A58: AMIBA Deployment and Post-Deployment subaccounts | B58: D.24-12-074, AL6430-G-A | C58: 0 | D58: 0 | E58: 0 | F58: 0 | G58: 0 | H58: 0 | I58: 0 | J58: 0 | K58: 0 | L58: -589.4910628 | M58: -589.4910628 | N58: -589.4910628 | O58: -589.4910628 | P58: -864.0916432 | Q58: EPAM | R58: Y
A59: Core Gas Balancing Memorandum Account (CGBMA) | B59: D.24-12-074, AL6430-G-A | C59: 0 | D59: 0 | E59: 0 | F59: 0 | G59: 0 | H59: 0 | I59: 0 | J59: 0 | K59: 0 | L59: 4474.483233 | M59: 4474.483233 | N59: 4474.483233 | O59: 4474.483233 | P59: 0 | Q59: EPAM | R59: Y
A60: Diary Biomethane Solicitation Develop. Memorandum Account (DBSDMA) | B60: D.24-12-074, AL6430-G-A | C60: 0 | D60: 0 | E60: 0 | F60: 0 | G60: 0 | H60: 0 | I60: 0 | J60: 0 | K60: 0 | L60: 1037.325066 | M60: 1037.325066 | N60: 1037.325066 | O60: 1037.325066 | P60: 0 | Q60: EPAM | R60: Y
A61: Injection Enhancement Cost Memorandum Account (IECMA) | B61: D.24-12-074, AL6430-G-A | C61: 0 | D61: 0 | E61: 0 | F61: 0 | G61: 0 | H61: 0 | I61: 0 | J61: 0 | K61: 0 | L61: -209.4205028 | M61: -209.4205028 | N61: -209.4205028 | O61: -209.4205028 | P61: 0 | Q61: EPAM | R61: Y
A62: Residential Disconnect Memorandum Account (RDMA) | B62: D.24-12-074, AL6430-G-A | C62: 0 | D62: 0 | E62: 0 | F62: 0 | G62: 0 | H62: 0 | I62: 0 | J62: 0 | K62: 0 | L62: 9.701236543 | M62: 9.701236543 | N62: 9.701236543 | O62: 9.701236543 | P62: 0 | Q62: EPAM | R62: Y
A63: Wildfire Customer Protection Memorandum Account (WCPMA) | B63: D.24-12-074, AL6430-G-A | C63: 0 | D63: 0 | E63: 0 | F63: 0 | G63: 0 | H63: 0 | I63: 0 | J63: 0 | K63: 0 | L63: 127.6535183 | M63: 127.6535183 | N63: 127.6535183 | O63: 127.6535183 | P63: 0 | Q63: EPAM | R63: Y
A64: Avoided Cost Calculator Update Memorandum Account (ACCUMA) | B64: D.24-12-074, AL6430-G-A | C64: 0 | D64: 0 | E64: 0 | F64: 0 | G64: 0 | H64: 0 | I64: 0 | J64: 0 | K64: 0 | L64: 65.29815233 | M64: 65.29815233 | N64: 65.29815233 | O64: 65.29815233 | P64: 0 | Q64: EPAM | R64: Y
A65: California Consumer Privacy Act Memorandum Account (CCPAMA) | B65: D.24-12-074, AL6430-G-A | C65: 0 | D65: 0 | E65: 0 | F65: 0 | G65: 0 | H65: 0 | I65: 0 | J65: 0 | K65: 0 | L65: 3668.345737 | M65: 3668.345737 | N65: 3668.345737 | O65: 3668.345737 | P65: 0 | Q65: EPAM | R65: Y
A66: Emergency Customer Protection Memorandum Account (ECPMA) | B66: D.24-12-074, AL6430-G-A | C66: 0 | D66: 0 | E66: 0 | F66: 0 | G66: 0 | H66: 0 | I66: 0 | J66: 0 | K66: 0 | L66: 359.9334552 | M66: 359.9334552 | N66: 359.9334552 | O66: 359.9334552 | P66: 0 | Q66: EPAM | R66: Y
A67: Morongo Right of Way Memorandum Account (MROWMA) | B67: D.24-12-074, AL6430-G-A | C67: 0 | D67: 0 | E67: 0 | F67: 0 | G67: 0 | H67: 0 | I67: 0 | J67: 0 | K67: 0 | L67: 56007.72103 | M67: 56007.72103 | N67: 56007.72103 | O67: 56007.72103 | P67: 0 | Q67: EPAM | R67: Y
A68: Residential Disconnect Protections Memorandum Account (RDPMA) | B68: D.24-12-074, AL6430-G-A | C68: 0 | D68: 0 | E68: 0 | F68: 0 | G68: 0 | H68: 0 | I68: 0 | J68: 0 | K68: 0 | L68: 2610.392714 | M68: 2610.392714 | N68: 2610.392714 | O68: 2610.392714 | P68: 0 | Q68: EPAM | R68: Y
A69: Aliso Canyon Memorandum Account (ACMA) | B69: D.24-12-074, AL6430-G-A | C69: 0 | D69: 0 | E69: 0 | F69: 0 | G69: 0 | H69: 0 | I69: 0 | J69: 0 | K69: 0 | L69: 12154.54219 | M69: 12155.8965 | N69: 12155.8965 | O69: 12155.8965 | P69: 0 | Q69: Storage | R69: Y
A70: Cost of Capital Adjustment (Subtracted from Base Margin) | B70: D.24-12-074, AL6430-G-A | C70: 0 | D70: 0 | E70: 0 | F70: 0 | G70: 0 | H70: 0 | I70: 0 | J70: 0 | K70: 0 | L70: -34275 | M70: -34275 | N70: -34275 | O70: -34275 | P70: -39065 | Q70: EPAM | R70: N
A71: General Rate Case Revenue Requirement Memorandum Account (GRCMA) | B71: D.24-12-074, AL6430-G-A | C71: 0 | D71: 0 | E71: 0 | F71: 0 | G71: 0 | H71: 0 | I71: 0 | J71: 0 | K71: 0 | L71: 250251.014 | M71: 250251.014 | N71: 250251.014 | O71: 250251.014 | P71: 268194.7297 | Q71: EPAM | R71: Y
A72: GRCMA Sub allocation for AB32 Admin Fees | B72: D.24-12-074, AL6430-G-A | C72: 0 | D72: 0 | E72: 0 | F72: 0 | G72: 0 | H72: 0 | I72: 0 | J72: 0 | K72: 0 | L72: 4736 | M72: 4736 | N72: 4736 | O72: 4736 | P72: 5075.584789 | Q72: ECPT | R72: Y
A73: GRCMA PSEP Local Transmission | B73: D.24-12-074, AL6430-G-A | C73: 0 | D73: 0 | E73: 0 | F73: 0 | G73: 0 | H73: 0 | I73: 0 | J73: 0 | K73: 0 | L73: -5984.28996 | M73: -5984.28996 | N73: -5984.28996 | O73: -5984.28996 | P73: -6413.380721 | Q73: Local Transmission | R73: Y
A74: GRCMA PSEP Distribution | B74: D.24-12-074, AL6430-G-A | L74: 28198.07333 | M74: 28198.07333 | N74: 28198.07333 | O74: 28198.07333 | P74: 30219.9561 | Q74: Distribution | R74: Y
A75: Distribution Integrity Management Program Memorandum Account (DIMPBA) | B75: Res. G-3610, AL 6526-G | O75: 109584.2006 | P75: 110147.0198 | Q75: EPAM | R75: Y
A76: Castastrophic Event Memorandum Account (CEMA) | B76: D.25-07-009 , AL 6526-G | O76: 16987.42734 | P76: 17587.18444 | Q76: ECPT | R76: N
A77: Covid-19 Pandemic Protections Memorandum Account(CPPMA) | B77: D.25-07-009 , AL 6526-G | O77: 6395.500315 | P77: 6423.936189 | Q77: ECPT | R77: N
A78: Research Development and Demonstration Expense Account (RDDEA) | P78: -1693.556502 | Q78: ECPT
A79: CONCURRENT APPLICATION SYSTEM BALANCING ACCOUNT (CASBA) | P79: 3492.201834 | Q79: ECPT
A80: TOBMA | P80: 112.8488276 | Q80: ECPT
A81: Subtotal Safety Affordability Reliability | C81: =SUM(C9:C52) -> 3230710.353 | D81: =SUM(D9:D55) -> 3673812.442 | E81: 3539196.676 | F81: 3539196.676 | G81: 3523347.194 | H81: 3727501.655 | I81: 3886558.033 | J81: 3886558.033 | K81: 3799215.553 | L81: =SUM(L9:L74) -> 4400110.339 | M81: =SUM(M9:M74) -> 4377765.922 | N81: =SUM(N9:N74) -> 4447769.543 | O81: =SUM(O9:O77) -> 4580736.671 | P81: =SUM(P9:P80) -> 4826840.014
A83: Public Policy Proceedings
A84: AB32 Fees (subtracted from base margin and allocated here) | B84: D.24-12-074 | C84: 5107.071894 | D84: 5106.20142 | E84: 5106.20142 | F84: 5106.20142 | G84: 5106.20142 | H84: 5106.20142 | I84: 5106.20142 | J84: 5106.20142 | K84: 5106.20142 | L84: 12693.43568 | M84: 12693.43568 | N84: 12693.43568 | O84: 12693.43568 | P84: 13143.04926 | Q84: ECPT adjusted | R84: N
A85: Green House Gas Balancing Account (GHGBA) - Company Gas Compressor Revenue Requirement | B85: AL 6578-G, D.24-07-009 | C85: 2676.455882 | D85: 2388.575096 | E85: 2388.575096 | F85: 2388.575096 | G85: 2388.575096 | H85: 2684.159829 | I85: 2684.159829 | J85: 2684.159829 | K85: 2343.979971 | L85: 2342.863399 | M85: 2342.863399 | N85: 2342.863399 | O85: 2342.863399 | P85: 1857.050704 | Q85: ECPT | R85: N
A86: Green House Gas Balancing Account (GHGBA) - End User Revenue Requirement | B86: AL 6578-G, D.24-07-009 | C86: 421911.6559 | D86: 451660.1517 | E86: 451660.1517 | F86: 451660.1517 | G86: 451660.1517 | H86: 659841.4191 | I86: 659841.4191 | J86: 659841.4191 | K86: 824457.2471 | L86: 824179.789 | M86: 824179.789 | N86: 824179.789 | O86: 824179.789 | P86: 584265.0454 | Q86: GHG End User | R86: N
A87: Green House Gas Balancing Account (GHGBA) - LUAF Revenue Requirement | B87: AL 6578-G, D.24-07-009 | C87: 11523.70083 | D87: 11338.59513 | E87: 11338.59513 | F87: 11338.59513 | G87: 11338.59513 | H87: 14890.28891 | I87: 14890.28891 | J87: 14890.28891 | K87: 14055.21946 | L87: 14049.97763 | M87: 14051.9063 | N87: 14051.9063 | O87: 14051.9063 | P87: 10326.97539 | Q87: 47% Res (LUAF, Other) | R87: N
A88: Green House Gas Balancing Account (GHGBA) - Company Gas Compressor | B88: AL 6578-G, D.24-07-009 | C88: 110.1068734 | D88: -783.1516359 | E88: -783.1516359 | F88: -783.1516359 | G88: -783.1516359 | H88: -2420.193065 | I88: -2420.193065 | J88: -2420.193065 | K88: -291.5247478 | L88: -291.3858778 | M88: -1198.637723 | N88: -291.3858778 | O88: -291.3858778 | P88: -1198.637723 | Q88: ECPT | R88: Y
A89: Green House Gas Balancing Account (GHGBA) - End User | B89: AL 6578-G, D.24-07-009 | C89: 24082.11232 | D89: -22703.37309 | E89: -22703.37309 | F89: -22703.37309 | G89: -22703.37309 | H89: 85564.85517 | I89: 85564.85517 | J89: 85564.85517 | K89: -99825.58576 | L89: -99791.99104 | M89: -99791.99104 | N89: -99791.99104 | O89: -99791.99104 | P89: -132006.025 | Q89: GHG End User | R89: Y
A90: Green House Gas Balancing Account (GHGBA) - LUAF | B90: AL 6578-G, D.24-07-009 | C90: 96.16147584 | D90: 3057.496701 | E90: 3057.496701 | F90: 3057.496701 | G90: 3057.496701 | H90: -7155.03039 | I90: -7155.03039 | J90: -7155.03039 | K90: -17279.4012 | L90: -17272.95692 | M90: -7887.255533 | N90: -17275.32802 | O90: -17275.32802 | P90: -7887.255533 | Q90: 47% Res (LUAF, Other) | R90: Y
A91: New Envirnomental Regulatory Balancing Account (NERBA) - Admin Fees Subaccount | B91: AL 6578-G, D.24-07-009 | C91: 3566.9059 | D91: 5564.392269 | E91: 5564.392269 | F91: 5564.392269 | G91: 5564.392269 | H91: 8886.02153 | I91: 8886.02153 | J91: 8886.02153 | K91: 7220.333492 | L91: -656.1735167 | M91: -656.1735167 | N91: -656.1735167 | O91: -656.1735167 | P91: 0 | Q91: ECPT adjusted | R91: Y
A92: New Environmental Regulatory Balancing Account (NERBA) - Leak Detection & Repair (LDAR) sub-account | B92: AL 6578-G, D.24-07-009 | C92: 1979.707886 | D92: 6090.186376 | E92: 6090.186376 | F92: 6090.186376 | G92: 6090.196959 | H92: 8805.759368 | I92: 8805.759326 | J92: 8805.759326 | K92: 10802.02753 | L92: -981.6438092 | M92: -981.6438092 | N92: -981.6438092 | O92: -981.6438092 | P92: 0 | Q92: EPAM | R92: Y
A93: New Envirnomental Regulatory Balancing Account (NERBA) -Natural Gas Leak Abatement Program | B93: AL 6578-G, D.24-07-009 | C93: -2147.512017 | D93: 0 | E93: 0 | F93: 0 | G93: 0 | H93: 0 | I93: 0 | J93: 0 | K93: 0 | L93: 0 | M93: 0 | N93: 0 | O93: 0 | P93: 0 | Q93: EPAM | R93: Y
A94: New Envirnomental Regulatory Balancing Account (NERBA) - Subpart W | B94: AL 6578-G, D.24-07-009 | C94: 0 | D94: 0 | E94: 0 | F94: 0 | G94: 0 | H94: 0 | I94: 0 | J94: 0 | K94: -889.9950251 | L94: -889.6695427 | M94: -889.6695427 | N94: -889.6695427 | O94: -889.6695427 | P94: 0 | Q94: EPAM | R94: Y
A95: New Environmental Regulatory Balancing Account (NERBA) - MS4 sub-account | B95: AL 6578-G, D.24-07-009 | C95: 0 | D95: 0 | E95: 0 | F95: 0 | G95: 0 | H95: 0 | I95: 0 | J95: 0 | K95: -843.0909638 | L95: -842.7831119 | M95: -842.7831119 | N95: -842.7831119 | O95: -842.7831119 | P95: 0 | Q95: EPAM | R95: Y
A96: NGV, EG,TLS Adjustment | B96: AL 6578-G, D.24-07-009 | C96: -6644.931817 | D96: 10390.21603 | E96: 10421.05359 | F96: 10394.54613 | G96: 10191.85865 | H96: 8841 | I96: 8840.838331 | J96: 9275.991556 | K96: 5762.69625 | L96: 8112.407169 | M96: 7976.952669 | N96: 7976.952669 | O96: 7081.611316 | P96: 13438.44252 | Q96: Non-Residential | R96: N
A97: Natural Gas Leak Abatement Program Revenue Requirement | B97: AL 5915G, AL 6071, AL 6168-G, AL 5950-G-B, AL 6538-G | C97: 86446.46472 | D97: 86431.16512 | E97: 86431.16512 | F97: 107531.4643 | G97: 107531.6511 | H97: 104496.8284 | I97: 104898.9772 | J97: 104898.9772 | K97: 104604.1877 | L97: 104565.979 | M97: 104565.979 | N97: 104565.979 | O97: 76253.64988 | P97: 73813.50653 | Q97: EPAM | R97: N
A98: Biogas Conditioning/Upgrading Svcs Bal Acct (BCSBA) | B98: D. 13-12-040 | C98: -48.66967436 | D98: 0 | E98: 0 | F98: 0 | G98: 0 | H98: 0 | I98: 0 | J98: 0 | K98: 0 | L98: 0 | M98: 0 | N98: 0 | O98: 0 | P98: 0 | Q98: EPAM | R98: Y
A99: Diary Biomethane Project Balancing Account (DBPBA) | B99: D. 17-12-004 | C99: 45457.03256 | D99: 34573.34405 | E99: 34573.34405 | F99: 34573.34405 | G99: 34573.40413 | H99: 1209.195516 | I99: 1209.195511 | J99: 1209.195511 | K99: 0 | L99: 0 | M99: 0 | N99: 0 | O99: 0 | P99: 0 | Q99: EPAM | R99: Y
A100: Diary Biomethane Project Memorandum Account (DBPMA) | B100: D. 17-12-004 | C100: =0 -> 0 | D100: 8114.656258 | E100: 8114.656258 | F100: 8114.656258 | G100: 8114.670358 | H100: 5125.990541 | I100: 5125.990516 | J100: 5125.990516 | K100: 6275.667165 | L100: 6273.374869 | M100: 6273.374869 | N100: 6273.374869 | O100: 6273.374869 | P100: 7226.690928 | Q100: EPAM | R100: Y
A101: California Solar Iniative Thermal Memorandum Account (CSITPMA) | B101: D. 10-01-022 | C101: 1411.38197 | D101: 1113.860455 | E101: 1113.860455 | F101: 1113.860455 | G101: 1113.860455 | H101: 1391.107979 | I101: 1391.107979 | J101: 1391.107979 | K101: 2681.917678 | L101: 2681.015121 | M101: 2681.015121 | N101: 2681.015121 | O101: 2681.015121 | P101: 0 | Q101: ECPT adjusted | R101: Y
A102: Biomethane Procurement and Pilot Costs Balancing Account (BPPCBA) - Program Administrative Costs Subaccount | B102: D. 22-02-025 | C102: 0 | D102: 0 | E102: 0 | F102: 0 | G102: 0 | H102: 237.0470114 | I102: 237.0470103 | J102: 237.0470103 | K102: 0 | L102: 0 | M102: 0 | N102: 0 | O102: 0 | P102: 221.7179173 | Q102: EPAM | R102: Y
A103: Biomethane Cost Incentive Pgm Balancing Acct (BCIPBA) | B103: D.16-12-043/D.19-12-009 | C103: 10172.0832 | D103: 0 | E103: 0 | F103: 0 | G103: 0 | H103: 0 | I103: 0 | J103: 0 | K103: 0 | L103: 0 | M103: 0 | N103: 0 | O103: 0 | P103: 0 | Q103: ECPT | R103: Y
A109: PPPS Programs
A110: California Alternate Rates for Energy (CARE) | B110: D.21-06-015, AL 6552, AL 6552 | C110: 229388.1321 | D110: 199514.8915 | E110: 199514.8915 | F110: 199514.8915 | G110: 199514.8915 | H110: 272251.1514 | I110: 272251.1514 | J110: 272251.1514 | K110: 172216.7959 | L110: =K110 -> 172216.7959 | M110: =L110 -> 172216.7959 | N110: =M110 -> 172216.7959 | O110: =N110 -> 172216.7959 | P110: =233746857.432307/1000 -> 233746.8574 | Q110: Public Purpose Programs | R110: N
A111: Energy Efficiency | B111: AL 6552, AL 6552 | C111: 107144.935 | D111: 166906.526 | E111: 166906.526 | F111: 166906.526 | G111: 166906.526 | H111: 165866.6393 | I111: 165866.6393 | J111: 165866.6393 | K111: 166375.8554 | L111: =K111 -> 166375.8554 | M111: 166375.8554 | N111: 166375.8554 | O111: 166375.8554 | P111: =180152527.235/1000 -> 180152.5272 | Q111: Public Purpose Programs | R111: N
A112: RD&D | B112: AL 6552, AL 6552 | C112: 12406.90965 | D112: 12264.872 | E112: 12264.872 | F112: 12264.872 | G112: 12264.872 | H112: 11380.1178 | I112: 11380.1178 | J112: 11380.1178 | K112: 12881.5384 | L112: 12881.5384 | M112: 12881.5384 | N112: 12881.5384 | O112: 12881.5384 | P112: =12358324.1723602/1000 -> 12358.32417 | Q112: Public Purpose Programs | R112: N
A113: Bureau Of Equalization BOE | B113: AL 6552, AL 6552 | C113: 547.65497 | D113: 520.254 | E113: 520.254 | F113: 520.254 | G113: 520.254 | H113: 476.44983 | I113: 476.44983 | J113: 476.44983 | K113: 488.24258 | L113: 488.24258 | M113: 488.24258 | N113: 488.24258 | O113: 488.24258 | P113: =493167.59/1000 -> 493.16759 | Q113: Public Purpose Programs | R113: N
A114: Energy Savings Assistance | B114: D.21-06-015, AL 6552, AL 6552 | C114: =0 -> 0 | D114: 80174.20485 | E114: 80174.20485 | F114: 80174.20485 | G114: 80174.20485 | H114: 111508.2999 | I114: 111508.2999 | J114: 111508.2999 | K114: 107549.884 | L114: 107549.884 | M114: 107549.884 | N114: 107549.884 | O114: 107549.884 | P114: =111591626/1000 -> 111591.626 | Q114: Public Purpose Programs | R114: N
A115: SJVDGPMA/BA Account | B115: AL 6552, AL 6552 | C115: =0 -> 0 | D115: 806.165 | E115: 806.165 | F115: 806.165 | G115: 806.165 | H115: 90.978 | I115: 90.978 | J115: 90.978 | K115: -62.068 | L115: -62.068 | M115: -62.068 | N115: -62.068 | O115: -62.068 | P115: =391634/1000 -> 391.634 | Q115: Public Purpose Programs | R115: N
A122: Subtotal Public Policy | C122: =SUM(C84:C121) -> 955187.3596 | D122: =SUM(D84:D121) -> 1062529.229 | E122: 1062560.067 | F122: 1083633.858 | G122: 1083431.443 | H122: 1459078.288 | I122: 1459480.275 | J122: 1459915.428 | K122: 1323630.128 | L122: 1313622.486 | M122: 1321967.41 | N122: 1313486.589 | O122: =SUM(O84:O121) -> 1284278.919 | P122: =SUM(P84:P121) -> 1101934.697
A124: EOR | B124: D.24-07-009, AL 6578-G | C124: -19696.02666 | D124: -25124.8966 | E124: -25124.8966 | F124: -25233.57266 | G124: -24742.54871 | H124: -32255.65745 | I124: -33347.39611 | J124: -33358.5985 | K124: -26721.64885 | L124: -13185.84461 | Q124: EPAM
A126: Procurement
A127: Procurement | B127: D.98-07-068 | C127: =TotalCoreVolume*SetUp!I11 -> 1219114.387 | D127: 3301020.314 | E127: 3301020.314 | F127: 3301020.314 | G127: 3301020.314 | H127: 1800955.444 | I127: 1800955.444 | J127: 1800955.444 | K127: 1049134.325 | L127: =K127 -> 1049134.325 | M127: =L127 -> 1049134.325 | N127: =M127 -> 1049134.325 | O127: =N127 -> 1049134.325 | P127: =TotalCoreVolume*SetUp!I5 -> 1175646.374 | Q127: Core Procurement
A133: Subtotal Procurement | C133: =SUM(C127:C132) -> 1219114.387 | D133: 3301020.314 | E133: 3301020.314 | F133: 3301020.314 | G133: 3301020.314 | H133: 1800955.444 | I133: 1800955.444 | J133: =SUM(J127:J132) -> 1800955.444 | K133: =SUM(K127:K132) -> 1049134.325 | L133: 1049134.325 | M133: 1049134.325 | N133: 1049134.325 | O133: 1049134.325 | P133: =SUM(P127:P132) -> 1175646.374
A135: Total Authorized Revenue | C135: =C81+C122+C133+C124 -> 5385316.072 | D135: 8012237.088 | E135: 7877652.16 | F135: 7898617.276 | G135: 7883056.402 | H135: 6955279.729 | I135: 7113646.355 | J135: 7114070.306 | K135: 6145258.357 | L135: 6749681.306 | M135: 6748867.657 | N135: 6810390.457 | O135: 6914149.915 | P135: 7104421.085

Sheet Incremental Rev Req
A2: ='Authorized Rev Req'!A2 -> Annual Period 2026
A3: Reporting Date: Quarter Ended March 31
A5: Current Revenue Requirement ($000): | B5: ='Authorized Rev Req'!O135 -> 6914149.915
A6: Current Revenue Requirement Effective: | B6: ='Authorized Rev Req'!P5 -> 2026-01-01
A7: Approved Application(s), Implemented Since Jan 1 or To Be Implemented
A8: Filing Description | B8: Proceeding | C8: Authority for Revenue Requirement | D8: Authorized Revenue Requirement with FF&U ($000) | E8: Revenue Recovery Mechanism | F8: Authorized Revenue Requirement with FF&U ($000) - Breakout by Year | K8: Existing or New Item (if existing, use delta from prior for rate impact) | O8: =TRANSPOSE(YearsForRateImpact) -> 2026 | P8: 2027 | Q8: 2028 | R8: 2029 | S8: 2030
A9: Safety Affordability Reliability Proceedings | D9: 2026-01-01 | F9: =TRANSPOSE(YearsForRateImpact) -> 2026 | G9: 2027 | H9: 2028 | I9: 2029 | J9: 2030 | N9: =RevRecoveryMechanisms -> Core Procurement | O9: =SUMIF($E$10:$E$119,N9,$F$10:$F$119) -> 1175646.374 | P9: =SUMIF($E$10:$E$119,N9,$G$10:$G$119) -> 1175646.374 | Q9: =SUMIF($E$10:$E$119,N9,$H$10:$H$119) -> 1175646.374 | R9: =SUMIF($E$10:$E$119,N9,$I$10:$I$119) -> 1175646.374 | S9: =SUMIF($E$10:$E$119,N9,$J$10:$J$119) -> 1175646.374
A10: ='Authorized Rev Req'!A9 -> Total Allocated Base Margin | C10: ='Authorized Rev Req'!B9 -> D.24-12-074 | D10: =F10 -> 3332575.223 | E10: ='Authorized Rev Req'!Q9 -> Allocated Base Margin | F10: ='Authorized Rev Req'!P9 -> 3332575.223 | G10: =F10*1.03 -> 3432552.48 | H10: =G10 -> 3432552.48 | I10: =H10 -> 3432552.48 | J10: 3432552.48 | K10: Existing | N10: Allocated Base Margin | O10: 3332575.223 | P10: 3432552.48 | Q10: 3432552.48 | R10: 3432552.48 | S10: 3432552.48
A11: ='Authorized Rev Req'!A10 -> Pipeline Safety Enhancement Plan (PSEP) GRC - Local Transmission (subtracted from Base Margin and allocated here) | C11: ='Authorized Rev Req'!B10 -> D.24-12-074 | D11: =F11 -> 12895.03754 | E11: ='Authorized Rev Req'!Q10 -> Local Transmission | F11: ='Authorized Rev Req'!P10 -> 12895.03754 | G11: 0 | H11: =0 -> 0 | I11: =0 -> 0 | J11: =0 -> 0 | K11: Existing | N11: Distribution | O11: 162866.7998 | P11: 0 | Q11: 0 | R11: 0 | S11: 0
A12: ='Authorized Rev Req'!A11 -> Pipeline Safety Enhancement Plan (PSEP) GRC -Distribution (subtracted from Base Margin and allocated here) | C12: ='Authorized Rev Req'!B11 -> D.24-12-074 | D12: 75901.43 | E12: ='Authorized Rev Req'!Q11 -> Distribution | F12: ='Authorized Rev Req'!P11 -> 75901.43 | G12: 0 | H12: =0 -> 0 | I12: =0 -> 0 | J12: =0 -> 0 | K12: Existing | N12: ECPT adjusted | O12: 13143.04926 | P12: 0 | Q12: 0 | R12: 0 | S12: 0
A13: ='Authorized Rev Req'!A12 -> Company Use Gas: Other | C13: ='Authorized Rev Req'!B12 -> D.24-07-009, AL 6578-G,AL 6340-G-A | D13: 1370.02982 | E13: ='Authorized Rev Req'!Q12 -> ECPT | F13: ='Authorized Rev Req'!P12 -> 1370.02982 | G13: 0 | H13: =0 -> 0 | I13: =0 -> 0 | J13: =0 -> 0 | K13: Existing | N13: Local Transmission | O13: 21550.00983 | P13: 0 | Q13: 0 | R13: 0 | S13: 0
A14: ='Authorized Rev Req'!A13 -> Company Use Gas: Storage Load Balancing | C14: ='Authorized Rev Req'!B13 -> D.24-07-009, AL 6578-G,AL 6340-G-A | D14: 3921.458183 | E14: ='Authorized Rev Req'!Q13 -> ECPT | F14: ='Authorized Rev Req'!P13 -> 3921.458183 | G14: 0 | H14: =0 -> 0 | I14: =0 -> 0 | J14: =0 -> 0 | K14: Existing | N14: SGIP | O14: 0 | P14: 0 | Q14: 0 | R14: 0 | S14: 0
A15: ='Authorized Rev Req'!A14 -> Exchange Revenues & Interutility Transactions | C15: ='Authorized Rev Req'!B14 -> D.24-07-009, AL 6578-G,AL 6340-G-A | D15: 1729.18 | E15: ='Authorized Rev Req'!Q14 -> ECPT | F15: ='Authorized Rev Req'!P14 -> 1729.18 | G15: 0 | H15: =0 -> 0 | I15: =0 -> 0 | J15: =0 -> 0 | K15: Existing | N15: GHG End User | O15: 452259.0205 | P15: 0 | Q15: 0 | R15: 0 | S15: 0
A16: ='Authorized Rev Req'!A15 -> Unaccounted For (UAF) Gas | C16: ='Authorized Rev Req'!B15 -> D.24-07-009, AL 6578-G,AL 6340-G-A | D16: 34534.09669 | E16: ='Authorized Rev Req'!Q15 -> 47% Res (LUAF, Other) | F16: ='Authorized Rev Req'!P15 -> 34534.09669 | G16: 0 | H16: =0 -> 0 | I16: =0 -> 0 | J16: =0 -> 0 | K16: Existing | N16: Public Purpose Programs | O16: 538734.1364 | P16: 540058.731 | Q16: 540058.731 | R16: 540058.731 | S16: 540058.731
A17: ='Authorized Rev Req'!A16 -> Well Incidents & Surface Leaks | C17: ='Authorized Rev Req'!B16 -> D.24-07-009, AL 6578-G,AL 6340-G-A | D17: 48.55643375 | E17: ='Authorized Rev Req'!Q16 -> ECPT | F17: ='Authorized Rev Req'!P16 -> 48.55643375 | G17: 0 | H17: =0 -> 0 | I17: =0 -> 0 | J17: =0 -> 0 | K17: Existing | N17: Backbone Transmission | O17: 733567.714 | P17: 0 | Q17: 0 | R17: 0 | S17: 0
A18: ='Authorized Rev Req'!A17 -> SCG PSEP - 2017 Forecast Application RevReq Capital Cost - Local Transmission | C18: ='Authorized Rev Req'!B17 -> D.24-07-009, AL 6578-G,AL 6340-G-A | D18: 326.1633798 | E18: ='Authorized Rev Req'!Q17 -> Local Transmission | F18: ='Authorized Rev Req'!P17 -> 326.1633798 | G18: 0 | H18: =0 -> 0 | I18: =0 -> 0 | J18: =0 -> 0 | K18: Existing | N18: 47% Res (LUAF, Other) | O18: 36973.81655 | P18: 0 | Q18: 0 | R18: 0 | S18: 0
A19: ='Authorized Rev Req'!A18 -> SCG PSEP - 2017 Forecast Application RevReq Capital Cost - Distribution | C19: ='Authorized Rev Req'!B18 -> D.24-07-009, AL 6578-G,AL 6340-G-A | D19: 22390.62039 | E19: ='Authorized Rev Req'!Q18 -> Distribution | F19: ='Authorized Rev Req'!P18 -> 22390.62039 | G19: 0 | H19: =0 -> 0 | I19: =0 -> 0 | J19: =0 -> 0 | K19: Existing | N19: ECPT | O19: 125791.3941 | P19: 18101.18444 | Q19: 0 | R19: 0 | S19: 0
A20: ='Authorized Rev Req'!A19 -> AMI Balancing Account (AMIBA) | C20: ='Authorized Rev Req'!B19 -> D.24-07-009, AL 6578-G,AL 6340-G-A | D20: 0 | E20: ='Authorized Rev Req'!Q19 -> EPAM | F20: ='Authorized Rev Req'!P19 -> 0 | G20: 0 | H20: =0 -> 0 | I20: =0 -> 0 | J20: =0 -> 0 | K20: Existing | N20: EPAM | O20: 458584.7084 | P20: 113366.9211 | Q20: 46568.63343 | R20: 50528.70619 | S20: 54417.13631
A21: ='Authorized Rev Req'!A20 -> Residential Uncollectible Balancing Account (RUBA) | C21: ='Authorized Rev Req'!B20 -> D.24-07-009, AL 6578-G,AL 6340-G-A | D21: 35757.56904 | E21: ='Authorized Rev Req'!Q20 -> ECPT | F21: ='Authorized Rev Req'!P20 -> 35757.56904 | G21: 0 | H21: =0 -> 0 | I21: =0 -> 0 | J21: =0 -> 0 | K21: Existing | N21: CFCA | O21: -19419.92483 | P21: 0 | Q21: 0 | R21: 0 | S21: 0
A22: ='Authorized Rev Req'!A21 -> Affiliate Transfer Fee Account (ATFA) | C22: ='Authorized Rev Req'!B21 -> D.24-07-009, AL 6578-G,AL 6340-G-A | D22: -123.3238121 | E22: ='Authorized Rev Req'!Q21 -> EPAM | F22: ='Authorized Rev Req'!P21 -> -123.3238121 | G22: 0 | H22: =0 -> 0 | I22: =0 -> 0 | J22: =0 -> 0 | K22: Existing | N22: Non-Residential | O22: 72148.7639 | P22: 0 | Q22: 0 | R22: 0 | S22: 0
A23: ='Authorized Rev Req'!A22 -> Core Fixed Cost Account - Non NGV (CFCA) | C23: ='Authorized Rev Req'!B22 -> D.24-07-009, AL 6578-G,AL 6340-G-A | D23: -19419.92483 | E23: ='Authorized Rev Req'!Q22 -> CFCA | F23: ='Authorized Rev Req'!P22 -> -19419.92483 | G23: 0 | H23: =0 -> 0 | I23: =0 -> 0 | J23: =0 -> 0 | K23: Existing | N23: Total | O23: =SUM(O9:O22) -> 7104421.085 | P23: =SUM(P9:P22) -> 5279725.691 | Q23: 5194826.218 | R23: 5198786.291 | S23: 5202674.721
A24: ='Authorized Rev Req'!A23 -> Core Fixed Cost Account - NGV (CFCA) | C24: ='Authorized Rev Req'!B23 -> D.24-07-009, AL 6578-G,AL 6340-G-A | D24: -5390.941498 | E24: ='Authorized Rev Req'!Q23 -> Non-Residential | F24: ='Authorized Rev Req'!P23 -> -5390.941498 | G24: 0 | H24: =0 -> 0 | I24: =0 -> 0 | J24: =0 -> 0 | K24: Existing | N24: CPUC Fee | O24: =RegulatoryFee -> 0.0035
A25: ='Authorized Rev Req'!A24 -> Core Fixed Cost Account - C&I Shortfall (CFCA) | C25: ='Authorized Rev Req'!B24 -> D.24-07-009, AL 6578-G,AL 6340-G-A | D25: 0 | E25: ='Authorized Rev Req'!Q24 -> Non-Residential | F25: ='Authorized Rev Req'!P24 -> 0 | G25: 0 | H25: =0 -> 0 | I25: =0 -> 0 | J25: =0 -> 0 | K25: Existing | L25: FFU Rate | N25: Check | O25: =O23-F120 -> 0 | P25: =P23-G120 -> 0 | Q25: =Q23-H120 -> 0 | R25: =R23-I120 -> 0 | S25: =S23-J120 -> 0
A26: ='Authorized Rev Req'!A25 -> Economic Practicality Shortfall Memorandum Account (EPSMA) | C26: ='Authorized Rev Req'!B25 -> D.24-07-009, AL 6578-G,AL 6340-G-A | D26: 826.9374504 | E26: ='Authorized Rev Req'!Q25 -> Non-Residential | F26: ='Authorized Rev Req'!P25 -> 826.9374504 | G26: 0 | H26: =0 -> 0 | I26: =0 -> 0 | J26: =0 -> 0 | K26: Existing | L26: 1.016221981
A27: ='Authorized Rev Req'!A26 -> Enhanced Oil Recovery Account (EORA) | C27: ='Authorized Rev Req'!B26 -> D.24-07-009, AL 6578-G,AL 6340-G-A | D27: 1954.541932 | E27: ='Authorized Rev Req'!Q26 -> EPAM | F27: ='Authorized Rev Req'!P26 -> 1954.541932 | G27: 0 | H27: =0 -> 0 | I27: =0 -> 0 | J27: =0 -> 0 | K27: Existing
A28: ='Authorized Rev Req'!A27 -> Hazardous Substance Cost-Recovery Account (HSCRA) | C28: ='Authorized Rev Req'!B27 -> D.24-07-009, AL 6578-G,AL 6340-G-A | D28: 7761.780065 | E28: ='Authorized Rev Req'!Q27 -> ECPT | F28: ='Authorized Rev Req'!P27 -> 7761.780065 | G28: 0 | H28: =0 -> 0 | I28: =0 -> 0 | J28: =0 -> 0 | K28: Existing
A29: ='Authorized Rev Req'!A28 -> Intervenor Award Memorandum Account (IAMA) | C29: ='Authorized Rev Req'!B28 -> D.24-07-009, AL 6578-G,AL 6340-G-A | D29: 1776.943012 | E29: ='Authorized Rev Req'!Q28 -> ECPT | F29: ='Authorized Rev Req'!P28 -> 1776.943012 | G29: 0 | H29: =0 -> 0 | I29: =0 -> 0 | J29: =0 -> 0 | K29: Existing
A30: ='Authorized Rev Req'!A29 -> Master Meter Balancing Account (MMBA) | C30: ='Authorized Rev Req'!B29 -> D.24-07-009, AL 6578-G,AL 6340-G-A | D30: 36981.86751 | E30: ='Authorized Rev Req'!Q29 -> EPAM | F30: ='Authorized Rev Req'!P29 -> 36981.86751 | G30: 41038.83714 | H30: 46568.63343 | I30: 50528.70619 | J30: 54417.13631 | K30: Existing
A31: ='Authorized Rev Req'!A30 -> Noncore Fixed Cost Account (NFCA) Margin | C31: ='Authorized Rev Req'!B30 -> D.24-07-009, AL 6578-G,AL 6340-G-A | D31: 34083.17961 | E31: ='Authorized Rev Req'!Q30 -> Non-Residential | F31: ='Authorized Rev Req'!P30 -> 34083.17961 | G31: 0 | H31: =0 -> 0 | I31: =0 -> 0 | J31: =0 -> 0 | K31: Existing
A32: ='Authorized Rev Req'!A31 -> Noncore Fixed Cost Account (NFCA) Nonmargin | C32: ='Authorized Rev Req'!B31 -> D.24-07-009, AL 6578-G,AL 6340-G-A | D32: 29191.14582 | E32: ='Authorized Rev Req'!Q31 -> Non-Residential | F32: ='Authorized Rev Req'!P31 -> 29191.14582 | G32: 0 | H32: =0 -> 0 | I32: =0 -> 0 | J32: =0 -> 0 | K32: Existing
A33: ='Authorized Rev Req'!A32 -> Integrated Transmission Balancing Account (ITBA) Margin | C33: ='Authorized Rev Req'!B32 -> D.24-07-009, AL 6578-G,AL 6340-G-A | D33: 23442.79176 | E33: ='Authorized Rev Req'!Q32 -> ECPT | F33: ='Authorized Rev Req'!P32 -> 23442.79176 | G33: 0 | H33: =0 -> 0 | I33: =0 -> 0 | J33: =0 -> 0 | K33: Existing
A34: ='Authorized Rev Req'!A33 -> Compressor Station Fuel and Power Balancing Account (CFPBA) | C34: ='Authorized Rev Req'!B33 -> D.24-07-009, AL 6578-G,AL 6340-G-A | D34: 7653.029145 | E34: ='Authorized Rev Req'!Q33 -> ECPT | F34: ='Authorized Rev Req'!P33 -> 7653.029145 | G34: 0 | H34: =0 -> 0 | I34: =0 -> 0 | J34: =0 -> 0 | K34: Existing
A35: ='Authorized Rev Req'!A34 -> Compression Services Balancing Account (CSBA) | C35: ='Authorized Rev Req'!B34 -> D.24-07-009, AL 6578-G,AL 6340-G-A | D35: 0 | E35: ='Authorized Rev Req'!Q34 -> Non-Residential | F35: ='Authorized Rev Req'!P34 -> 0 | G35: 0 | H35: =0 -> 0 | I35: =0 -> 0 | J35: =0 -> 0 | K35: Existing
A36: ='Authorized Rev Req'!A35 -> Company-Use Fuel for Load Balancing Account (CUFLBA) | C36: ='Authorized Rev Req'!B35 -> D.24-07-009, AL 6578-G,AL 6340-G-A | D36: 4353.129968 | E36: ='Authorized Rev Req'!Q35 -> ECPT | F36: ='Authorized Rev Req'!P35 -> 4353.129968 | G36: 0 | H36: =0 -> 0 | I36: =0 -> 0 | J36: =0 -> 0 | K36: Existing
A37: ='Authorized Rev Req'!A36 -> Noncore Storage Balancing Account (NSBA) | C37: ='Authorized Rev Req'!B36 -> D.24-07-009, AL 6578-G,AL 6340-G-A | D37: -5315.859414 | E37: ='Authorized Rev Req'!Q36 -> ECPT | F37: ='Authorized Rev Req'!P36 -> -5315.859414 | G37: 0 | H37: =0 -> 0 | I37: =0 -> 0 | J37: =0 -> 0 | K37: Existing
A38: ='Authorized Rev Req'!A37 -> Pension Balancing Account (PBA) | C38: ='Authorized Rev Req'!B37 -> D.24-07-009, AL 6578-G,AL 6340-G-A | D38: 18057.26853 | E38: ='Authorized Rev Req'!Q37 -> EPAM | F38: ='Authorized Rev Req'!P37 -> 18057.26853 | G38: 0 | H38: =0 -> 0 | I38: =0 -> 0 | J38: =0 -> 0 | K38: Existing
A39: ='Authorized Rev Req'!A38 -> PBOP Balancing Account (PBOPBA) | C39: ='Authorized Rev Req'!B38 -> D.24-07-009, AL 6578-G,AL 6340-G-A | D39: -2875.804299 | E39: ='Authorized Rev Req'!Q38 -> EPAM | F39: ='Authorized Rev Req'!P38 -> -2875.804299 | G39: 0 | H39: =0 -> 0 | I39: =0 -> 0 | J39: =0 -> 0 | K39: Existing
A40: ='Authorized Rev Req'!A39 -> Safety Enhancement Capital Cost Balancing Account (SECCBA) - Local Transmission | C40: ='Authorized Rev Req'!B39 -> D.24-07-009, AL 6578-G,AL 6340-G-A | D40: 14514.30038 | E40: ='Authorized Rev Req'!Q39 -> Local Transmission | F40: ='Authorized Rev Req'!P39 -> 14514.30038 | G40: 0 | H40: =0 -> 0 | I40: =0 -> 0 | J40: =0 -> 0 | K40: Existing
A41: ='Authorized Rev Req'!A40 -> Safety Enhancement Capital Cost Balancing Account (SECCBA) - Distribution | C41: ='Authorized Rev Req'!B40 -> D.24-07-009, AL 6578-G,AL 6340-G-A | D41: 32887.99375 | E41: ='Authorized Rev Req'!Q40 -> Distribution | F41: ='Authorized Rev Req'!P40 -> 32887.99375 | G41: 0 | H41: =0 -> 0 | I41: =0 -> 0 | J41: =0 -> 0 | K41: Existing
A42: ='Authorized Rev Req'!A41 -> Safety Enhancement Expense Balancing Account (SEEBA) - Local Transmission | C42: ='Authorized Rev Req'!B41 -> D.24-07-009, AL 6578-G,AL 6340-G-A | D42: 227.8892489 | E42: ='Authorized Rev Req'!Q41 -> Local Transmission | F42: ='Authorized Rev Req'!P41 -> 227.8892489 | G42: 0 | H42: =0 -> 0 | I42: =0 -> 0 | J42: =0 -> 0 | K42: Existing
A43: ='Authorized Rev Req'!A42 -> Safety Enhancement Expense Balancing Account (SEEBA) - Distribution | C43: ='Authorized Rev Req'!B42 -> D.24-07-009, AL 6578-G,AL 6340-G-A | D43: 1466.799596 | E43: ='Authorized Rev Req'!Q42 -> Distribution | F43: ='Authorized Rev Req'!P42 -> 1466.799596 | G43: 0 | H43: =0 -> 0 | I43: =0 -> 0 | J43: =0 -> 0 | K43: Existing
A44: ='Authorized Rev Req'!A43 -> Research Royalty Memorandum Account (RRMA) | C44: ='Authorized Rev Req'!B43 -> D.24-07-009, AL 6578-G,AL 6340-G-A | D44: -138.632172 | E44: ='Authorized Rev Req'!Q43 -> EPAM | F44: ='Authorized Rev Req'!P43 -> -138.632172 | G44: 0 | H44: =0 -> 0 | I44: =0 -> 0 | J44: =0 -> 0 | K44: Existing
A45: ='Authorized Rev Req'!A44 -> Self-Generation Program Memorandum Account (SGPMA) | C45: ='Authorized Rev Req'!B44 -> D.24-07-009, AL 6578-G,AL 6340-G-A | D45: 0 | E45: ='Authorized Rev Req'!Q44 -> SGIP | F45: ='Authorized Rev Req'!P44 -> 0 | G45: 0 | H45: =0 -> 0 | I45: =0 -> 0 | J45: =0 -> 0 | K45: Existing
A46: ='Authorized Rev Req'!A45 -> System Operator Gas Account (SOGA) | C46: ='Authorized Rev Req'!B45 -> D.24-07-009, AL 6578-G,AL 6340-G-A | D46: 175.6142216 | E46: ='Authorized Rev Req'!Q45 -> ECPT | F46: ='Authorized Rev Req'!P45 -> 175.6142216 | G46: 0 | H46: =0 -> 0 | I46: =0 -> 0 | J46: =0 -> 0 | K46: Existing
A47: ='Authorized Rev Req'!A46 -> Rewards & Penalties Balancing Account (RPBA) | C47: ='Authorized Rev Req'!B46 -> D.24-07-009, AL 6578-G,AL 6340-G-A | D47: -287.8656269 | E47: ='Authorized Rev Req'!Q46 -> EPAM | F47: ='Authorized Rev Req'!P46 -> -287.8656269 | G47: 0 | H47: =0 -> 0 | I47: =0 -> 0 | J47: =0 -> 0 | K47: Existing
A48: ='Authorized Rev Req'!A47 -> Liability Insurance Premium Balancing Account (LIPBA) | C48: ='Authorized Rev Req'!B47 -> D.24-07-009, AL 6578-G,AL 6340-G-A | D48: -14655.81643 | E48: ='Authorized Rev Req'!Q47 -> EPAM | F48: ='Authorized Rev Req'!P47 -> -14655.81643 | G48: 0 | H48: =0 -> 0 | I48: =0 -> 0 | J48: =0 -> 0 | K48: Existing
A49: ='Authorized Rev Req'!A48 -> NonCore Backbone Transmission | C49: ='Authorized Rev Req'!B48 -> D.24-07-009, AL 6578-G,AL 6340-G-A | D49: 733567.714 | E49: ='Authorized Rev Req'!Q48 -> Backbone Transmission | F49: ='Authorized Rev Req'!P48 -> 733567.714 | G49: =0 -> 0 | H49: =0 -> 0 | I49: =0 -> 0 | J49: =0 -> 0 | K49: Existing
A50: ='Authorized Rev Req'!A49 -> Storage Integrity Management Program Balancing Account (SIMPBA) Balance | C50: ='Authorized Rev Req'!B49 -> D.22-07-016, D.20-02-045, AL6578-G | D50: 0 | E50: ='Authorized Rev Req'!Q49 -> EPAM | F50: ='Authorized Rev Req'!P49 -> 0 | G50: 0 | H50: =0 -> 0 | I50: =0 -> 0 | J50: =0 -> 0 | K50: Existing
A51: ='Authorized Rev Req'!A50 -> On-Bill Financing Balancing Account (OBFBA) | C51: ='Authorized Rev Req'!B50 -> D.19-03-001, AL 5853-A, AL 6578-G | D51: 0 | E51: ='Authorized Rev Req'!Q50 -> EPAM | F51: ='Authorized Rev Req'!P50 -> 0 | G51: 0 | H51: =0 -> 0 | I51: =0 -> 0 | J51: =0 -> 0 | K51: Existing
A52: ='Authorized Rev Req'!A51 -> System Reliability Memorandum Account (SRMA) | C52: ='Authorized Rev Req'!B51 -> D.24-07-009, AL 6578-G,AL 6340-G-A | D52: 10194.45691 | E52: ='Authorized Rev Req'!Q51 -> ECPT | F52: ='Authorized Rev Req'!P51 -> 10194.45691 | G52: 0 | H52: =0 -> 0 | I52: =0 -> 0 | J52: =0 -> 0 | K52: Existing
A53: ='Authorized Rev Req'!A52 -> Distributed Energy Resources Svcs Bal Account (DERSBA) | C53: ='Authorized Rev Req'!B52 -> D.24-07-009, AL 6578-G,AL 6340-G-A | D53: -2.100555577 | E53: ='Authorized Rev Req'!Q52 -> EPAM | F53: ='Authorized Rev Req'!P52 -> -2.100555577 | G53: 0 | H53: =0 -> 0 | I53: =0 -> 0 | J53: =0 -> 0 | K53: Existing
A54: ='Authorized Rev Req'!A53 -> Percentage of Income Payment Plan Balancing Account (PIPPBA) | C54: ='Authorized Rev Req'!B53 -> D.24-07-009, AL 6578-G,AL 6340-G-A | D54: 1186.653792 | E54: ='Authorized Rev Req'!Q53 -> ECPT | F54: ='Authorized Rev Req'!P53 -> 1186.653792 | G54: =0 -> 0 | H54: =0 -> 0 | I54: =0 -> 0 | J54: =0 -> 0 | K54: Existing
A55: ='Authorized Rev Req'!A54 -> Transmission Integrity Management Program Memorandum Account (TIMPBA) Local Transmission | C55: ='Authorized Rev Req'!B54 -> AL 6325-G, D.24-07-009,AL 6578-G,AL 6340-G-A | D55: 0 | E55: ='Authorized Rev Req'!Q54 -> Local Transmission | F55: ='Authorized Rev Req'!P54 -> 0 | G55: =0 -> 0 | H55: =0 -> 0 | I55: =0 -> 0 | J55: =0 -> 0 | K55: Existing
A56: ='Authorized Rev Req'!A55 -> San Joaquin Valley Disadvantaged Communities Bal Acct (SJVDACBA) - TTM subaccount | C56: ='Authorized Rev Req'!B55 -> D.18-12-015, AL 6578-G | D56: 79.44856166 | E56: ECPT | F56: ='Authorized Rev Req'!P55 -> 79.44856166 | G56: =0 -> 0 | H56: =0 -> 0 | I56: =0 -> 0 | J56: =0 -> 0 | K56: Existing
A57: ='Authorized Rev Req'!A56 -> AB802 Memorandum Account (AB802MA) | C57: ='Authorized Rev Req'!B56 -> D.24-12-074, AL6430-G-A | D57: 0 | E57: EPAM | F57: ='Authorized Rev Req'!P56 -> 0 | G57: 0 | H57: 0 | I57: 0 | J57: 0 | K57: Existing
A58: ='Authorized Rev Req'!A57 -> AMIBA Escalated Jurisdiction Cost Subaccount | C58: ='Authorized Rev Req'!B57 -> D.24-12-074, AL6430-G-A | D58: 0 | E58: EPAM | F58: ='Authorized Rev Req'!P57 -> 0 | G58: 0 | H58: 0 | I58: 0 | J58: 0 | K58: Existing
A59: ='Authorized Rev Req'!A58 -> AMIBA Deployment and Post-Deployment subaccounts | C59: ='Authorized Rev Req'!B58 -> D.24-12-074, AL6430-G-A | D59: -864.0916432 | E59: EPAM | F59: ='Authorized Rev Req'!P58 -> -864.0916432 | G59: 0 | H59: 0 | I59: 0 | J59: 0 | K59: Existing
A60: ='Authorized Rev Req'!A59 -> Core Gas Balancing Memorandum Account (CGBMA) | C60: ='Authorized Rev Req'!B59 -> D.24-12-074, AL6430-G-A | D60: 0 | E60: EPAM | F60: ='Authorized Rev Req'!P59 -> 0 | G60: 0 | H60: 0 | I60: 0 | J60: 0 | K60: Existing
A61: ='Authorized Rev Req'!A60 -> Diary Biomethane Solicitation Develop. Memorandum Account (DBSDMA) | C61: ='Authorized Rev Req'!B60 -> D.24-12-074, AL6430-G-A | D61: 0 | E61: EPAM | F61: ='Authorized Rev Req'!P60 -> 0 | G61: 0 | H61: 0 | I61: 0 | J61: 0 | K61: Existing
A62: ='Authorized Rev Req'!A61 -> Injection Enhancement Cost Memorandum Account (IECMA) | C62: ='Authorized Rev Req'!B61 -> D.24-12-074, AL6430-G-A | D62: 0 | E62: EPAM | F62: ='Authorized Rev Req'!P61 -> 0 | G62: 0 | H62: 0 | I62: 0 | J62: 0 | K62: Existing
A63: ='Authorized Rev Req'!A62 -> Residential Disconnect Memorandum Account (RDMA) | C63: ='Authorized Rev Req'!B62 -> D.24-12-074, AL6430-G-A | D63: 0 | E63: EPAM | F63: ='Authorized Rev Req'!P62 -> 0 | G63: 0 | H63: 0 | I63: 0 | J63: 0 | K63: Existing
A64: ='Authorized Rev Req'!A63 -> Wildfire Customer Protection Memorandum Account (WCPMA) | C64: ='Authorized Rev Req'!B63 -> D.24-12-074, AL6430-G-A | D64: 0 | E64: EPAM | F64: ='Authorized Rev Req'!P63 -> 0 | G64: 0 | H64: 0 | I64: 0 | J64: 0 | K64: Existing
A65: ='Authorized Rev Req'!A64 -> Avoided Cost Calculator Update Memorandum Account (ACCUMA) | C65: ='Authorized Rev Req'!B64 -> D.24-12-074, AL6430-G-A | D65: 0 | E65: EPAM | F65: ='Authorized Rev Req'!P64 -> 0 | G65: 0 | H65: 0 | I65: 0 | J65: 0 | K65: Existing
A66: ='Authorized Rev Req'!A65 -> California Consumer Privacy Act Memorandum Account (CCPAMA) | C66: ='Authorized Rev Req'!B65 -> D.24-12-074, AL6430-G-A | D66: 0 | E66: EPAM | F66: ='Authorized Rev Req'!P65 -> 0 | G66: 0 | H66: 0 | I66: 0 | J66: 0 | K66: Existing
A67: ='Authorized Rev Req'!A66 -> Emergency Customer Protection Memorandum Account (ECPMA) | C67: ='Authorized Rev Req'!B66 -> D.24-12-074, AL6430-G-A | D67: 0 | E67: EPAM | F67: ='Authorized Rev Req'!P66 -> 0 | G67: 0 | H67: 0 | I67: 0 | J67: 0 | K67: Existing
A68: ='Authorized Rev Req'!A67 -> Morongo Right of Way Memorandum Account (MROWMA) | C68: ='Authorized Rev Req'!B67 -> D.24-12-074, AL6430-G-A | D68: 0 | E68: EPAM | F68: ='Authorized Rev Req'!P67 -> 0 | G68: 0 | H68: 0 | I68: 0 | J68: 0 | K68: Existing
A69: ='Authorized Rev Req'!A68 -> Residential Disconnect Protections Memorandum Account (RDPMA) | C69: ='Authorized Rev Req'!B68 -> D.24-12-074, AL6430-G-A | D69: 0 | E69: EPAM | F69: ='Authorized Rev Req'!P68 -> 0 | G69: 0 | H69: 0 | I69: 0 | J69: 0 | K69: Existing
A70: ='Authorized Rev Req'!A69 -> Aliso Canyon Memorandum Account (ACMA) | C70: ='Authorized Rev Req'!B69 -> D.24-12-074, AL6430-G-A | D70: 0 | E70: EPAM | F70: ='Authorized Rev Req'!P69 -> 0 | G70: 0 | H70: 0 | I70: 0 | J70: 0 | K70: Existing
A71: ='Authorized Rev Req'!A70 -> Cost of Capital Adjustment (Subtracted from Base Margin) | C71: ='Authorized Rev Req'!B70 -> D.24-12-074, AL6430-G-A | D71: -39065 | E71: EPAM | F71: ='Authorized Rev Req'!P70 -> -39065 | G71: 0 | H71: 0 | I71: 0 | J71: 0 | K71: Existing
A72: ='Authorized Rev Req'!A71 -> General Rate Case Revenue Requirement Memorandum Account (GRCMA) | C72: ='Authorized Rev Req'!B71 -> D.24-12-074, AL6430-G-A | D72: 268194.7297 | E72: EPAM | F72: ='Authorized Rev Req'!P71 -> 268194.7297 | G72: 0 | H72: 0 | I72: 0 | J72: 0 | K72: Existing
A73: ='Authorized Rev Req'!A72 -> GRCMA Sub allocation for AB32 Admin Fees | C73: ='Authorized Rev Req'!B72 -> D.24-12-074, AL6430-G-A | D73: 5075.584789 | E73: ECPT | F73: ='Authorized Rev Req'!P72 -> 5075.584789 | G73: 0 | H73: 0 | I73: 0 | J73: 0 | K73: Existing
A74: ='Authorized Rev Req'!A73 -> GRCMA PSEP Local Transmission | C74: ='Authorized Rev Req'!B73 -> D.24-12-074, AL6430-G-A | D74: -6413.380721 | E74: Local Transmission | F74: ='Authorized Rev Req'!P73 -> -6413.380721 | G74: 0 | H74: 0 | I74: 0 | J74: 0 | K74: Existing
A75: ='Authorized Rev Req'!A74 -> GRCMA PSEP Distribution | C75: ='Authorized Rev Req'!B74 -> D.24-12-074, AL6430-G-A | D75: =F75 -> 30219.9561 | E75: Distribution | F75: ='Authorized Rev Req'!P74 -> 30219.9561 | G75: 0 | H75: 0 | I75: 0 | J75: 0 | K75: Existing
A76: ='Authorized Rev Req'!A75 -> Distribution Integrity Management Program Memorandum Account (DIMPBA) | C76: ='Authorized Rev Req'!B75 -> Res. G-3610, AL 6526-G | D76: 110147.0198 | E76: ='Authorized Rev Req'!Q75 -> EPAM | F76: ='Authorized Rev Req'!P75 -> 110147.0198 | G76: 0 | H76: 0 | I76: 0 | J76: 0 | K76: Existing
A77: ='Authorized Rev Req'!A76 -> Castastrophic Event Memorandum Account (CEMA) | C77: ='Authorized Rev Req'!B76 -> D.25-07-009 , AL 6526-G | D77: 17587.18444 | E77: ='Authorized Rev Req'!Q76 -> ECPT | F77: ='Authorized Rev Req'!P76 -> 17587.18444 | G77: =514+F77 -> 18101.18444 | H77: 0 | I77: 0 | J77: 0 | K77: Existing
A78: ='Authorized Rev Req'!A77 -> Covid-19 Pandemic Protections Memorandum Account(CPPMA) | C78: ='Authorized Rev Req'!B77 -> D.25-07-009 , AL 6526-G | D78: 6423.936189 | E78: ='Authorized Rev Req'!Q77 -> ECPT | F78: ='Authorized Rev Req'!P77 -> 6423.936189 | G78: 0 | H78: 0 | I78: 0 | J78: 0 | K78: Existing
A79: ='Authorized Rev Req'!A78 -> Research Development and Demonstration Expense Account (RDDEA) | C79: ='Authorized Rev Req'!B78 -> 0 | D79: -1693.556502 | E79: ='Authorized Rev Req'!Q78 -> ECPT | F79: ='Authorized Rev Req'!P78 -> -1693.556502 | G79: 0 | H79: 0 | I79: 0 | J79: 0 | K79: Existing
A80: ='Authorized Rev Req'!A79 -> CONCURRENT APPLICATION SYSTEM BALANCING ACCOUNT (CASBA) | C80: ='Authorized Rev Req'!B79 -> 0 | D80: 3492.201834 | E80: ='Authorized Rev Req'!Q79 -> ECPT | F80: ='Authorized Rev Req'!P79 -> 3492.201834 | G80: 0 | H80: 0 | I80: 0 | J80: 0 | K80: Existing
A81: ='Authorized Rev Req'!A80 -> TOBMA | C81: ='Authorized Rev Req'!B80 -> 0 | D81: 112.8488276 | E81: ='Authorized Rev Req'!Q80 -> ECPT | F81: ='Authorized Rev Req'!P80 -> 112.8488276 | G81: 0 | H81: 0 | I81: 0 | J81: 0 | K81: Existing
D82: 0
A83: ='Authorized Rev Req'!A83 -> Public Policy Proceedings | D83: 0
A84: ='Authorized Rev Req'!A84 -> AB32 Fees (subtracted from base margin and allocated here) | C84: ='Authorized Rev Req'!B84 -> D.24-12-074 | D84: 13143.04926 | E84: ='Authorized Rev Req'!Q84 -> ECPT adjusted | F84: ='Authorized Rev Req'!P84 -> 13143.04926 | G84: =0 -> 0 | H84: =0 -> 0 | I84: =H84 -> 0 | J84: =I84 -> 0 | K84: Existing
A85: ='Authorized Rev Req'!A85 -> Green House Gas Balancing Account (GHGBA) - Company Gas Compressor Revenue Requirement | C85: ='Authorized Rev Req'!B85 -> AL 6578-G, D.24-07-009 | D85: 1857.050704 | E85: ='Authorized Rev Req'!Q85 -> ECPT | F85: ='Authorized Rev Req'!P85 -> 1857.050704 | G85: =0 -> 0 | H85: =0 -> 0 | I85: =H85 -> 0 | J85: =I85 -> 0 | K85: Existing
A86: ='Authorized Rev Req'!A86 -> Green House Gas Balancing Account (GHGBA) - End User Revenue Requirement | C86: ='Authorized Rev Req'!B86 -> AL 6578-G, D.24-07-009 | D86: 584265.0454 | E86: ='Authorized Rev Req'!Q86 -> GHG End User | F86: ='Authorized Rev Req'!P86 -> 584265.0454 | G86: =0 -> 0 | H86: =0 -> 0 | I86: 0 | J86: 0 | K86: Existing
A87: ='Authorized Rev Req'!A87 -> Green House Gas Balancing Account (GHGBA) - LUAF Revenue Requirement | C87: ='Authorized Rev Req'!B87 -> AL 6578-G, D.24-07-009 | D87: 10326.97539 | E87: ='Authorized Rev Req'!Q87 -> 47% Res (LUAF, Other) | F87: ='Authorized Rev Req'!P87 -> 10326.97539 | G87: =0 -> 0 | H87: =0 -> 0 | I87: 0 | J87: 0 | K87: Existing
A88: ='Authorized Rev Req'!A88 -> Green House Gas Balancing Account (GHGBA) - Company Gas Compressor | C88: ='Authorized Rev Req'!B88 -> AL 6578-G, D.24-07-009 | D88: -1198.637723 | E88: ='Authorized Rev Req'!Q88 -> ECPT | F88: ='Authorized Rev Req'!P88 -> -1198.637723 | G88: =0 -> 0 | H88: =0 -> 0 | I88: 0 | J88: 0 | K88: Existing
A89: ='Authorized Rev Req'!A89 -> Green House Gas Balancing Account (GHGBA) - End User | C89: ='Authorized Rev Req'!B89 -> AL 6578-G, D.24-07-009 | D89: -132006.025 | E89: ='Authorized Rev Req'!Q89 -> GHG End User | F89: ='Authorized Rev Req'!P89 -> -132006.025 | G89: =0 -> 0 | H89: =0 -> 0 | I89: 0 | J89: 0 | K89: Existing
A90: ='Authorized Rev Req'!A90 -> Green House Gas Balancing Account (GHGBA) - LUAF | C90: ='Authorized Rev Req'!B90 -> AL 6578-G, D.24-07-009 | D90: -7887.255533 | E90: ='Authorized Rev Req'!Q90 -> 47% Res (LUAF, Other) | F90: ='Authorized Rev Req'!P90 -> -7887.255533 | G90: =0 -> 0 | H90: =0 -> 0 | I90: 0 | J90: 0 | K90: Existing
A91: ='Authorized Rev Req'!A91 -> New Envirnomental Regulatory Balancing Account (NERBA) - Admin Fees Subaccount | C91: ='Authorized Rev Req'!B91 -> AL 6578-G, D.24-07-009 | D91: 0 | E91: ='Authorized Rev Req'!Q91 -> ECPT adjusted | F91: ='Authorized Rev Req'!P91 -> 0 | G91: =0 -> 0 | H91: =0 -> 0 | I91: 0 | J91: 0 | K91: Existing
A92: ='Authorized Rev Req'!A92 -> New Environmental Regulatory Balancing Account (NERBA) - Leak Detection & Repair (LDAR) sub-account | C92: ='Authorized Rev Req'!B92 -> AL 6578-G, D.24-07-009 | D92: 0 | E92: ='Authorized Rev Req'!Q92 -> EPAM | F92: ='Authorized Rev Req'!P92 -> 0 | G92: =0 -> 0 | H92: =0 -> 0 | I92: 0 | J92: 0 | K92: Existing
A93: ='Authorized Rev Req'!A93 -> New Envirnomental Regulatory Balancing Account (NERBA) -Natural Gas Leak Abatement Program | C93: ='Authorized Rev Req'!B93 -> AL 6578-G, D.24-07-009 | D93: 0 | E93: ='Authorized Rev Req'!Q93 -> EPAM | F93: ='Authorized Rev Req'!P93 -> 0 | G93: =0 -> 0 | H93: =0 -> 0 | I93: 0 | J93: 0 | K93: Existing
A94: ='Authorized Rev Req'!A94 -> New Envirnomental Regulatory Balancing Account (NERBA) - Subpart W | C94: ='Authorized Rev Req'!B94 -> AL 6578-G, D.24-07-009 | D94: 0 | E94: EPAM | F94: ='Authorized Rev Req'!P94 -> 0 | K94: Existing
A95: ='Authorized Rev Req'!A95 -> New Environmental Regulatory Balancing Account (NERBA) - MS4 sub-account | C95: ='Authorized Rev Req'!B95 -> AL 6578-G, D.24-07-009 | D95: 0 | E95: EPAM | F95: ='Authorized Rev Req'!P95 -> 0 | K95: Existing
A96: ='Authorized Rev Req'!A96 -> NGV, EG,TLS Adjustment | C96: ='Authorized Rev Req'!B96 -> AL 6578-G, D.24-07-009 | D96: 13438.44252 | E96: ='Authorized Rev Req'!Q96 -> Non-Residential | F96: ='Authorized Rev Req'!P96 -> 13438.44252 | G96: =0 -> 0 | H96: =0 -> 0 | I96: 0 | J96: 0 | K96: Existing
A97: ='Authorized Rev Req'!A97 -> Natural Gas Leak Abatement Program Revenue Requirement | C97: ='Authorized Rev Req'!B97 -> AL 5915G, AL 6071, AL 6168-G, AL 5950-G-B, AL 6538-G | D97: 73813.50653 | E97: ='Authorized Rev Req'!Q97 -> EPAM | F97: ='Authorized Rev Req'!P97 -> 73813.50653 | G97: 72328.084 | H97: 0 | I97: 0 | J97: 0 | K97: Existing
A98: ='Authorized Rev Req'!A98 -> Biogas Conditioning/Upgrading Svcs Bal Acct (BCSBA) | C98: ='Authorized Rev Req'!B98 -> D. 13-12-040 | D98: 0 | E98: ='Authorized Rev Req'!Q98 -> EPAM | F98: ='Authorized Rev Req'!P98 -> 0 | G98: =0 -> 0 | H98: =0 -> 0 | I98: =H98 -> 0 | J98: =I98 -> 0 | K98: Existing
A99: ='Authorized Rev Req'!A99 -> Diary Biomethane Project Balancing Account (DBPBA) | C99: ='Authorized Rev Req'!B99 -> D. 17-12-004 | D99: 0 | E99: ='Authorized Rev Req'!Q99 -> EPAM | F99: ='Authorized Rev Req'!P99 -> 0 | G99: =0 -> 0 | H99: =0 -> 0 | I99: 0 | J99: 0 | K99: Existing
A100: ='Authorized Rev Req'!A100 -> Diary Biomethane Project Memorandum Account (DBPMA) | C100: ='Authorized Rev Req'!B100 -> D. 17-12-004 | D100: 7226.690928 | E100: ='Authorized Rev Req'!Q100 -> EPAM | F100: ='Authorized Rev Req'!P100 -> 7226.690928 | G100: =0 -> 0 | H100: =0 -> 0 | I100: 0 | J100: 0 | K100: Existing
A101: ='Authorized Rev Req'!A101 -> California Solar Iniative Thermal Memorandum Account (CSITPMA) | C101: ='Authorized Rev Req'!B101 -> D. 10-01-022 | D101: 0 | E101: ='Authorized Rev Req'!Q101 -> ECPT adjusted | F101: ='Authorized Rev Req'!P101 -> 0 | G101: =0 -> 0 | H101: =0 -> 0 | I101: 0 | J101: 0 | K101: Existing
A102: ='Authorized Rev Req'!A102 -> Biomethane Procurement and Pilot Costs Balancing Account (BPPCBA) - Program Administrative Costs Subaccount | C102: ='Authorized Rev Req'!B102 -> D. 22-02-025 | D102: 221.7179173 | E102: EPAM | F102: ='Authorized Rev Req'!P102 -> 221.7179173 | G102: =0 -> 0 | H102: =0 -> 0 | I102: =H102 -> 0 | J102: =I102 -> 0 | K102: Existing
A103: ='Authorized Rev Req'!A103 -> Biomethane Cost Incentive Pgm Balancing Acct (BCIPBA) | C103: ='Authorized Rev Req'!B103 -> D.16-12-043/D.19-12-009 | D103: 0 | E103: ECPT | F103: ='Authorized Rev Req'!P103 -> 0 | G103: 0 | H103: 0 | I103: 0 | J103: 0 | K103: Existing
A104: PPPS Programs
A105: ='Authorized Rev Req'!A110 -> California Alternate Rates for Energy (CARE) | C105: ='Authorized Rev Req'!B110 -> D.21-06-015, AL 6552, AL 6552 | D105: =F105 -> 233746.8574 | E105: ='Authorized Rev Req'!Q110 -> Public Purpose Programs | F105: ='Authorized Rev Req'!P110 -> 233746.8574 | G105: 233746.857 | H105: =G105 -> 233746.857 | I105: =H105 -> 233746.857 | J105: 233746.857 | K105: Existing
A106: ='Authorized Rev Req'!A111 -> Energy Efficiency | C106: ='Authorized Rev Req'!B111 -> AL 6552, AL 6552 | D106: =F106 -> 180152.5272 | E106: ='Authorized Rev Req'!Q111 -> Public Purpose Programs | F106: ='Authorized Rev Req'!P111 -> 180152.5272 | G106: 180152.527 | H106: =G106 -> 180152.527 | I106: 180152.527 | J106: 180152.527 | K106: Existing
A107: ='Authorized Rev Req'!A112 -> RD&D | C107: ='Authorized Rev Req'!B112 -> AL 6552, AL 6552 | D107: 12358.32417 | E107: ='Authorized Rev Req'!Q112 -> Public Purpose Programs | F107: ='Authorized Rev Req'!P112 -> 12358.32417 | G107: 12358.324 | H107: 12358.324 | I107: 12358.324 | J107: 12358.324 | K107: Existing
A108: ='Authorized Rev Req'!A113 -> Bureau Of Equalization BOE | C108: ='Authorized Rev Req'!B113 -> AL 6552, AL 6552 | D108: 493.16759 | E108: ='Authorized Rev Req'!Q113 -> Public Purpose Programs | F108: ='Authorized Rev Req'!P113 -> 493.16759 | G108: 493.168 | H108: 493.168 | I108: 493.168 | J108: 493.168 | K108: Existing
A109: ='Authorized Rev Req'!A114 -> Energy Savings Assistance | C109: ='Authorized Rev Req'!B114 -> D.21-06-015, AL 6552, AL 6552 | D109: 111591.626 | E109: ='Authorized Rev Req'!Q114 -> Public Purpose Programs | F109: ='Authorized Rev Req'!P114 -> 111591.626 | G109: 111591.626 | H109: 111591.626 | I109: 111591.626 | J109: 111591.626 | K109: Existing
A110: ='Authorized Rev Req'!A115 -> SJVDGPMA/BA Account | C110: ='Authorized Rev Req'!B115 -> AL 6552, AL 6552 | D110: 391.634 | E110: ='Authorized Rev Req'!Q115 -> Public Purpose Programs | F110: ='Authorized Rev Req'!P115 -> 391.634 | G110: 1716.229 | H110: =G110 -> 1716.229 | I110: =H110 -> 1716.229 | J110: =I110 -> 1716.229 | K110: Existing
A113: ='Authorized Rev Req'!A124 -> EOR | C113: ='Authorized Rev Req'!B124 -> D.24-07-009, AL 6578-G | D113: =F113 -> 0 | E113: ='Authorized Rev Req'!Q124 -> EPAM | F113: ='Authorized Rev Req'!O125 -> 0 | G113: =0 -> 0 | H113: =0 -> 0 | I113: =H113 -> 0 | J113: =I113 -> 0 | K113: Existing
A116: Procurement | C116: ='Authorized Rev Req'!B127 -> D.98-07-068 | D116: =F116 -> 1175646.374 | E116: ='Authorized Rev Req'!Q127 -> Core Procurement | F116: ='Authorized Rev Req'!P127 -> 1175646.374 | G116: =F116 -> 1175646.374 | H116: =G116 -> 1175646.374 | I116: =H116 -> 1175646.374 | J116: =I116 -> 1175646.374 | K116: Existing | L116: FFU Feb 1
L117: 1.016221981
A120: Total Approved, Implemented Since Jan 1 or To Be Implemented | D120: =SUM(D10:D119) -> 7104421.085 | F120: =SUM(F10:F119) -> 7104421.085 | G120: =SUM(G10:G119) -> 5279725.691 | H120: =SUM(H10:H119) -> 5194826.218 | I120: =SUM(I10:I119) -> 5198786.291 | J120: =SUM(J10:J119) -> 5202674.721
A122: CPUC Fee | E122: CPUC Fee | F122: =RegulatoryFee -> 0.0035
A125: Pending Application(s) Not Yet Approved
A126: Filing Description | B126: Proceeding | C126: Basis of Revenue Requirement Forecast: Application, Amended Application , Amended Testimony, Proposed Settlement Agreement, Proposed Decision | D126: Proposed Revenue Requirement with FF&U ($000) | E126: Proposed Revenue Recovery Mechanism | F126: Incremental Revenue Requirement with FF&U ($000) - Breakout by Year | K126: Existing or New Item (if existing, use delta from prior for rate impact)
A127: Safety Affordability Reliability Proceedings | F127: =TRANSPOSE(YearsForRateImpact) -> 2026 | G127: 2027 | H127: 2028 | I127: 2029 | J127: 2030 | L127: Include in Impact
A128: DIMP Interim Recovery | B128: A.25-08-008 | C128: Application | D128: =SUM(F128,G128,H128,I128,J128) -> 59100 | E128: EPAM | F128: =35.5*1000 -> 35500 | G128: =59100-F128 -> 23600 | K128: Existing | L128: =IFERROR(VLOOKUP(A128,Summary!$A$7:$C$15,3,FALSE),"-") -> Y
A129: GRC PFM | B129: A.25-05-015/016 | C129: Application | D129: =SUM(F129:J129) -> 527112 | E129: EPAM | F129: 209106 | G129: 318006 | K129: Existing | L129: =IFERROR(VLOOKUP(A129,Summary!$A$7:$C$15,3,FALSE),"-") -> Y
A130: TIMPBA Application | B130: A.25-04-020 | C130: Application | D130: =SUM(F130:J130) -> 173808.37 | E130: Backbone Transmission | G130: 173808.37 | K130: Existing | L130: =IFERROR(VLOOKUP(A130,Summary!$A$7:$C$15,3,FALSE),"-") -> Y | N130: Authorized + Pending
A131: 2024 GRC Track 3 (PSEP and WMPMA) | B131: A.25-05-015/016 | C131: Application | D131: 132245 | E131: EPAM | G131: 132245 | K131: Existing | L131: =IFERROR(VLOOKUP(A131,Summary!$A$7:$C$15,3,FALSE),"-") -> Y | O131: =TRANSPOSE(YearsForRateImpact) -> 2026 | P131: 2027 | Q131: 2028 | R131: 2029 | S131: 2030
A132: Application for Incremental Funding For CIS Replacement | B132: A.25-05-004 | C132: Application | D132: 21000 | E132: EPAM | G132: =0.49*21000 -> 10290 | H132: =0.51*21000 -> 10710 | K132: Existing | L132: Y | N132: =RevRecoveryMechanisms -> Core Procurement | O132: =SUM(O9,SUMIFS(F$128:F$155,$E$128:$E$155,$N132,$L$128:$L$155,"y")) -> 1175646.374 | P132: =SUM(P9,SUMIFS(G$128:G$155,$E$128:$E$155,$N132,$L$129:$L$156,"y")) -> 1175646.374 | Q132: =SUM(Q9,SUMIFS(H$128:H$155,$E$128:$E$155,$N132,$L$129:$L$156,"y")) -> 1175646.374 | R132: =SUM(R9,SUMIFS(I$128:I$155,$E$128:$E$155,$N132,$L$129:$L$156,"y")) -> 1175646.374 | S132: =SUM(S9,SUMIFS(J$128:J$155,$E$128:$E$155,$N132,$L$129:$L$156,"y")) -> 1175646.374
A133: Low Income Bridge Application | B133: A.25-06-012 | C133: Application | D133: =SUM(F133,G133,H133,I133,J133) -> 20690.27751 | E133: EPAM | H133: 20690.27751 | K133: NEW | L133: Y | N133: Allocated Base Margin | O133: =SUM(O10,SUMIFS(F$128:F$155,$E$128:$E$155,$N133,$L$128:$L$155,"y")) -> 3332575.223 | P133: 3432552.48 | Q133: 3432552.48 | R133: 3432552.48 | S133: 3432552.48
A134: Line Extension Allowance Application | B134: A.25-07-001 | C134: Application | D134: 488.7430154 | E134: EPAM | I134: 34.96921632 | J134: 453.7737991 | K134: NEW | L134: Y | N134: Distribution | O134: =SUM(O11,SUMIFS(F$128:F$155,$E$128:$E$155,$N134,$L$128:$L$155,"y")) -> 162866.7998 | P134: 0 | Q134: 0 | R134: 0 | S134: 0
A135: Angeles Link Phase 1 | B135: A-25-06-011 | C135: Application | D135: 24720 | E135: ECPT | H135: =24.72*1000 -> 24720 | K135: NEW | L135: Y | N135: ECPT adjusted | O135: =SUM(O12,SUMIFS(F$128:F$155,$E$128:$E$155,$N135,$L$129:$L$156,"y")) -> 13143.04926 | P135: 0 | Q135: 0 | R135: 0 | S135: 0
A136: MASS Energy | B136: A.25-08-009 | C136: Application | D136: 9972.956 | E136: EPAM | G136: 9972.956 | K136: NEW | L136: =IFERROR(VLOOKUP(A136,Summary!$A$7:$C$15,3,FALSE),"-") -> Y | N136: Local Transmission | O136: =SUM(O13,SUMIFS(F$128:F$155,$E$128:$E$155,$N136,$L$128:$L$155,"y")) -> 21550.00983 | P136: 0 | Q136: 0 | R136: 0 | S136: 0
A137: Angeles Link Phase 2 | B137: A.24-12-011 | C137: Application | D137: =SUM(F137:J137) -> 273335.4699 | E137: ECPT | G137: 89484.33836 | H137: 118326.434 | I137: 65524.69747 | K137: NEW | L137: =IFERROR(VLOOKUP(A137,Summary!$A$7:$C$19,3,FALSE),"-") -> Y | N137: SGIP | O137: 0 | P137: 0 | Q137: 0 | R137: 0 | S137: 0
A138: TIMPBA (SDGE) | B138: A.25-02-012 | C138: Application | D138: =SUM(F138:J138) -> 7400 | E138: Backbone Transmission | F138: 7400 | G138: 0 | H138: 0 | I138: 0 | J138: 0 | K138: Existing | L138: =IFERROR(VLOOKUP(A138,Summary!$A$7:$C$19,3,FALSE),"-") -> Y | N138: GHG End User | O138: 452259.0205 | P138: 0 | Q138: 0 | R138: 0 | S138: 0
A139: Advanced Meter Infrastruture Replacment Program (AMIR) | B139: A25-12-019 | C139: Application | D139: =SUM(F139:J139) -> 291067.193 | E139: EPAM | G139: =13643874/1000 -> 13643.874 | H139: =14372320/1000 -> 14372.32 | I139: =63160688/1000 -> 63160.688 | J139: =199890311/1000 -> 199890.311 | K139: NEW | L139: =IFERROR(VLOOKUP(A139,Summary!$A$7:$C$19,3,FALSE),"-") -> Y | N139: Public Purpose Programs | O139: 538734.1364 | P139: 540058.731 | Q139: 540058.731 | R139: 540058.731 | S139: 540058.731
L140: =IFERROR(VLOOKUP(A140,Summary!$A$7:$C$15,3,FALSE),"-") -> - | N140: Backbone Transmission | O140: 740967.714 | P140: 173808.37 | Q140: 0 | R140: 0 | S140: 0
L141: =IFERROR(VLOOKUP(A141,Summary!$A$7:$C$15,3,FALSE),"-") -> - | N141: 47% Res (LUAF, Other) | O141: 36973.81655 | P141: 0 | Q141: 0 | R141: 0 | S141: 0
A142: Public Policy Proceedings | L142: =IFERROR(VLOOKUP(A142,Summary!$A$7:$C$15,3,FALSE),"-") -> - | N142: ECPT | O142: 125791.3941 | P142: 107585.5228 | Q142: 143046.434 | R142: 65524.69747 | S142: 0
A143: Cost Allocation Proceeding | B143: A.25-09-014 | C143: Application | N143: EPAM | O143: 703190.7084 | P143: =SUM(P20,SUMIFS(G$128:G$156,$E$128:$E$156,$N143,$L$128:$L$156,"y")) -> 621124.7511 | Q143: 178583.4581 | R143: =SUM(R20,SUMIFS(I$128:I$155,$E$128:$E$155,$N143,$L$129:$L$156,"y")) -> 50563.67541 | S143: 54870.91011
N144: CFCA | O144: -19419.92483 | P144: =SUM(P21,SUMIFS(G$128:G$155,$E$128:$E$155,$N144,$L$129:$L$156,"y")) -> 0 | Q144: =SUM(Q21,SUMIFS(H$128:H$155,$E$128:$E$155,$N144,$L$129:$L$156,"y")) -> 0 | R144: 0 | S144: 0
N145: Non-Residential | O145: 72148.7639 | P145: =SUM(P22,SUMIFS(G$128:G$155,$E$128:$E$155,$N145,$L$129:$L$156,"y")) -> 0 | Q145: =SUM(Q22,SUMIFS(H$128:H$155,$E$128:$E$155,$N145,$L$129:$L$156,"y")) -> 0 | R145: 0 | S145: 0
N146: Total | O146: =SUM(O132:O145) -> 7356427.085 | P146: =SUM(P132:P145) -> 6050776.229 | Q146: =SUM(Q132:Q145) -> 5469887.477 | R146: =SUM(R132:R145) -> 5264345.958 | S146: =SUM(S132:S145) -> 5203128.495
N147: Incremental Revenues | O147: =O146-O23 -> 252006 | P147: =G157 -> 771050.5384 | Q147: =H157 -> 188819.0315 | R147: =I157 -> 128720.3547 | S147: =S146-S23 -> 453.7737991
N149: CPUC Fee | O149: =RegulatoryFee -> 0.0035
N150: Check Figure | O150: =ROUND(O147,6)-ROUND(F157,6) -> 0 | P150: =ROUND(P147,6)-SUM(G128:G155) -> 1.41444616e-07 | Q150: =ROUND(Q147,6)-SUM(H128:H155) -> 1.143780537e-08 | R150: =ROUND(R147,6)-SUM(I128:I155) -> 2.009037416e-07 | S150: =ROUND(S147,6)-SUM(J128:J154) -> -199890.311
A157: Total Pending, Filed but not Approved | D157: =SUM(D128:D154) -> 1540940.009 | F157: =SUM(F128:F156) -> 252006 | G157: =SUM(G128:G155) -> 771050.5384 | H157: =SUM(H128:H155) -> 188819.0315 | I157: =SUM(I128:I155) -> 128720.3547 | J157: =SUM(J128:J156) -> 200344.0848
A158: Applications Projected to be Filed, Next 12 Months
A160: Filing Description | B160: Estimated Filing Date | C160: Filing Basis | D160: Proposed Revenue Requirement ($000) | E160: Proposed Revenue Recovery Mechanism | F160: Projected Authorized Revenue Requirement ($000) - Breakout by Year | K160: Existing or New Item (if existing, use delta from prior for rate impact)
A161: Safety Affordability Reliability Proceedings | F161: =TRANSPOSE(YearsForRateImpact) -> 2026 | G161: 2027 | H161: 2028 | I161: 2029 | J161: 2030
A166: Public Policy Proceedings

Sheet SAR and RAR
B1: Revenue Change ($000)
B2: Authorized | C2: w/ Pending
A3: =RevRecoveryMechanisms -> Core Procurement | B3: =INDEX('Incremental Rev Req'!$N$9:$S$22,MATCH(A3,'Incremental Rev Req'!$N$9:$N$22,0),MATCH(Summary!$C$2,'Incremental Rev Req'!$N$8:$S$8,0)) -> 1175646.374 | C3: =INDEX('Incremental Rev Req'!$N$132:$S$145,MATCH(A3,'Incremental Rev Req'!$N$132:$N$145,0),MATCH(Summary!$C$2,'Incremental Rev Req'!$N$131:$S$131,0)) -> 1175646.374 | F3: Allocation | O3: Other Revenues and Balancing Accounts
A4: Allocated Base Margin | B4: =INDEX('Incremental Rev Req'!$N$9:$S$22,MATCH(A4,'Incremental Rev Req'!$N$9:$N$22,0),MATCH(Summary!$C$2,'Incremental Rev Req'!$N$8:$S$8,0)) -> 3332575.223 | C4: =INDEX('Incremental Rev Req'!$N$132:$S$145,MATCH(A4,'Incremental Rev Req'!$N$132:$N$145,0),MATCH(Summary!$C$2,'Incremental Rev Req'!$N$131:$S$131,0)) -> 3332575.223 | F4: =TRANSPOSE(RevRecoveryMechanisms) -> Core Procurement | G4: Allocated Base Margin | H4: Distribution | I4: ECPT adjusted | J4: Local Transmission | K4: SGIP | L4: GHG End User | M4: Public Purpose Programs | N4: Backbone Transmission | O4: 47% Res (LUAF, Other) | P4: ECPT | Q4: EPAM | R4: CFCA | S4: Non-Residential | T4: CPUC Fee
A5: Distribution | B5: =INDEX('Incremental Rev Req'!$N$9:$S$22,MATCH(A5,'Incremental Rev Req'!$N$9:$N$22,0),MATCH(Summary!$C$2,'Incremental Rev Req'!$N$8:$S$8,0)) -> 162866.7998 | C5: =INDEX('Incremental Rev Req'!$N$132:$S$145,MATCH(A5,'Incremental Rev Req'!$N$132:$N$145,0),MATCH(Summary!$C$2,'Incremental Rev Req'!$N$131:$S$131,0)) -> 162866.7998 | E5: Residential | F5: 0.6660172187 | G5: 0.708839031 | H5: 0.6095871975 | I5: 0.4012431755 | J5: 0.4207017225 | K5: 0.3707585355 | L5: 0.5437255755 | M5: 0.5526432166 | N5: 0 | O5: 0.4735382425 | P5: 0.2583309048 | Q5: 0.708839031 | R5: 0.7082921542 | S5: 0 | T5: =RegulatoryFee -> 0.0035
A6: ECPT adjusted | B6: =INDEX('Incremental Rev Req'!$N$9:$S$22,MATCH(A6,'Incremental Rev Req'!$N$9:$N$22,0),MATCH(Summary!$C$2,'Incremental Rev Req'!$N$8:$S$8,0)) -> 13143.04926 | C6: =INDEX('Incremental Rev Req'!$N$132:$S$145,MATCH(A6,'Incremental Rev Req'!$N$132:$N$145,0),MATCH(Summary!$C$2,'Incremental Rev Req'!$N$131:$S$131,0)) -> 13143.04926
A7: Local Transmission | B7: =INDEX('Incremental Rev Req'!$N$9:$S$22,MATCH(A7,'Incremental Rev Req'!$N$9:$N$22,0),MATCH(Summary!$C$2,'Incremental Rev Req'!$N$8:$S$8,0)) -> 21550.00983 | C7: =INDEX('Incremental Rev Req'!$N$132:$S$145,MATCH(A7,'Incremental Rev Req'!$N$132:$N$145,0),MATCH(Summary!$C$2,'Incremental Rev Req'!$N$131:$S$131,0)) -> 21550.00983 | F7: Revenue Change ($000) - System
A8: SGIP | B8: =INDEX('Incremental Rev Req'!$N$9:$S$22,MATCH(A8,'Incremental Rev Req'!$N$9:$N$22,0),MATCH(Summary!$C$2,'Incremental Rev Req'!$N$8:$S$8,0)) -> 0 | C8: =INDEX('Incremental Rev Req'!$N$132:$S$145,MATCH(A8,'Incremental Rev Req'!$N$132:$N$145,0),MATCH(Summary!$C$2,'Incremental Rev Req'!$N$131:$S$131,0)) -> 0 | E8: Authorized | F8: =TRANSPOSE(RevRecoveryMechanisms) -> Core Procurement | G8: Allocated Base Margin | H8: Distribution | I8: ECPT adjusted | J8: Local Transmission | K8: SGIP | L8: GHG End User | M8: Public Purpose Programs | N8: Backbone Transmission | O8: 47% Res (LUAF, Other) | P8: ECPT | Q8: EPAM | R8: CFCA | S8: Non-Residential
A9: GHG End User | B9: =INDEX('Incremental Rev Req'!$N$9:$S$22,MATCH(A9,'Incremental Rev Req'!$N$9:$N$22,0),MATCH(Summary!$C$2,'Incremental Rev Req'!$N$8:$S$8,0)) -> 452259.0205 | C9: =INDEX('Incremental Rev Req'!$N$132:$S$145,MATCH(A9,'Incremental Rev Req'!$N$132:$N$145,0),MATCH(Summary!$C$2,'Incremental Rev Req'!$N$131:$S$131,0)) -> 452259.0205 | E9: Residential | F9: =F5*F10 -> 783000.7281 | G9: =G5*G10 -> 2362259.392 | H9: =H5*H10 -> 99281.51607 | I9: =I5*I10 -> 5273.558823 | J9: 9066.126254 | K9: 0 | L9: 245904.7962 | M9: 297727.7661 | N9: =N5*N10 -> 0 | O9: 17508.51611 | P9: =P5*P10 -> 32495.80465 | Q9: =Q5*Q10 -> 325062.7403 | R9: =R5*R10 -> -13754.98039 | S9: =S5*S10 -> 0 | T9: =SUM(F9:S9) -> 4163825.964 | U9: Check | V9: CPUC Fee
A10: Public Purpose Programs | B10: =INDEX('Incremental Rev Req'!$N$9:$S$22,MATCH(A10,'Incremental Rev Req'!$N$9:$N$22,0),MATCH(Summary!$C$2,'Incremental Rev Req'!$N$8:$S$8,0)) -> 538734.1364 | C10: =INDEX('Incremental Rev Req'!$N$132:$S$145,MATCH(A10,'Incremental Rev Req'!$N$132:$N$145,0),MATCH(Summary!$C$2,'Incremental Rev Req'!$N$131:$S$131,0)) -> 538734.1364 | E10: Total System | F10: =B3 -> 1175646.374 | G10: =B4 -> 3332575.223 | H10: =B5 -> 162866.7998 | I10: =B6 -> 13143.04926 | J10: =B7 -> 21550.00983 | K10: =B8 -> 0 | L10: =B9 -> 452259.0205 | M10: =B10 -> 538734.1364 | N10: =B11 -> 733567.714 | O10: =B12 -> 36973.81655 | P10: =B13 -> 125791.3941 | Q10: =B14 -> 458584.7084 | R10: =B15 -> -19419.92483 | S10: =B16 -> 72148.7639 | T10: =SUM(F10:S10) -> 7104421.085 | U10: =T10-B17 -> 0 | V10: =RegulatoryFee -> 0.0035
A11: Backbone Transmission | B11: =INDEX('Incremental Rev Req'!$N$9:$S$22,MATCH(A11,'Incremental Rev Req'!$N$9:$N$22,0),MATCH(Summary!$C$2,'Incremental Rev Req'!$N$8:$S$8,0)) -> 733567.714 | C11: =INDEX('Incremental Rev Req'!$N$132:$S$145,MATCH(A11,'Incremental Rev Req'!$N$132:$N$145,0),MATCH(Summary!$C$2,'Incremental Rev Req'!$N$131:$S$131,0)) -> 740967.714 | E11: w/Pending
A12: 47% Res (LUAF, Other) | B12: =INDEX('Incremental Rev Req'!$N$9:$S$22,MATCH(A12,'Incremental Rev Req'!$N$9:$N$22,0),MATCH(Summary!$C$2,'Incremental Rev Req'!$N$8:$S$8,0)) -> 36973.81655 | C12: =INDEX('Incremental Rev Req'!$N$132:$S$145,MATCH(A12,'Incremental Rev Req'!$N$132:$N$145,0),MATCH(Summary!$C$2,'Incremental Rev Req'!$N$131:$S$131,0)) -> 36973.81655 | E12: Residential | F12: =F5*F13 -> 783000.7281 | G12: =G5*G13 -> 2362259.392 | H12: 99281.51607 | I12: 5273.558823 | J12: 9066.126254 | K12: 0 | L12: 245904.7962 | M12: 297727.7661 | N12: =N5*N13 -> 0 | O12: 17508.51611 | P12: =P5*P13 -> 32495.80465 | Q12: =Q5*Q13 -> 498449.0204 | R12: =R5*R13 -> -13754.98039 | S12: =S5*S13 -> 0 | T12: =SUM(F12:S12) -> 4337212.244 | U12: Check | V12: CPUC Fee
A13: ECPT | B13: =INDEX('Incremental Rev Req'!$N$9:$S$22,MATCH(A13,'Incremental Rev Req'!$N$9:$N$22,0),MATCH(Summary!$C$2,'Incremental Rev Req'!$N$8:$S$8,0)) -> 125791.3941 | C13: =INDEX('Incremental Rev Req'!$N$132:$S$145,MATCH(A13,'Incremental Rev Req'!$N$132:$N$145,0),MATCH(Summary!$C$2,'Incremental Rev Req'!$N$131:$S$131,0)) -> 125791.3941 | E13: Total System | F13: =C3 -> 1175646.374 | G13: =C4 -> 3332575.223 | H13: =C5 -> 162866.7998 | I13: =C6 -> 13143.04926 | J13: =C7 -> 21550.00983 | K13: =C8 -> 0 | L13: =C9 -> 452259.0205 | M13: =C10 -> 538734.1364 | N13: =C11 -> 740967.714 | O13: =C12 -> 36973.81655 | P13: =C13 -> 125791.3941 | Q13: =C14 -> 703190.7084 | R13: =C15 -> -19419.92483 | S13: =C16 -> 72148.7639 | T13: =SUM(F13:S13) -> 7356427.085 | U13: =T13-C17 -> 0 | V13: =RegulatoryFee -> 0.0035
A14: EPAM | B14: =INDEX('Incremental Rev Req'!$N$9:$S$22,MATCH(A14,'Incremental Rev Req'!$N$9:$N$22,0),MATCH(Summary!$C$2,'Incremental Rev Req'!$N$8:$S$8,0)) -> 458584.7084 | C14: =INDEX('Incremental Rev Req'!$N$132:$S$145,MATCH(A14,'Incremental Rev Req'!$N$132:$N$145,0),MATCH(Summary!$C$2,'Incremental Rev Req'!$N$131:$S$131,0)) -> 703190.7084 | AB14: Authorized | AC14: w/Pending
A15: CFCA | B15: =INDEX('Incremental Rev Req'!$N$9:$S$22,MATCH(A15,'Incremental Rev Req'!$N$9:$N$22,0),MATCH(Summary!$C$2,'Incremental Rev Req'!$N$8:$S$8,0)) -> -19419.92483 | C15: =INDEX('Incremental Rev Req'!$N$132:$S$145,MATCH(A15,'Incremental Rev Req'!$N$132:$N$145,0),MATCH(Summary!$C$2,'Incremental Rev Req'!$N$131:$S$131,0)) -> -19419.92483 | AA15: % of CARE Sales (Bundled) | AB15: 0.2655087991 | AC15: =AB15 -> 0.2655087991
A16: Non-Residential | B16: =INDEX('Incremental Rev Req'!$N$9:$S$22,MATCH(A16,'Incremental Rev Req'!$N$9:$N$22,0),MATCH(Summary!$C$2,'Incremental Rev Req'!$N$8:$S$8,0)) -> 72148.7639 | C16: =INDEX('Incremental Rev Req'!$N$132:$S$145,MATCH(A16,'Incremental Rev Req'!$N$132:$N$145,0),MATCH(Summary!$C$2,'Incremental Rev Req'!$N$131:$S$131,0)) -> 72148.7639 | T16: Authorized | V16: w/Pending Total UDC | X16: Commodity | Y16: w/Pending Commodity
A17: Total Revenue Requirement | B17: =SUM(B3:B16) -> 7104421.085 | C17: =SUM(C3:C16) -> 7356427.085 | F17: Revenue Split - Bundled Customer | T17: Bundled Revenue Change | V17: Bundled Revenue Change
A18: CPUC Fee | B18: =RegulatoryFee -> 0.0035 | C18: =B18 -> 0.0035 | F18: =TRANSPOSE(RevRecoveryMechanisms) -> Core Procurement | G18: Allocated Base Margin | H18: Distribution | I18: ECPT adjusted | J18: Local Transmission | K18: SGIP | L18: GHG End User | M18: Public Purpose Programs | N18: Backbone Transmission | O18: 47% Res (LUAF, Other) | P18: ECPT | Q18: EPAM | R18: CFCA | S18: Non-Residential | T18: Total | V18: Total | X18: Core Procurement | Y18: Core Procurement
E19: Residential | F19: 1 | G19: 1 | H19: 1 | I19: 1 | J19: 1 | K19: 1 | L19: 1 | M19: 1 | N19: 1 | O19: 1 | P19: 1 | Q19: 1 | R19: 1 | S19: 1 | T19: =SUMPRODUCT(G9:S9,G19:S19) -> 3380825.236 | V19: =SUMPRODUCT(G12:S12,G19:S19) -> 3554211.516 | X19: =SUMPRODUCT(F9,F19) -> 783000.7281 | Y19: =SUMPRODUCT(F12,F19) -> 783000.7281
E20: Total System | F20: 1 | G20: 1 | H20: 1 | I20: 1 | J20: 1 | K20: 1 | L20: 1 | M20: 0 | N20: 1 | O20: 1 | P20: 1 | Q20: 1 | R20: 1 | S20: 1 | T20: =SUMPRODUCT(G10:S10,G20:S20) -> 5390040.575 | V20: =SUMPRODUCT(G13:S13,G20:S20) -> 5642046.575 | X20: =SUMPRODUCT(F10,F20) -> 1175646.374 | Y20: =SUMPRODUCT(F13,F20) -> 1175646.374
B22: CAP D.24-07-009 SALES DETERMINANTS SYSTEM NET (MTH) Average year Throughput | C22: CAP D.24-07-009 SALES DETERMINANTS BUNDLED (MTH)Average year throughput
A23: Residential | B23: 2185982.983 | C23: 2158593.606
A24: Total System | B24: 8461949.161 | C24: 3032625.674
E26: Bundled | O26: System (Bundled and Unbundled)
A27: CARE Discount | E27: CAP D.24-07-009 SALES DETERMINANTS BUNDLED | F27: =CONCATENATE(TEXT(CurrentEffectiveRateDate,"mm/dd/yyyy")," Avg Rates"&"(sales adj.)") -> 01/01/2026 Avg Rates(sales adj.) | G27: Proposed Avg Rates (Authorized) | H27: Proposed Avg Rates (w/Pending) | I27: % Change (Authorized) | J27: % Change (w/Pending) | P27: =E27 -> CAP D.24-07-009 SALES DETERMINANTS BUNDLED | Q27: =F27 -> 01/01/2026 Avg Rates(sales adj.) | R27: Proposed Avg Rates (Authorized) | S27: Proposed Avg Rates (w/Pending) | T27: % Change (Authorized) | U27: % Change (w/Pending)
A28: 2020 | B28: 132417.9764 | D28: Residential | E28: =C23 -> 2158593.606 | F28: 190.9329178 | G28: =(T19/B23*100)+(X19/C23*100) -> 190.9329178 | H28: =(V19/B23*100)+(Y19/C23*100) -> 198.8646483 | I28: =G28/F28-1 -> 0 | J28: =H28/F28-1 -> 0.04154197526 | O28: Residential | P28: =B23 -> 2185982.983 | Q28: 190.4784253 | R28: =T9/P28*100 -> 190.4784253 | S28: =T12/P28*100 -> 198.4101559 | T28: =R28/Q28-1 -> 0 | U28: =S28/Q28-1 -> 0.0416410968
A29: 2021 | B29: 187534.6647 | D29: Total System | E29: =C24 -> 3032625.674 | F29: 102.4640046 | G29: =(T20/B24*100)+(X20/C24*100) -> 102.4640046 | H29: =(V20/B24*100)+(Y20/C24*100) -> 105.4421128 | I29: =G29/F29-1 -> 0 | J29: =H29/F29-1 -> 0.02906492079 | O29: Total System | P29: =B24 -> 8461949.161 | Q29: 83.95726504 | R29: =T10/P29*100 -> 83.95726504 | S29: =T13/P29*100 -> 86.93537322 | T29: =R29/Q29-1 -> 0 | U29: =S29/Q29-1 -> 0.035471715
A30: 2022 | B30: 210430.2141 | G30: cents/therm
A31: 2023 | B31: 213115.4392
A32: 2024 | B32: 214904.4994
A33: 2025 | B33: 201591.9989
A34: 2026 | B34: 233746.857

Sheet Res Bill Impact
E3: Schedule GR | P3: Schedule GR [CARE]
E4: =SalesForecastYear -> 2024 | F4: =CurrentEffectiveRateDate -> 2026-01-01 | G4: =CurrentEffectiveRateDate -> 2026-01-01 | H4: Proposed | I4: Proposed | J4: Proposed | K4: Proposed | P4: =SalesForecastYear -> 2024 | Q4: =CurrentEffectiveRateDate -> 2026-01-01 | R4: =CurrentEffectiveRateDate -> 2026-01-01 | S4: Proposed | T4: Proposed | U4: Proposed | V4: Proposed
E5: System Sales Forecast | F5: Rates | G5: Revenue | H5: Authorized Rates | I5: Authorized Revenue | J5: w/Pending Rates | K5: w/Pending Revenue | P5: Sales Forecast | Q5: Rates | R5: Revenue | S5: Authorized Rates | T5: Authorized Revenue | U5: w/Pending Rates | V5: w/Pending Revenue
D7: Baseline | E7: 1106153.307 | F7: 1.640559146 | G7: =F7*E7 -> 1814709.924 | H7: =((Y10-I12-T12)/SUM(E7,F9/F7*E9,P7*((Q7/F7)),P9*((Q9/F7)))) -> 1.705253725 | I7: =E7*H7 -> 1886272.047 | J7: =((Y13-K12-V12)/SUM(SUM(E7),F9/F7*SUM(E9),SUM(P7)*((Q7/F7)),SUM(P9)*(Q9/F7))) -> 1.782358692 | K7: =E7*J7 -> 1971561.961 | O7: =D7 -> Baseline | P7: 408227.7802 | Q7: 1.284668885 | R7: =Q7*P7 -> 524437.5271 | S7: =H7*(1+(Q7/F7-1)) -> 1.33532912 | T7: =P7*S7 -> 545118.4426 | U7: =J7*(1+(Q7/F7-1)) -> 1.39570753 | V7: =P7*U7 -> 569766.5867 | X7: Bundled Residential Rev Req
X8: Current | Y8: =(SUM(G7:G9)+SUM(R7:R9)) -> 3689132.609
D9: non-Baseline | E9: 490559.9158 | F9: 2.132559146 | G9: =F9*E9 -> 1046148.035 | H9: =F9/F$7*H$7 -> 2.216655484 | I9: =E9*H9 -> 1087402.327 | J9: =F9/F$7*J$7 -> 2.316884057 | K9: 1136570.448 | O9: =D9 -> non-Baseline | P9: 181041.9805 | Q9: 1.678268885 | R9: =Q9*P9 -> 303837.1227 | S9: =H9*(1+(Q9/F9-1)) -> 1.744450527 | T9: =P9*S9 -> 315818.7784 | U9: =J9*(1+(Q9/F9-1)) -> 1.823327822 | V9: =P9*U9 -> 330098.88 | X9: Change (Authorized) | Y9: =Y10-Y8 -> 474693.3555
X10: Proposed (Authorized) | Y10: ='SAR and RAR'!T9 -> 4163825.964
E11: Non-CARE customers | P11: CARE Customers
D12: Fixed Charge | E12: =E13-P12 -> 4047089.348 | F12: 5 | G12: =F12*12*E12/1000 -> 242825.3609 | H12: =SetUp!B7 -> 5 | I12: =(H12*12*E12)/1000 -> 242825.3609 | J12: =H12 -> 5 | K12: =I12 -> 242825.3609 | O12: Fixed Charge | P12: 1799771 | Q12: =F12*(1-CAREDiscountPercent) -> 4 | R12: =Q12*12*P12/1000 -> 86389.008 | S12: =SetUp!B7*(1-CAREDiscountPercent) -> 4 | T12: =(S12*12*P12)/1000 -> 86389.008 | U12: =S12 -> 4 | V12: =T12 -> 86389.008 | X12: Change (w/Pending) | Y12: =Y13-Y8 -> 648079.6356
D13: Total Customers | E13: 5846860.348 | X13: Proposed (w/Pending) | Y13: ='SAR and RAR'!T12 -> 4337212.244
P18: Basic Bundled
E19: =Summary!C2 -> 2026 | F19: =Summary!C2 -> 2026 | H19: Essential Usage | P19: 2025 Recorded Data - Average Monthly Usage - ALL-BASIC th
B20: SCHEDULE GR RATES ($/therm) | E20: Proposed | F20: Proposed | H20: Monthly Tier 1 Baseline Allowance -BASIC (th) | P20: Climate Zone | Q20: Summer | R20: Winter | S20: Summer | T20: Winter
B21: Rates | C21: =BOYEffectiveRateDate -> 2026-01-01 | D21: =CurrentEffectiveRateDate -> 2026-01-01 | E21: Authorized | F21: w/Pending | H21: Climate Zone | I21: Summer 2024 | J21: Winter 2024 | Q21: Non-CARE | S21: CARE
A22: Summer | B22: Tier 1 | C22: 1.705253725 | D22: 1.705253725 | E22: =H7 -> 1.705253725 | F22: =J7 -> 1.782358692 | H22: =Zones -> 1 | I22: 13 | J22: 37.33333333 | P22: =Zones -> 1 | Q22: 21.82671825 | R22: 41.84251746 | S22: 18.4179232 | T22: 32.87761186
B23: Tier 2 | C23: 2.216655484 | D23: 2.216655484 | E23: =H9 -> 2.216655484 | F23: =J9 -> 2.316884057 | H23: 2 | I23: 13 | J23: 42.16666667 | P23: 2 | Q23: 18.16887727 | R23: 45.73604348 | S23: 19.08467632 | T23: 46.37958422
H24: 3 | I24: 13 | J24: 65 | P24: 3 | Q24: 19.64221673 | R24: 62.15196399 | S24: 25.47898298 | T24: 73.17270362
A25: Winter | B25: Tier 1 | C25: =C22 -> 1.705253725 | D25: =D22 -> 1.705253725 | E25: =E22 -> 1.705253725 | F25: 1.782358692 | H25: 0 | P25: 0
B26: Tier 2 | C26: =C23 -> 2.216655484 | D26: =D23 -> 2.216655484 | E26: =E23 -> 2.216655484 | F26: 2.316884057
P27: Typical Bundled
E28: =Summary!C2 -> 2026 | F28: =Summary!C2 -> 2026 | P28: 2021-2025 Recorded Data - Average Monthly Usage - ALL-BASIC th
B29: SCHEDULE GR-LI [CARE] ($/therm) | E29: Proposed | F29: Proposed | P29: Climate Zone | Q29: Summer | R29: Winter | S29: Summer | T29: Winter
B30: Rates | C30: =C21 -> 2026-01-01 | D30: =D21 -> 2026-01-01 | E30: Authorized | F30: w/Pending | Q30: Non-CARE | S30: CARE
A31: Summer | B31: Tier 1 | C31: 1.33532912 | D31: 1.33532912 | E31: =S7 -> 1.33532912 | F31: =U7 -> 1.39570753 | P31: =Zones -> 1 | Q31: 22.59132906 | R31: 47.38245383 | S31: 17.52905798 | T31: 34.06667279
B32: Tier 2 | C32: 1.744450527 | D32: 1.744450527 | E32: =S9 -> 1.744450527 | F32: =U9 -> 1.823327822 | P32: 2 | Q32: 19.18689438 | R32: 52.84630184 | S32: 18.44856514 | T32: 49.63336211
P33: 3 | Q33: 19.80325997 | R33: 73.84996822 | S33: 24.3672052 | T33: 83.44843671
A34: Winter | B34: Tier 1 | C34: 1.33532912 | D34: =D31 -> 1.33532912 | E34: 1.33532912 | F34: 1.39570753 | P34: 0
B35: Tier 2 | C35: 1.744450527 | D35: =D32 -> 1.744450527 | E35: 1.744450527 | F35: 1.823327822
C39: Note: Bill inserts include CPUC fee in the calculations
C40: 2023 Recorded Average Basic Bundled Non-CARE Customer Bill
C41: =C30 -> 2026-01-01 | E41: =D30 -> 2026-01-01 | G41: =E21 -> Authorized | I41: =F21 -> w/Pending
C42: Summer | D42: Winter | E42: Summer | F42: Winter | G42: Summer | H42: Winter | I42: Summer | J42: Winter
B43: =Zones -> 1 | C43: =IF($Q22>$I22,C$22*$I22+C$23*($Q22-$I22),$Q22*C$22)+('Incremental Rev Req'!$F$122*$Q22)+IF(Q22>0,$F$12,0) -> 46.81048536 | D43: =IF($R22>$J22,C$25*$J22+C$26*($R22-$J22),$R22*C$25)+('Incremental Rev Req'!$F$122*$R22)+IF(R22>0,$F$12,0) -> 78.80456227 | E43: =IF($Q22>$I22,D$22*$I22+D$23*($Q22-$I22),$Q22*D$22)+('Incremental Rev Req'!$F$122*$Q22)+IF(Q22>0,$F$12,0) -> 46.81048536 | F43: =IF($R22>$J22,D$25*$J22+D$26*($R22-$J22),$R22*D$25)+('Incremental Rev Req'!$F$122*$R22)+IF(R22>0,$F$12,0) -> 78.80456227 | G43: =IF($Q22>$I22,E$22*$I22+E$23*($Q22-$I22),$Q22*E$22)+('Incremental Rev Req'!$F$122*$Q22)+IF(Q22>0,$H$12,0) -> 46.81048536 | H43: =IF($R22>$J22,E$25*$J22+E$26*($R22-$J22),$R22*E$25)+('Incremental Rev Req'!$F$122*$R22)+IF(R22>0,$H$12,0) -> 78.80456227 | I43: =IF($Q22>$I22,F$22*$I22+F$23*($Q22-$I22),$Q22*F$22)+('Incremental Rev Req'!$F$122*$Q22)+IF(Q22>0,$J$12,0) -> 48.6975393 | J43: =IF($R22>$J22,F$25*$J22+F$26*($R22-$J22),$R22*F$25)+('Incremental Rev Req'!$F$122*$R22)+IF(R22>0,$J$12,0) -> 82.13509679
B44: 2 | C44: =IF($Q23>$I23,C$22*$I23+C$23*($Q23-$I23),$Q23*C$22)+('Incremental Rev Req'!$F$122*$Q23)+IF(Q23>0,$F$12,0) -> 38.68950963 | D44: =IF($R23>$J23,C$25*$J23+C$26*($R23-$J23),$R23*C$25)+('Incremental Rev Req'!$F$122*$R23)+IF(R23>0,$F$12,0) -> 84.97702023 | E44: =IF($Q23>$I23,D$22*$I23+D$23*($Q23-$I23),$Q23*D$22)+('Incremental Rev Req'!$F$122*$Q23)+IF(Q23>0,$F$12,0) -> 38.68950963 | F44: =IF($R23>$J23,D$25*$J23+D$26*($R23-$J23),$R23*D$25)+('Incremental Rev Req'!$F$122*$R23)+IF(R23>0,$F$12,0) -> 84.97702023 | G44: =IF($Q23>$I23,E$22*$I23+E$23*($Q23-$I23),$Q23*E$22)+('Incremental Rev Req'!$F$122*$Q23)+IF(Q23>0,$H$12,0) -> 38.68950963 | H44: =IF($R23>$J23,E$25*$J23+E$26*($R23-$J23),$R23*E$25)+('Incremental Rev Req'!$F$122*$R23)+IF(R23>0,$H$12,0) -> 84.97702023 | I44: =IF($Q23>$I23,F$22*$I23+F$23*($Q23-$I23),$Q23*F$22)+('Incremental Rev Req'!$F$122*$Q23)+IF(Q23>0,$J$12,0) -> 40.20994339 | J44: =IF($R23>$J23,F$25*$J23+F$26*($R23-$J23),$R23*F$25)+('Incremental Rev Req'!$F$122*$R23)+IF(R23>0,$J$12,0) -> 88.58603321
B45: 3 | C45: =IF($Q24>$I24,C$22*$I24+C$23*($Q24-$I24),$Q24*C$22)+('Incremental Rev Req'!$F$122*$Q24)+IF(Q24>0,$F$12,0) -> 41.96055233 | D45: =IF($R24>$J24,C$25*$J24+C$26*($R24-$J24),$R24*C$25)+('Incremental Rev Req'!$F$122*$R24)+IF(R24>0,$F$12,0) -> 111.2024 | E45: =IF($Q24>$I24,D$22*$I24+D$23*($Q24-$I24),$Q24*D$22)+('Incremental Rev Req'!$F$122*$Q24)+IF(Q24>0,$F$12,0) -> 41.96055233 | F45: =IF($R24>$J24,D$25*$J24+D$26*($R24-$J24),$R24*D$25)+('Incremental Rev Req'!$F$122*$R24)+IF(R24>0,$F$12,0) -> 111.2024 | G45: =IF($Q24>$I24,E$22*$I24+E$23*($Q24-$I24),$Q24*E$22)+('Incremental Rev Req'!$F$122*$Q24)+IF(Q24>0,$H$12,0) -> 41.96055233 | H45: =IF($R24>$J24,E$25*$J24+E$26*($R24-$J24),$R24*E$25)+('Incremental Rev Req'!$F$122*$R24)+IF(R24>0,$H$12,0) -> 111.2024 | I45: =IF($Q24>$I24,F$22*$I24+F$23*($Q24-$I24),$Q24*F$22)+('Incremental Rev Req'!$F$122*$Q24)+IF(Q24>0,$J$12,0) -> 43.62865681 | J45: =IF($R24>$J24,F$25*$J24+F$26*($R24-$J24),$R24*F$25)+('Incremental Rev Req'!$F$122*$R24)+IF(R24>0,$J$12,0) -> 115.9946251
B46: 0 | C46: =IF($Q25>$I25,C$22*$I25+C$23*($Q25-$I25),$Q25*C$22)+('Incremental Rev Req'!$F$122*$Q25)+IF(Q25>0,$F$12,0) -> 0 | D46: =IF($R25>$J25,C$25*$J25+C$26*($R25-$J25),$R25*C$25)+('Incremental Rev Req'!$F$122*$R25)+IF(R25>0,$F$12,0) -> 0 | E46: =IF($Q25>$I25,D$22*$I25+D$23*($Q25-$I25),$Q25*D$22)+('Incremental Rev Req'!$F$122*$Q25)+IF(Q25>0,$F$12,0) -> 0 | F46: =IF($R25>$J25,D$25*$J25+D$26*($R25-$J25),$R25*D$25)+('Incremental Rev Req'!$F$122*$R25)+IF(R25>0,$F$12,0) -> 0 | G46: =IF($Q25>$I25,E$22*$I25+E$23*($Q25-$I25),$Q25*E$22)+('Incremental Rev Req'!$F$122*$Q25)+IF(Q25>0,$H$12,0) -> 0 | H46: =IF($R25>$J25,E$25*$J25+E$26*($R25-$J25),$R25*E$25)+('Incremental Rev Req'!$F$122*$R25)+IF(R25>0,$H$12,0) -> 0 | I46: =IF($Q25>$I25,F$22*$I25+F$23*($Q25-$I25),$Q25*F$22)+('Incremental Rev Req'!$F$122*$Q25)+IF(Q25>0,$J$12,0) -> 0 | J46: =IF($R25>$J25,F$25*$J25+F$26*($R25-$J25),$R25*F$25)+('Incremental Rev Req'!$F$122*$R25)+IF(R25>0,$J$12,0) -> 0
B47: Total | C47: =SUMPRODUCT(C43:C46,$U$22:$U$25) -> 0 | D47: =SUMPRODUCT(D43:D46,$U$22:$U$25) -> 0 | E47: 0 | F47: 0 | G47: 0 | H47: 0 | I47: 0 | J47: 0
C50: 2023 Recorded Average Basic Bundled CARE Customer Bill
C51: =C30 -> 2026-01-01 | E51: =D30 -> 2026-01-01 | G51: =E30 -> Authorized | I51: =F30 -> w/Pending
C52: Summer | D52: Winter | E52: Summer | F52: Winter | G52: Summer | H52: Winter | I52: Summer | J52: Winter
B53: =Zones -> 1 | C53: =IF($S22>$I22,C$31*$I22+C$32*($S22-$I22),$S22*C$31)+('Incremental Rev Req'!$F$122*$S22)+IF(S22>0,$Q$12,0) -> 30.87504027 | D53: =IF($T22>$J22,C$34*$J22+C$35*($T22-$J22),$T22*C$34)+('Incremental Rev Req'!$F$122*$T22)+IF(T22>0,$Q$12,0) -> 48.01750417 | E53: =IF($S22>$I22,D$31*$I22+D$32*($S22-$I22),$S22*D$31)+('Incremental Rev Req'!$F$122*$S22)+IF(S22>0,$Q$12,0) -> 30.87504027 | F53: =IF($T22>$J22,D$34*$J22+D$35*($T22-$J22),$T22*D$34)+('Incremental Rev Req'!$F$122*$T22)+IF(T22>0,$Q$12,0) -> 48.01750417 | G53: =IF($S22>$I22,E$31*$I22+E$32*($S22-$I22),$S22*E$31)+('Incremental Rev Req'!$F$122*$S22)+IF(S22>0,$S$12,0) -> 30.87504027 | H53: =IF($T22>$J22,E$34*$J22+E$35*($T22-$J22),$T22*E$34)+('Incremental Rev Req'!$F$122*$T22)+IF(T22>0,$S$12,0) -> 48.01750417 | I53: =IF($S22>$I22,F$31*$I22+F$32*($S22-$I22),$S22*F$31)+('Incremental Rev Req'!$F$122*$S22)+IF(S22>0,$U$12,0) -> 32.08731072 | J53: =IF($T22>$J22,F$34*$J22+F$35*($T22-$J22),$T22*F$34)+('Incremental Rev Req'!$F$122*$T22)+IF(T22>0,$U$12,0) -> 50.00260207
B54: 2 | C54: =IF($S23>$I23,C$31*$I23+C$32*($S23-$I23),$S23*C$31)+('Incremental Rev Req'!$F$122*$S23)+IF(S23>0,$Q$12,0) -> 32.04049175 | D54: =IF($T23>$J23,C$34*$J23+C$35*($T23-$J23),$T23*C$34)+('Incremental Rev Req'!$F$122*$T23)+IF(T23>0,$Q$12,0) -> 67.8179327 | E54: =IF($S23>$I23,D$31*$I23+D$32*($S23-$I23),$S23*D$31)+('Incremental Rev Req'!$F$122*$S23)+IF(S23>0,$Q$12,0) -> 32.04049175 | F54: =IF($T23>$J23,D$34*$J23+D$35*($T23-$J23),$T23*D$34)+('Incremental Rev Req'!$F$122*$T23)+IF(T23>0,$Q$12,0) -> 67.8179327 | G54: =IF($S23>$I23,E$31*$I23+E$32*($S23-$I23),$S23*E$31)+('Incremental Rev Req'!$F$122*$S23)+IF(S23>0,$S$12,0) -> 32.04049175 | H54: =IF($T23>$J23,E$34*$J23+E$35*($T23-$J23),$T23*E$34)+('Incremental Rev Req'!$F$122*$T23)+IF(T23>0,$S$12,0) -> 67.8179327 | I54: =IF($S23>$I23,F$31*$I23+F$32*($S23-$I23),$S23*F$31)+('Incremental Rev Req'!$F$122*$S23)+IF(S23>0,$U$12,0) -> 33.30535388 | J54: =IF($T23>$J23,F$34*$J23+F$35*($T23-$J23),$T23*F$34)+('Incremental Rev Req'!$F$122*$T23)+IF(T23>0,$U$12,0) -> 70.6961925
B55: 3 | C55: =IF($S24>$I24,C$31*$I24+C$32*($S24-$I24),$S24*C$31)+('Incremental Rev Req'!$F$122*$S24)+IF(S24>0,$Q$12,0) -> 43.21742344 | D55: =IF($T24>$J24,C$34*$J24+C$35*($T24-$J24),$T24*C$34)+('Incremental Rev Req'!$F$122*$T24)+IF(T24>0,$Q$12,0) -> 105.3093744 | E55: =IF($S24>$I24,D$31*$I24+D$32*($S24-$I24),$S24*D$31)+('Incremental Rev Req'!$F$122*$S24)+IF(S24>0,$Q$12,0) -> 43.21742344 | F55: =IF($T24>$J24,D$34*$J24+D$35*($T24-$J24),$T24*D$34)+('Incremental Rev Req'!$F$122*$T24)+IF(T24>0,$Q$12,0) -> 105.3093744 | G55: =IF($S24>$I24,E$31*$I24+E$32*($S24-$I24),$S24*E$31)+('Incremental Rev Req'!$F$122*$S24)+IF(S24>0,$S$12,0) -> 43.21742344 | H55: =IF($T24>$J24,E$34*$J24+E$35*($T24-$J24),$T24*E$34)+('Incremental Rev Req'!$F$122*$T24)+IF(T24>0,$S$12,0) -> 105.3093744 | I55: =IF($S24>$I24,F$31*$I24+F$32*($S24-$I24),$S24*F$31)+('Incremental Rev Req'!$F$122*$S24)+IF(S24>0,$U$12,0) -> 44.98665118 | J55: =IF($T24>$J24,F$34*$J24+F$35*($T24-$J24),$T24*F$34)+('Incremental Rev Req'!$F$122*$T24)+IF(T24>0,$U$12,0) -> 109.8786118
B56: 0 | C56: =IF($S25>$I25,C$31*$I25+C$32*($S25-$I25),$S25*C$31)+('Incremental Rev Req'!$F$122*$S25)+IF(S25>0,$Q$12,0) -> 0 | D56: =IF($T25>$J25,C$34*$J25+C$35*($T25-$J25),$T25*C$34)+('Incremental Rev Req'!$F$122*$T25)+IF(T25>0,$Q$12,0) -> 0 | E56: =IF($S25>$I25,D$31*$I25+D$32*($S25-$I25),$S25*D$31)+('Incremental Rev Req'!$F$122*$S25)+IF(S25>0,$Q$12,0) -> 0 | F56: =IF($T25>$J25,D$34*$J25+D$35*($T25-$J25),$T25*D$34)+('Incremental Rev Req'!$F$122*$T25)+IF(T25>0,$Q$12,0) -> 0 | G56: =IF($S25>$I25,E$31*$I25+E$32*($S25-$I25),$S25*E$31)+('Incremental Rev Req'!$F$122*$S25)+IF(S25>0,$S$12,0) -> 0 | H56: =IF($T25>$J25,E$34*$J25+E$35*($T25-$J25),$T25*E$34)+('Incremental Rev Req'!$F$122*$T25)+IF(T25>0,$S$12,0) -> 0 | I56: =IF($S25>$I25,F$31*$I25+F$32*($S25-$I25),$S25*F$31)+('Incremental Rev Req'!$F$122*$S25)+IF(S25>0,$U$12,0) -> 0 | J56: =IF($T25>$J25,F$34*$J25+F$35*($T25-$J25),$T25*F$34)+('Incremental Rev Req'!$F$122*$T25)+IF(T25>0,$U$12,0) -> 0
B57: Total | C57: =SUMPRODUCT(C53:C56,$V$22:$V$25) -> 0 | D57: =SUMPRODUCT(D53:D56,$V$22:$V$25) -> 0 | E57: 0 | F57: 0 | G57: 0 | H57: 0 | I57: 0 | J57: 0
C60: Essential Usage Basic Bundled Non-CARE Customer Bill
C61: =C51 -> 2026-01-01 | E61: =E51 -> 2026-01-01 | G61: =G51 -> Authorized | I61: =I51 -> w/Pending
C62: Summer | D62: Winter | E62: Summer | F62: Winter | G62: Summer | H62: Winter | I62: Summer | J62: Winter
B63: =Zones -> 1 | C63: =($C$22*$I22)+('Incremental Rev Req'!$F$122*$I22)+IF(I22>0,$F$12,0) -> 27.21379842 | D63: =($C$25*$J22)+('Incremental Rev Req'!$F$122*$J22)+IF(J22>0,$F$12,0) -> 68.7934724 | E63: =($D$22*$I22)+('Incremental Rev Req'!$F$122*$I22)+IF(I22>0,$F$12,0) -> 27.21379842 | F63: =($D$25*$J22)+('Incremental Rev Req'!$F$122*$J22)+IF(J22>0,$F$12,0) -> 68.7934724 | G63: =($E$22*$I22)+('Incremental Rev Req'!$F$122*$I22)+IF(I22>0,$H$12,0) -> 27.21379842 | H63: =($E$25*$J22)+('Incremental Rev Req'!$F$122*$J22)+IF(J22>0,$H$12,0) -> 68.7934724 | I63: =($F$22*$I22)+('Incremental Rev Req'!$F$122*$I22)+IF(I22>0,$J$12,0) -> 28.21616299 | J63: =($F$25*$J22)+('Incremental Rev Req'!$F$122*$J22)+IF(J22>0,$J$12,0) -> 71.67205783
B64: 2 | C64: =($C$22*$I23)+('Incremental Rev Req'!$F$122*$I23)+IF(I23>0,$F$12,0) -> 27.21379842 | D64: =($C$25*$J23)+('Incremental Rev Req'!$F$122*$J23)+IF(J23>0,$F$12,0) -> 77.05244874 | E64: =($D$22*$I23)+('Incremental Rev Req'!$F$122*$I23)+IF(I23>0,$F$12,0) -> 27.21379842 | F64: =($D$25*$J23)+('Incremental Rev Req'!$F$122*$J23)+IF(J23>0,$F$12,0) -> 77.05244874 | G64: =($E$22*$I23)+('Incremental Rev Req'!$F$122*$I23)+IF(I23>0,$H$12,0) -> 27.21379842 | H64: =($E$25*$J23)+('Incremental Rev Req'!$F$122*$J23)+IF(J23>0,$H$12,0) -> 77.05244874 | I64: =($F$22*$I23)+('Incremental Rev Req'!$F$122*$I23)+IF(I23>0,$J$12,0) -> 28.21616299 | J64: =($F$25*$J23)+('Incremental Rev Req'!$F$122*$J23)+IF(J23>0,$J$12,0) -> 80.30370817
B65: 3 | C65: =($C$22*$I24)+('Incremental Rev Req'!$F$122*$I24)+IF(I24>0,$F$12,0) -> 27.21379842 | D65: =($C$25*$J24)+('Incremental Rev Req'!$F$122*$J24)+IF(J24>0,$F$12,0) -> 116.0689921 | E65: =($D$22*$I24)+('Incremental Rev Req'!$F$122*$I24)+IF(I24>0,$F$12,0) -> 27.21379842 | F65: =($D$25*$J24)+('Incremental Rev Req'!$F$122*$J24)+IF(J24>0,$F$12,0) -> 116.0689921 | G65: =($E$22*$I24)+('Incremental Rev Req'!$F$122*$I24)+IF(I24>0,$H$12,0) -> 27.21379842 | H65: =($E$25*$J24)+('Incremental Rev Req'!$F$122*$J24)+IF(J24>0,$H$12,0) -> 116.0689921 | I65: =($F$22*$I24)+('Incremental Rev Req'!$F$122*$I24)+IF(I24>0,$J$12,0) -> 28.21616299 | J65: =($F$25*$J24)+('Incremental Rev Req'!$F$122*$J24)+IF(J24>0,$J$12,0) -> 121.080815
B66: 0 | C66: =($C$22*$I25)+('Incremental Rev Req'!$F$122*$I25)+IF(I25>0,$F$12,0) -> 0 | D66: =($C$25*$J25)+('Incremental Rev Req'!$F$122*$J25)+IF(J25>0,$F$12,0) -> 0 | E66: =($D$22*$I25)+('Incremental Rev Req'!$F$122*$I25)+IF(I25>0,$F$12,0) -> 0 | F66: =($D$25*$J25)+('Incremental Rev Req'!$F$122*$J25)+IF(J25>0,$F$12,0) -> 0 | G66: =($E$22*$I25)+('Incremental Rev Req'!$F$122*$I25)+IF(I25>0,$H$12,0) -> 0 | H66: =($E$25*$J25)+('Incremental Rev Req'!$F$122*$J25)+IF(J25>0,$H$12,0) -> 0 | I66: =($F$22*$I25)+('Incremental Rev Req'!$F$122*$I25)+IF(I25>0,$J$12,0) -> 0 | J66: =($F$25*$J25)+('Incremental Rev Req'!$F$122*$J25)+IF(J25>0,$J$12,0) -> 0
B67: Total | C67: =SUMPRODUCT(C63:C66,$U$22:$U$25) -> 0 | D67: =SUMPRODUCT(D63:D66,$U$22:$U$25) -> 0 | E67: =SUMPRODUCT(E63:E66,$U$22:$U$25) -> 0 | F67: =SUMPRODUCT(F63:F66,$U$22:$U$25) -> 0 | G67: 0 | H67: 0 | I67: 0 | J67: 0
C70: Essential Usage Basic Bundled CARE Customer Bill
C71: =C61 -> 2026-01-01 | E71: =E61 -> 2026-01-01 | G71: =G61 -> Authorized | I71: =I61 -> w/Pending
C72: Summer | D72: Winter | E72: Summer | F72: Winter | G72: Summer | H72: Winter | I72: Summer | J72: Winter
B73: =Zones -> 1 | C73: =($C$31*$I22)+('Incremental Rev Req'!$F$122*$I22)+IF(I22>0,$Q$12,0) -> 21.40477856 | D73: =($C$34*$J22)+('Incremental Rev Req'!$F$122*$J22)+IF(J22>0,$Q$12,0) -> 53.98295383 | E73: =($D$31*$I22)+('Incremental Rev Req'!$F$122*$I22)+IF(I22>0,$Q$12,0) -> 21.40477856 | F73: =($D$34*$J22)+('Incremental Rev Req'!$F$122*$J22)+IF(J22>0,$Q$12,0) -> 53.98295383 | G73: =($E$31*$I22)+('Incremental Rev Req'!$F$122*$I22)+IF(I22>0,$S$12,0) -> 21.40477856 | H73: =($E$34*$J22)+('Incremental Rev Req'!$F$122*$J22)+IF(J22>0,$S$12,0) -> 53.98295383 | I73: =($F$31*$I22)+('Incremental Rev Req'!$F$122*$I22)+IF(I22>0,$U$12,0) -> 22.18969789 | J73: =($F$34*$J22)+('Incremental Rev Req'!$F$122*$J22)+IF(J22>0,$U$12,0) -> 56.23708111
B74: 2 | C74: =($C$31*$I23)+('Incremental Rev Req'!$F$122*$I23)+IF(I23>0,$Q$12,0) -> 21.40477856 | D74: =($C$34*$J23)+('Incremental Rev Req'!$F$122*$J23)+IF(J23>0,$Q$12,0) -> 60.45396124 | E74: =($D$31*$I23)+('Incremental Rev Req'!$F$122*$I23)+IF(I23>0,$Q$12,0) -> 21.40477856 | F74: =($D$34*$J23)+('Incremental Rev Req'!$F$122*$J23)+IF(J23>0,$Q$12,0) -> 60.45396124 | G74: =($E$31*$I23)+('Incremental Rev Req'!$F$122*$I23)+IF(I23>0,$S$12,0) -> 21.40477856 | H74: =($E$34*$J23)+('Incremental Rev Req'!$F$122*$J23)+IF(J23>0,$S$12,0) -> 60.45396124 | I74: =($F$31*$I23)+('Incremental Rev Req'!$F$122*$I23)+IF(I23>0,$U$12,0) -> 22.18969789 | J74: =($F$34*$J23)+('Incremental Rev Req'!$F$122*$J23)+IF(J23>0,$U$12,0) -> 62.9999175
B75: 3 | C75: =($C$31*$I24)+('Incremental Rev Req'!$F$122*$I24)+IF(I24>0,$Q$12,0) -> 21.40477856 | D75: =($C$34*$J24)+('Incremental Rev Req'!$F$122*$J24)+IF(J24>0,$Q$12,0) -> 91.02389282 | E75: =($D$31*$I24)+('Incremental Rev Req'!$F$122*$I24)+IF(I24>0,$Q$12,0) -> 21.40477856 | F75: =($D$34*$J24)+('Incremental Rev Req'!$F$122*$J24)+IF(J24>0,$Q$12,0) -> 91.02389282 | G75: =($E$31*$I24)+('Incremental Rev Req'!$F$122*$I24)+IF(I24>0,$S$12,0) -> 21.40477856 | H75: =($E$34*$J24)+('Incremental Rev Req'!$F$122*$J24)+IF(J24>0,$S$12,0) -> 91.02389282 | I75: =($F$31*$I24)+('Incremental Rev Req'!$F$122*$I24)+IF(I24>0,$U$12,0) -> 22.18969789 | J75: =($F$34*$J24)+('Incremental Rev Req'!$F$122*$J24)+IF(J24>0,$U$12,0) -> 94.94848943
B76: 0 | C76: =($C$31*$I25)+('Incremental Rev Req'!$F$122*$I25)+IF(I25>0,$Q$12,0) -> 0 | D76: =($C$34*$J25)+('Incremental Rev Req'!$F$122*$J25)+IF(J25>0,$Q$12,0) -> 0 | E76: =($D$31*$I25)+('Incremental Rev Req'!$F$122*$I25)+IF(I25>0,$Q$12,0) -> 0 | F76: =($D$34*$J25)+('Incremental Rev Req'!$F$122*$J25)+IF(J25>0,$Q$12,0) -> 0 | G76: =($E$31*$I25)+('Incremental Rev Req'!$F$122*$I25)+IF(I25>0,$S$12,0) -> 0 | H76: =($E$34*$J25)+('Incremental Rev Req'!$F$122*$J25)+IF(J25>0,$S$12,0) -> 0 | I76: =($F$31*$I25)+('Incremental Rev Req'!$F$122*$I25)+IF(I25>0,$U$12,0) -> 0 | J76: =($F$34*$J25)+('Incremental Rev Req'!$F$122*$J25)+IF(J25>0,$U$12,0) -> 0
B77: Total | C77: =SUMPRODUCT(C73:C76,$V$22:$V$25) -> 0 | D77: =SUMPRODUCT(D73:D76,$V$22:$V$25) -> 0 | E77: 0 | F77: 0 | G77: 0 | H77: 0 | I77: 0 | J77: 0
C80: 5-Year Average Monthly Basic Bundled Non-CARE Customer
C81: =C71 -> 2026-01-01 | E81: =E71 -> 2026-01-01 | G81: =G71 -> Authorized | I81: =I71 -> w/Pending
C82: Summer | D82: Winter | E82: Summer | F82: Winter | G82: Summer | H82: Winter | I82: Summer | J82: Winter
B83: =Zones -> 1 | C83: =IF($Q31>$I22,C$22*$I22+C$23*($Q31-$I22),$Q31*C$22)+('Incremental Rev Req'!$F$122*$Q31)+IF(Q31>0,$F$12,0) -> 48.50804024 | D83: =IF($R31>$J22,C$25*$J22+C$26*($R31-$J22),$R31*C$25)+('Incremental Rev Req'!$F$122*$R31)+IF(R31>0,$F$12,0) -> 91.10408238 | E83: =IF($Q31>$I22,D$22*$I22+D$23*($Q31-$I22),$Q31*D$22)+('Incremental Rev Req'!$F$122*$Q31)+IF(Q31>0,$F$12,0) -> 48.50804024 | F83: =IF($R31>$J22,D$25*$J22+D$26*($R31-$J22),$R31*D$25)+('Incremental Rev Req'!$F$122*$R31)+IF(R31>0,$F$12,0) -> 91.10408238 | G83: =IF($Q31>$I22,E$22*$I22+E$23*($Q31-$I22),$Q31*E$22)+('Incremental Rev Req'!$F$122*$Q31)+IF(Q31>0,$H$12,0) -> 48.50804024 | H83: =IF($R31>$J22,E$25*$J22+E$26*($R31-$J22),$R31*E$25)+('Incremental Rev Req'!$F$122*$R31)+IF(R31>0,$H$12,0) -> 91.10408238 | I83: =IF($Q31>$I22,F$22*$I22+F$23*($Q31-$I22),$Q31*F$22)+('Incremental Rev Req'!$F$122*$Q31)+IF(Q31>0,$J$12,0) -> 50.47173004 | J83: =IF($R31>$J22,F$25*$J22+F$26*($R31-$J22),$R31*F$25)+('Incremental Rev Req'!$F$122*$R31)+IF(R31>0,$J$12,0) -> 94.98987682
B84: 2 | C84: =IF($Q32>$I23,C$22*$I23+C$23*($Q32-$I23),$Q32*C$22)+('Incremental Rev Req'!$F$122*$Q32)+IF(Q32>0,$F$12,0) -> 40.94966592 | D84: =IF($R32>$J23,C$25*$J23+C$26*($R32-$J23),$R32*C$25)+('Incremental Rev Req'!$F$122*$R32)+IF(R32>0,$F$12,0) -> 100.7628993 | E84: =IF($Q32>$I23,D$22*$I23+D$23*($Q32-$I23),$Q32*D$22)+('Incremental Rev Req'!$F$122*$Q32)+IF(Q32>0,$F$12,0) -> 40.94966592 | F84: =IF($R32>$J23,D$25*$J23+D$26*($R32-$J23),$R32*D$25)+('Incremental Rev Req'!$F$122*$R32)+IF(R32>0,$F$12,0) -> 100.7628993 | G84: =IF($Q32>$I23,E$22*$I23+E$23*($Q32-$I23),$Q32*E$22)+('Incremental Rev Req'!$F$122*$Q32)+IF(Q32>0,$H$12,0) -> 40.94966592 | H84: =IF($R32>$J23,E$25*$J23+E$26*($R32-$J23),$R32*E$25)+('Incremental Rev Req'!$F$122*$R32)+IF(R32>0,$H$12,0) -> 100.7628993 | I84: =IF($Q32>$I23,F$22*$I23+F$23*($Q32-$I23),$Q32*F$22)+('Incremental Rev Req'!$F$122*$Q32)+IF(Q32>0,$J$12,0) -> 42.57213408 | J84: =IF($R32>$J23,F$25*$J23+F$26*($R32-$J23),$R32*F$25)+('Incremental Rev Req'!$F$122*$R32)+IF(R32>0,$J$12,0) -> 105.0845634
B85: 3 | C85: =IF($Q33>$I24,C$22*$I24+C$23*($Q33-$I24),$Q33*C$22)+('Incremental Rev Req'!$F$122*$Q33)+IF(Q33>0,$F$12,0) -> 42.31809335 | D85: =IF($R33>$J24,C$25*$J24+C$26*($R33-$J24),$R33*C$25)+('Incremental Rev Req'!$F$122*$R33)+IF(R33>0,$F$12,0) -> 135.7172976 | E85: =IF($Q33>$I24,D$22*$I24+D$23*($Q33-$I24),$Q33*D$22)+('Incremental Rev Req'!$F$122*$Q33)+IF(Q33>0,$F$12,0) -> 42.31809335 | F85: =IF($R33>$J24,D$25*$J24+D$26*($R33-$J24),$R33*D$25)+('Incremental Rev Req'!$F$122*$R33)+IF(R33>0,$F$12,0) -> 135.7172976 | G85: =IF($Q33>$I24,E$22*$I24+E$23*($Q33-$I24),$Q33*E$22)+('Incremental Rev Req'!$F$122*$Q33)+IF(Q33>0,$H$12,0) -> 42.31809335 | H85: =IF($R33>$J24,E$25*$J24+E$26*($R33-$J24),$R33*E$25)+('Incremental Rev Req'!$F$122*$R33)+IF(R33>0,$H$12,0) -> 135.7172976 | I85: =IF($Q33>$I24,F$22*$I24+F$23*($Q33-$I24),$Q33*F$22)+('Incremental Rev Req'!$F$122*$Q33)+IF(Q33>0,$J$12,0) -> 44.00233895 | J85: =IF($R33>$J24,F$25*$J24+F$26*($R33-$J24),$R33*F$25)+('Incremental Rev Req'!$F$122*$R33)+IF(R33>0,$J$12,0) -> 141.6161401
B86: 0 | C86: =IF($Q34>$I25,C$22*$I25+C$23*($Q34-$I25),$Q34*C$22)+('Incremental Rev Req'!$F$122*$Q34)+IF(Q34>0,$F$12,0) -> 0 | D86: =IF($R34>$J25,C$25*$J25+C$26*($R34-$J25),$R34*C$25)+('Incremental Rev Req'!$F$122*$R34)+IF(R34>0,$F$12,0) -> 0 | E86: =IF($Q34>$I25,D$22*$I25+D$23*($Q34-$I25),$Q34*D$22)+('Incremental Rev Req'!$F$122*$Q34)+IF(Q34>0,$F$12,0) -> 0 | F86: =IF($R34>$J25,D$25*$J25+D$26*($R34-$J25),$R34*D$25)+('Incremental Rev Req'!$F$122*$R34)+IF(R34>0,$F$12,0) -> 0 | G86: =IF($Q34>$I25,E$22*$I25+E$23*($Q34-$I25),$Q34*E$22)+('Incremental Rev Req'!$F$122*$Q34)+IF(Q34>0,$H$12,0) -> 0 | H86: =IF($R34>$J25,E$25*$J25+E$26*($R34-$J25),$R34*E$25)+('Incremental Rev Req'!$F$122*$R34)+IF(R34>0,$H$12,0) -> 0 | I86: =IF($Q34>$I25,F$22*$I25+F$23*($Q34-$I25),$Q34*F$22)+('Incremental Rev Req'!$F$122*$Q34)+IF(Q34>0,$J$12,0) -> 0 | J86: =IF($R34>$J25,F$25*$J25+F$26*($R34-$J25),$R34*F$25)+('Incremental Rev Req'!$F$122*$R34)+IF(R34>0,$J$12,0) -> 0
B87: Total | C87: =SUMPRODUCT(C83:C86,$U$22:$U$25) -> 0 | D87: =SUMPRODUCT(D83:D86,$U$22:$U$25) -> 0 | E87: =SUMPRODUCT(E83:E86,$U$22:$U$25) -> 0 | F87: 0 | G87: 0 | H87: 0 | I87: 0 | J87: 0
C90: 5-Year Average Monthly Basic Bundled CARE Customer
C91: =C81 -> 2026-01-01 | E91: =E81 -> 2026-01-01 | G91: =G81 -> Authorized | I91: =I81 -> w/Pending
C92: Summer | D92: Winter | E92: Summer | F92: Winter | G92: Summer | H92: Winter | I92: Summer | J92: Winter
B93: =Zones -> 1 | C93: =IF($S31>$I22,C$31*$I22+C$32*($S31-$I22),$S31*C$31)+('Incremental Rev Req'!$F$122*$S31)+IF(S31>0,$Q$12,0) -> 29.32134785 | D93: =IF($T31>$J22,C$34*$J22+C$35*($T31-$J22),$T31*C$34)+('Incremental Rev Req'!$F$122*$T31)+IF(T31>0,$Q$12,0) -> 49.60945357 | E93: =IF($S31>$I22,D$31*$I22+D$32*($S31-$I22),$S31*D$31)+('Incremental Rev Req'!$F$122*$S31)+IF(S31>0,$Q$12,0) -> 29.32134785 | F93: =IF($T31>$J22,D$34*$J22+D$35*($T31-$J22),$T31*D$34)+('Incremental Rev Req'!$F$122*$T31)+IF(T31>0,$Q$12,0) -> 49.60945357 | G93: =IF($S31>$I22,E$31*$I22+E$32*($S31-$I22),$S31*E$31)+('Incremental Rev Req'!$F$122*$S31)+IF(S31>0,$S$12,0) -> 29.32134785 | H93: =IF($T31>$J22,E$34*$J22+E$35*($T31-$J22),$T31*E$34)+('Incremental Rev Req'!$F$122*$T31)+IF(T31>0,$S$12,0) -> 49.60945357 | I93: =IF($S31>$I22,F$31*$I22+F$32*($S31-$I22),$S31*F$31)+('Incremental Rev Req'!$F$122*$S31)+IF(S31>0,$U$12,0) -> 30.46350701 | J93: =IF($T31>$J22,F$34*$J22+F$35*($T31-$J22),$T31*F$34)+('Incremental Rev Req'!$F$122*$T31)+IF(T31>0,$U$12,0) -> 51.66634508
B94: 2 | C94: =IF($S32>$I23,C$31*$I23+C$32*($S32-$I23),$S32*C$31)+('Incremental Rev Req'!$F$122*$S32)+IF(S32>0,$Q$12,0) -> 30.92860087 | D94: =IF($T32>$J23,C$34*$J23+C$35*($T32-$J23),$T32*C$34)+('Incremental Rev Req'!$F$122*$T32)+IF(T32>0,$Q$12,0) -> 73.50537549 | E94: =IF($S32>$I23,D$31*$I23+D$32*($S32-$I23),$S32*D$31)+('Incremental Rev Req'!$F$122*$S32)+IF(S32>0,$Q$12,0) -> 30.92860087 | F94: =IF($T32>$J23,D$34*$J23+D$35*($T32-$J23),$T32*D$34)+('Incremental Rev Req'!$F$122*$T32)+IF(T32>0,$Q$12,0) -> 73.50537549 | G94: =IF($S32>$I23,E$31*$I23+E$32*($S32-$I23),$S32*E$31)+('Incremental Rev Req'!$F$122*$S32)+IF(S32>0,$S$12,0) -> 30.92860087 | H94: =IF($T32>$J23,E$34*$J23+E$35*($T32-$J23),$T32*E$34)+('Incremental Rev Req'!$F$122*$T32)+IF(T32>0,$S$12,0) -> 73.50537549 | I94: =IF($S32>$I23,F$31*$I23+F$32*($S32-$I23),$S32*F$31)+('Incremental Rev Req'!$F$122*$S32)+IF(S32>0,$U$12,0) -> 32.14328827 | J94: =IF($T32>$J23,F$34*$J23+F$35*($T32-$J23),$T32*F$34)+('Incremental Rev Req'!$F$122*$T32)+IF(T32>0,$U$12,0) -> 76.64028448
B95: 3 | C95: =IF($S33>$I24,C$31*$I24+C$32*($S33-$I24),$S33*C$31)+('Incremental Rev Req'!$F$122*$S33)+IF(S33>0,$Q$12,0) -> 41.27409089 | D95: =IF($T33>$J24,C$34*$J24+C$35*($T33-$J24),$T33*C$34)+('Incremental Rev Req'!$F$122*$T33)+IF(T33>0,$Q$12,0) -> 123.2708475 | E95: =IF($S33>$I24,D$31*$I24+D$32*($S33-$I24),$S33*D$31)+('Incremental Rev Req'!$F$122*$S33)+IF(S33>0,$Q$12,0) -> 41.27409089 | F95: =IF($T33>$J24,D$34*$J24+D$35*($T33-$J24),$T33*D$34)+('Incremental Rev Req'!$F$122*$T33)+IF(T33>0,$Q$12,0) -> 123.2708475 | G95: =IF($S33>$I24,E$31*$I24+E$32*($S33-$I24),$S33*E$31)+('Incremental Rev Req'!$F$122*$S33)+IF(S33>0,$S$12,0) -> 41.27409089 | H95: =IF($T33>$J24,E$34*$J24+E$35*($T33-$J24),$T33*E$34)+('Incremental Rev Req'!$F$122*$T33)+IF(T33>0,$S$12,0) -> 123.2708475 | I95: =IF($S33>$I24,F$31*$I24+F$32*($S33-$I24),$S33*F$31)+('Incremental Rev Req'!$F$122*$S33)+IF(S33>0,$U$12,0) -> 42.9556246 | J95: =IF($T33>$J24,F$34*$J24+F$35*($T33-$J24),$T33*F$34)+('Incremental Rev Req'!$F$122*$T33)+IF(T33>0,$U$12,0) -> 128.6506069
B96: 0 | C96: =IF($S34>$I25,C$31*$I25+C$32*($S34-$I25),$S34*C$31)+('Incremental Rev Req'!$F$122*$S34)+IF(S34>0,$Q$12,0) -> 0 | D96: =IF($T34>$J25,C$34*$J25+C$35*($T34-$J25),$T34*C$34)+('Incremental Rev Req'!$F$122*$T34)+IF(T34>0,$Q$12,0) -> 0 | E96: =IF($S34>$I25,D$31*$I25+D$32*($S34-$I25),$S34*D$31)+('Incremental Rev Req'!$F$122*$S34)+IF(S34>0,$Q$12,0) -> 0 | F96: =IF($T34>$J25,D$34*$J25+D$35*($T34-$J25),$T34*D$34)+('Incremental Rev Req'!$F$122*$T34)+IF(T34>0,$Q$12,0) -> 0 | G96: =IF($S34>$I25,E$31*$I25+E$32*($S34-$I25),$S34*E$31)+('Incremental Rev Req'!$F$122*$S34)+IF(S34>0,$S$12,0) -> 0 | H96: =IF($T34>$J25,E$34*$J25+E$35*($T34-$J25),$T34*E$34)+('Incremental Rev Req'!$F$122*$T34)+IF(T34>0,$S$12,0) -> 0 | I96: =IF($S34>$I25,F$31*$I25+F$32*($S34-$I25),$S34*F$31)+('Incremental Rev Req'!$F$122*$S34)+IF(S34>0,$U$12,0) -> 0 | J96: =IF($T34>$J25,F$34*$J25+F$35*($T34-$J25),$T34*F$34)+('Incremental Rev Req'!$F$122*$T34)+IF(T34>0,$U$12,0) -> 0
B97: Total | C97: =SUMPRODUCT(C93:C96,$V$22:$V$25) -> 0 | D97: =SUMPRODUCT(D93:D96,$V$22:$V$25) -> 0 | E97: 0 | F97: 0 | G97: 0 | H97: 0 | I97: 0 | J97: 0

Sheet SetUp
A4: Current Quarter Effective Rate Date | B4: 2026-01-01 | D4: Zones | F4: Revenue Recovery Mechanisms | H4: Years Available for Rate Impact | I4: Procurement Rate Assumption
A5: Beginning of Year Effecive Rate Date | B5: 2026-01-01 | D5: 1 | F5: Core Procurement | H5: 2026 | I5: 0.3876661679
A6: Care Discount % | B6: 0.2 | D6: 2 | F6: Allocated Base Margin | H6: =H5+1 -> 2027 | I6: =I5*(1+J6) -> 0.4264327847 | J6: 0.1
A7: Proposed Residential Fixed Charge | B7: 5 | D7: 3 | F7: Distribution | H7: =H6+1 -> 2028 | I7: =I6*(1+J7) -> 0.4690760632 | J7: 0.1
F8: ECPT adjusted | H8: 2029 | I8: 0.5159836695 | J8: 0.1
D9: All | F9: Local Transmission | H9: 2030 | I9: 0.5675820365 | J9: 0.1
F10: SGIP
F11: GHG End User | H11: =H5-1 -> 2025 | I11: 0.4019996259
A12: Regulatory Fee | B12: 0.0035 | F12: Public Purpose Programs
F13: Backbone Transmission
D14: Other Revenues | F14: 47% Res (LUAF, Other)
D15: and Balancing | F15: ECPT
D16: Accouns | F16: EPAM
F17: CFCA
F18: Non-Residential
F19: Storage
F22: Procurement
F23: Customer Costs
F24: Medium Pressure Distribution
F25: High Pressure Distribution
F26: Local Transmission
F27: Storage
F28: GHG Revenue
F29: Other Balancing Acounts
F30: NGV Costs
F31: Backbone Transmisson
F32: Public Purpose Programs

Sheet Selected Data
A1: ='Authorized Rev Req'!A1 -> 0
A2: ='Authorized Rev Req'!A2 -> Annual Period 2026
A3: ='Authorized Rev Req'!A3 -> Reporting Date: Quarter Ended March 31
A4: Summary of Selected Data
Q5: Revenue
Q6: Requirement
Q7: $000
A8: 1 | B8: Current total system-level revenue requirement that is used for defining the reporting threshold: | Q8: ='Incremental Rev Req'!B5 -> 6914149.915
B9: A | C9: One-percent reporting threshold | Q9: =Q8*0.01 -> 69141.49915
A11: 2* | B11: List of currently open proceedings for which affordability metrics have been filed:
B12: A | C12: ='Incremental Rev Req'!B131 -> A.25-05-015/016 | D12: ='Incremental Rev Req'!A131 -> 2024 GRC Track 3 (PSEP and WMPMA) | Q12: ='Incremental Rev Req'!D131 -> 132245
B13: B | C13: ='Incremental Rev Req'!B130 -> A.25-04-020 | D13: ='Incremental Rev Req'!A130 -> TIMPBA Application | Q13: ='Incremental Rev Req'!D130 -> 173808.37
B14: C | C14: ='Incremental Rev Req'!B137 -> A.24-12-011 | D14: ='Incremental Rev Req'!A137 -> Angeles Link Phase 2 | Q14: ='Incremental Rev Req'!D137 -> 273335.4699
A19: 3 | B19: Total system-level revenue requirement if all pending revenue were granted in full:
B21: A | C21: YE 2026 | Q21: ='Incremental Rev Req'!O146 -> 7356427.085
B22: B | C22: YE 2027 | Q22: ='Incremental Rev Req'!P146 -> 6050776.229
B23: C | C23: YE 2028 | Q23: ='Incremental Rev Req'!Q146 -> 5469887.477
B24: D | C24: YE 2029 | Q24: ='Incremental Rev Req'!R146 -> 5264345.958
B25: E | C25: YE 2030 | Q25: ='Incremental Rev Req'!S146 -> 5203128.495
A27: 4 | B27: Bundled residential average rate (RAR) if all pending revenue were granted in full (from Cost and Rate Tracker (CRT) as submitted by utility): | R27: cents/therm
B28: A | C28: YE 2026 | R28: 198.8646483
B29: B | C29: YE 2027 | R29: 182.6451984
B30: C | C30: YE 2028 | R30: 168.7141708
B31: D | C31: YE 2029 | R31: 163.6468084
B32: E | C32: YE 2030 | R32: 163.012132
A33: 5 | B33: Bundled residential average monthly bill corresponding to RAR above for typical customer in climate zone 1 using a Typical 5-year average usage(from CRT as submitted by utility): | S33: Non-CARE | T33: CARE
B35: A | C35: YE 2026 | S35: 72.73080343 | T35: 41.06492605
B36: B | C36: YE 2027 | S36: 66.75005206 | T36: 37.79408609
B37: C | C37: YE 2028 | S37: 61.61313234 | T37: 34.98473302
B38: D | C38: YE 2029 | S38: 59.74459583 | T38: 33.9628407
B39: E | C39: YE 2030 | S39: 59.51056558 | T39: 33.83485085
C46: *Per D.25-12-044 affordability metrics are only required for >1% increase requests in a GRC filing

Sheet Hypothetical Summary
B1: Inputs: | F1: Assumptions:
F2: Current Effective Rates | H2: =SetUp!B4 -> 2026-01-01
C3: Baseline Region - (Residential bill) | D3: All | F3: Sales Forecast | H3: =Summary!H3 -> 2024
F4: Residential bill calculated using | H4: =Summary!H4 -> Schedule GR, Basic, Bundled, Single Family
D5: Revenue Change ($000) | F5: Non-CARE bill impact calculated with average summer usage of | J5: =IF($D$3="ALL",SUMPRODUCT('Hypothetical Res Bill Impact'!Q22:Q25,'Hypothetical Res Bill Impact'!U22:U25),VLOOKUP($D$3,'Hypothetical Res Bill Impact'!$P$22:$T$25,2,FALSE)) -> 19.85682368 | K5: therms per month
C6: Procurement | F6: Non-CARE bill impact calculated with average winter usage of | J6: =IF($D$3="ALL",SUMPRODUCT('Hypothetical Res Bill Impact'!R22:R25,'Hypothetical Res Bill Impact'!U22:U25),VLOOKUP(D$3,'Hypothetical Res Bill Impact'!$P$22:$T$25,3,FALSE)) -> 50.96524364 | K6: therms per month
C7: Customer Costs | F7: CARE bill impact calculated with average summer usage of | J7: =IF($D$3="ALL",SUMPRODUCT('Hypothetical Res Bill Impact'!S22:S25,'Hypothetical Res Bill Impact'!V22:V25),VLOOKUP($D$3,'Hypothetical Res Bill Impact'!$P$22:$T$25,4,FALSE)) -> 21.85429506 | K7: therms per month
C8: Medium Pressure Distribution | F8: CARE bill impact calculated with average winter usage of | J8: =IF($D$3="ALL",SUMPRODUCT('Hypothetical Res Bill Impact'!T22:T25,'Hypothetical Res Bill Impact'!V22:V25),VLOOKUP($D$3,'Hypothetical Res Bill Impact'!$P$22:$T$25,5,FALSE)) -> 55.43479103 | K8: therms per month
C9: High Pressure Distribution | F9: Average monthly usage is for all customers (Non-CARE and CARE) based on seasonal usage in | K9: =Summary!K9 -> 2025
C10: Local Transmission | F10: Summer season | H10: =Summary!H10 -> 6 | I10: months
C11: Storage | F11: Winter Season | H11: =Summary!H11 -> 6 | I11: months
C12: GHG Revenue
C13: Other Balancing Acounts
C14: NGV Costs
C15: Backbone Transmisson
C16: Public Purpose Programs
C20: Total | D20: =SUM(D6:D18) -> 0
B25: Outputs:
D26: (A) | E26: (B) | F26: (C) | G26: (C)/(A) | H26: (C)/(B) | L26: (A) | M26: (B) | N26: (C) | O26: (C)/(A) | P26: (C)/(B)
B27: Bundled Average Rates - ¢/therm | J27: Total System (Bundled and Unbundled) Average Rates - ¢/therm
B28: Customer Group | D28: =Summary!C24 -> 2026-01-01 | E28: =Summary!D24 -> 2026-01-01 | F28: Proposed | G28: =Summary!G24 -> % Change over 1/1/2026 | H28: =Summary!H24 -> % Change over 1/1/2026 | J28: Customer Group | L28: =D28 -> 2026-01-01 | M28: =E28 -> 2026-01-01 | N28: Proposed | O28: =G28 -> % Change over 1/1/2026 | P28: =H28 -> % Change over 1/1/2026
B29: Residential | D29: 192.1295092 | E29: ='Hypothetical SAR and RAR'!F28 -> 192.1295092 | F29: ='Hypothetical SAR and RAR'!G28 -> 192.1295092 | G29: =$F29/D29-1 -> 0 | H29: =$F29/E29-1 -> 0 | J29: Residential | L29: 191.6750168 | M29: ='Hypothetical SAR and RAR'!Q28 -> 191.6750168 | N29: ='Hypothetical SAR and RAR'!R28 -> 191.6750168 | O29: =$N29/L29-1 -> 0 | P29: =$N29/M29-1 -> 0
B30: System | D30: 45.13316575 | E30: ='Hypothetical SAR and RAR'!F29 -> 45.13316575 | F30: ='Hypothetical SAR and RAR'!G29 -> 45.13316575 | G30: =$F30/D30-1 -> 0 | H30: =$F30/E30-1 -> 0 | J30: System | L30: 20.25987722 | M30: ='Hypothetical SAR and RAR'!Q29 -> 20.25987722 | N30: ='Hypothetical SAR and RAR'!R29 -> 20.25987722 | O30: =$N30/L30-1 -> 0 | P30: =$N30/M30-1 -> 0
B33: Basic Bundled Residential Monthly Average Bills
D34: =$D$28 -> 2026-01-01 | E34: =$E$28 -> 2026-01-01 | F34: =$F$28 -> Proposed | G34: =$G$28 -> % Change over 1/1/2026 | H34: =$H$28 -> % Change over 1/1/2026
B35: Non-CARE | D35: =((D41*$H$10)+(D47*$H$11))/12 -> 65.50994973 | E35: =((E41*$H$10)+(E47*$H$11))/12 -> 65.50994973 | F35: 65.50994973 | G35: =$F35/D35-1 -> 0 | H35: 0
B36: CARE | D36: =((D42*$H$10)+(D48*$H$11))/12 -> 56.51178124 | E36: 56.51178124 | F36: 56.51178124 | G36: 0 | H36: 0
B37: Total | D37: =((D43*$H$10)+(D49*$H$11))/12 -> 63.12085682 | E37: 63.12085682 | F37: 63.12085682 | G37: 0 | H37: 0 | J37: ='Hypothetical Res Bill Impact'!P18 -> Basic Bundled
J38: ='Hypothetical Res Bill Impact'!P19 -> 2025 Recorded Data - Average Monthly Usage - ALL-BASIC th
B39: Basic Bundled Residential Monthly Average Bills - Summer | J39: Climate Zone | K39: Summer | L39: Winter | M39: Summer | N39: Winter
D40: =D34 -> 2026-01-01 | E40: =E28 -> 2026-01-01 | F40: =F28 -> Proposed | G40: =G28 -> % Change over 1/1/2026 | H40: =$H$28 -> % Change over 1/1/2026 | K40: Non-CARE | M40: CARE
B41: Non-CARE | D41: =IF($D$3="All",'Hypothetical Res Bill Impact'!$C$47,(VLOOKUP($D$3,'Hypothetical Res Bill Impact'!$B$43:$J$46,2,FALSE))) -> 41.01934983 | E41: =IF($D$3="All",'Hypothetical Res Bill Impact'!$E$47,(VLOOKUP($D$3,'Hypothetical Res Bill Impact'!$B$43:$J$46,4,FALSE))) -> 41.01934983 | F41: =IF($D$3="All",'Hypothetical Res Bill Impact'!$G$47,(VLOOKUP($D$3,'Hypothetical Res Bill Impact'!$B$43:$J$46,6,FALSE))) -> 41.01934983 | G41: =$F41/D41-1 -> 0 | H41: 0 | J41: =Zones -> 1 | K41: ='Hypothetical Res Bill Impact'!Q22 -> 21.82671825 | L41: ='Hypothetical Res Bill Impact'!R22 -> 41.84251746 | M41: ='Hypothetical Res Bill Impact'!S22 -> 18.4179232 | N41: ='Hypothetical Res Bill Impact'!T22 -> 32.87761186
B42: CARE | D42: =IF($D$3="All",'Hypothetical Res Bill Impact'!$C$57,(VLOOKUP($D$3,'Hypothetical Res Bill Impact'!$B$53:$J$56,2,FALSE))) -> 35.63707343 | E42: =IF($D$3="All",'Hypothetical Res Bill Impact'!$E$57,(VLOOKUP($D$3,'Hypothetical Res Bill Impact'!$B$53:$J$56,4,FALSE))) -> 35.63707343 | F42: =IF($D$3="All",'Hypothetical Res Bill Impact'!$G$57,(VLOOKUP($D$3,'Hypothetical Res Bill Impact'!$B$53:$J$56,6,FALSE))) -> 35.63707343 | G42: 0 | H42: 0 | J42: 2 | K42: ='Hypothetical Res Bill Impact'!Q23 -> 18.16887727 | L42: ='Hypothetical Res Bill Impact'!R23 -> 45.73604348 | M42: ='Hypothetical Res Bill Impact'!S23 -> 19.08467632 | N42: ='Hypothetical Res Bill Impact'!T23 -> 46.37958422
B43: Total | D43: =D41*(1-'Hypothetical SAR and RAR'!$Z$16)+D42*'Hypothetical SAR and RAR'!$Z$16 -> 39.59030809 | E43: =E41*(1-'Hypothetical SAR and RAR'!$Z$16)+E42*'Hypothetical SAR and RAR'!$Z$16 -> 39.59030809 | F43: =F41*(1-'Hypothetical SAR and RAR'!$Z$16)+F42*'Hypothetical SAR and RAR'!$Z$16 -> 39.59030809 | G43: 0 | H43: 0 | J43: 3 | K43: ='Hypothetical Res Bill Impact'!Q24 -> 19.64221673 | L43: ='Hypothetical Res Bill Impact'!R24 -> 62.15196399 | M43: ='Hypothetical Res Bill Impact'!S24 -> 25.47898298 | N43: ='Hypothetical Res Bill Impact'!T24 -> 73.17270362
J44: 0 | K44: ='Hypothetical Res Bill Impact'!Q25 -> 0 | L44: ='Hypothetical Res Bill Impact'!R25 -> 0 | M44: ='Hypothetical Res Bill Impact'!S25 -> 0 | N44: ='Hypothetical Res Bill Impact'!T25 -> 0
B45: Basic Bundled Residential Monthly Average Bills - Winter
D46: =$D$28 -> 2026-01-01 | E46: =$E$28 -> 2026-01-01 | F46: =F40 -> Proposed | G46: =G28 -> % Change over 1/1/2026 | H46: =$H$28 -> % Change over 1/1/2026
B47: Non-CARE | D47: =IF($D$3="All",'Hypothetical Res Bill Impact'!$D$47,(VLOOKUP($D$3,'Hypothetical Res Bill Impact'!$B$43:$J$46,3,FALSE))) -> 90.00054962 | E47: =IF($D$3="All",'Hypothetical Res Bill Impact'!$F$47,(VLOOKUP($D$3,'Hypothetical Res Bill Impact'!$B$43:$J$46,5,FALSE))) -> 90.00054962 | F47: =IF($D$3="All",'Hypothetical Res Bill Impact'!$H$47,(VLOOKUP($D$3,'Hypothetical Res Bill Impact'!$B$43:$J$46,7,FALSE))) -> 90.00054962 | G47: =$F47/D47-1 -> 0 | H47: 0
B48: CARE | D48: =IF($D$3="All",'Hypothetical Res Bill Impact'!$D$57,(VLOOKUP($D$3,'Hypothetical Res Bill Impact'!$B$53:$J$56,3,FALSE))) -> 77.38648905 | E48: =IF($D$3="All",'Hypothetical Res Bill Impact'!$F$57,(VLOOKUP($D$3,'Hypothetical Res Bill Impact'!$B$53:$J$56,5,FALSE))) -> 77.38648905 | F48: =IF($D$3="All",'Hypothetical Res Bill Impact'!$H$57,(VLOOKUP($D$3,'Hypothetical Res Bill Impact'!$B$53:$J$56,7,FALSE))) -> 77.38648905 | G48: 0 | H48: 0
B49: Total | D49: =D47*(1-'Hypothetical SAR and RAR'!$Z$16)+D48*'Hypothetical SAR and RAR'!$Z$16 -> 86.65140555 | E49: =E47*(1-'Hypothetical SAR and RAR'!$Z$16)+E48*'Hypothetical SAR and RAR'!$Z$16 -> 86.65140555 | F49: =F47*(1-'Hypothetical SAR and RAR'!$Z$16)+F48*'Hypothetical SAR and RAR'!$Z$16 -> 86.65140555 | G49: 0 | H49: 0
B52: Basic Bundled Essential Use Residential Monthly Average Bills
D53: =D46 -> 2026-01-01 | E53: =E46 -> 2026-01-01 | F53: =F46 -> Proposed | G53: =$G$28 -> % Change over 1/1/2026 | H53: % Change over Authorized
B54: Essential Use - Non-CARE | D54: =((D60*$H$10)+(D66*$H$11))/12 -> 56.47316417 | E54: =((E60*$H$10)+(E66*$H$11))/12 -> 56.47316417 | F54: 56.47316417 | G54: =$F54/D54-1 -> 0 | H54: 0
B55: Essential Use - CARE | D55: =((D61*$H$10)+(D67*$H$11))/12 -> 45.52583908 | E55: 45.52583908 | F55: 45.52583908 | G55: 0 | H55: 0
B56: Total | D56: =((D62*$H$10)+(D68*$H$11))/12 -> 53.56655303 | E56: 53.56655303 | F56: 53.56655303 | G56: 0 | H56: 0
J57: ='Res Bill Impact'!H19 -> Essential Usage
B58: Basic Bundled Essential Use Residential Monthly Average Bills - Summer | J58: Monthly Tier 1 Baseline Allowance -BASIC (th)
D59: =D53 -> 2026-01-01 | E59: =E53 -> 2026-01-01 | F59: =F53 -> Proposed | G59: =$G$28 -> % Change over 1/1/2026 | H59: % Change over Authorized | J59: Climate Zone | K59: Summer | L59: Winter
B60: Essential Use - Non-CARE | D60: =IF($D$3="All",'Hypothetical Res Bill Impact'!C67,(VLOOKUP($D$3,'Hypothetical Res Bill Impact'!$B$63:$J$66,2,FALSE))) -> 26.37276889 | E60: =IF($D$3="All",'Hypothetical Res Bill Impact'!E67,(VLOOKUP($D$3,'Hypothetical Res Bill Impact'!$B$63:$J$66,4,FALSE))) -> 26.37276889 | F60: =IF($D$3="All",'Hypothetical Res Bill Impact'!G67,(VLOOKUP($D$3,'Hypothetical Res Bill Impact'!$B$63:$J$66,6,FALSE))) -> 26.37276889 | G60: =$F60/D60-1 -> 0 | H60: 0 | J60: =Zones -> 1 | K60: ='Hypothetical Res Bill Impact'!I22 -> 13 | L60: ='Hypothetical Res Bill Impact'!J22 -> 37.33333333
B61: Essential Use - CARE | D61: =IF($D$3="All",'Hypothetical Res Bill Impact'!C77,(VLOOKUP($D$3,'Hypothetical Res Bill Impact'!$B$73:$J$76,2,FALSE))) -> 20.7461955 | E61: =IF($D$3="All",'Hypothetical Res Bill Impact'!E77,(VLOOKUP($D$3,'Hypothetical Res Bill Impact'!$B$73:$J$76,4,FALSE))) -> 20.7461955 | F61: =IF($D$3="All",'Hypothetical Res Bill Impact'!G77,(VLOOKUP($D$3,'Hypothetical Res Bill Impact'!$B$73:$J$76,6,FALSE))) -> 20.7461955 | G61: 0 | H61: 0 | J61: 2 | K61: ='Hypothetical Res Bill Impact'!I23 -> 13 | L61: ='Hypothetical Res Bill Impact'!J23 -> 42.16666667
B62: Total | D62: =D60*(1-'Hypothetical SAR and RAR'!$Z$16)+D61*'Hypothetical SAR and RAR'!$Z$16 -> 24.87886415 | E62: =E60*(1-'Hypothetical SAR and RAR'!$Z$16)+E61*'Hypothetical SAR and RAR'!$Z$16 -> 24.87886415 | F62: =F60*(1-'Hypothetical SAR and RAR'!$Z$16)+F61*'Hypothetical SAR and RAR'!$Z$16 -> 24.87886415 | G62: 0 | H62: 0 | J62: 3 | K62: ='Hypothetical Res Bill Impact'!I24 -> 13 | L62: ='Hypothetical Res Bill Impact'!J24 -> 65
J63: 0 | K63: ='Hypothetical Res Bill Impact'!I25 -> 0 | L63: ='Hypothetical Res Bill Impact'!J25 -> 0
B64: Basic Bundled Essential Use Residential Monthly Average Bills - Winter
D65: =D59 -> 2026-01-01 | E65: =E59 -> 2026-01-01 | F65: =F59 -> Proposed | G65: =$G$28 -> % Change over 1/1/2026 | H65: % Change over Authorized
B66: Essential Use - Non-CARE | D66: =IF($D$3="All",'Hypothetical Res Bill Impact'!D67,(VLOOKUP($D$3,'Hypothetical Res Bill Impact'!$B$63:$J$66,3,FALSE))) -> 86.57355945 | E66: =IF($D$3="All",'Hypothetical Res Bill Impact'!F67,(VLOOKUP($D$3,'Hypothetical Res Bill Impact'!$B$63:$J$66,5,FALSE))) -> 86.57355945 | F66: =IF($D$3="All",'Hypothetical Res Bill Impact'!H67,(VLOOKUP($D$3,'Hypothetical Res Bill Impact'!$B$63:$J$66,7,FALSE))) -> 86.57355945 | G66: =$F66/D66-1 -> 0 | H66: 0
B67: Essential Use - CARE | D67: =IF($D$3="All",'Hypothetical Res Bill Impact'!D77,(VLOOKUP($D$3,'Hypothetical Res Bill Impact'!$B$73:$J$76,3,FALSE))) -> 70.30548265 | E67: =IF($D$3="All",'Hypothetical Res Bill Impact'!F77,(VLOOKUP($D$3,'Hypothetical Res Bill Impact'!$B$73:$J$76,5,FALSE))) -> 70.30548265 | F67: =IF($D$3="All",'Hypothetical Res Bill Impact'!H77,(VLOOKUP($D$3,'Hypothetical Res Bill Impact'!$B$73:$J$76,7,FALSE))) -> 70.30548265 | G67: 0 | H67: 0
B68: Total | D68: =D66*(1-'Hypothetical SAR and RAR'!$Z$16)+D67*'Hypothetical SAR and RAR'!$Z$16 -> 82.25424192 | E68: =E66*(1-'Hypothetical SAR and RAR'!$Z$16)+E67*'Hypothetical SAR and RAR'!$Z$16 -> 82.25424192 | F68: =F66*(1-'Hypothetical SAR and RAR'!$Z$16)+F67*'Hypothetical SAR and RAR'!$Z$16 -> 82.25424192 | G68: 0 | H68: 0
B71: Basic Bundled Typical Residential Monthly Average Bills
D72: =D65 -> 2026-01-01 | E72: =E65 -> 2026-01-01 | F72: =F65 -> Proposed | G72: =$G$28 -> % Change over 1/1/2026 | H72: % Change over Authorized
B73: 5-Year Average Usage - Non-CARE | D73: =((D79*$H$10)+(D85*$H$11))/12 -> 74.88180842 | E73: =((E79*$H$10)+(E85*$H$11))/12 -> 74.88180842 | F73: 74.88180842 | G73: =$F73/D73-1 -> 0 | H73: 0
C74: 5-Year Average Usage - CARE | D74: =((D80*$H$10)+(D86*$H$11))/12 -> 60.71413325 | E74: 60.71413325 | F74: 60.71413325 | G74: 0 | H74: 0
B75: Total | D75: =((D81*$H$10)+(D87*$H$11))/12 -> 71.120166 | E75: 71.120166 | F75: 71.120166 | G75: 0 | H75: 0 | J75: ='Hypothetical Res Bill Impact'!P27 -> Typical Bundled
J76: ='Hypothetical Res Bill Impact'!P28 -> 2021-2025 Recorded Data - Average Monthly Usage - ALL-BASIC th
B77: Basic Bundled Typical Residential Monthly Average Bills - Summer | J77: Climate Zone | K77: Summer | L77: Winter | M77: Summer | N77: Winter
D78: =D72 -> 2026-01-01 | E78: =E72 -> 2026-01-01 | F78: =F72 -> Proposed | G78: =$G$28 -> % Change over 1/1/2026 | H78: % Change over Authorized | K78: Non-CARE | M78: CARE
B79: 5-Year Average Usage - Non-CARE | D79: =IF($D$3="All",'Hypothetical Res Bill Impact'!C87,(VLOOKUP($D$3,'Hypothetical Res Bill Impact'!$B$83:$J$86,2,FALSE))) -> 42.31414525 | E79: =IF($D$3="All",'Hypothetical Res Bill Impact'!E87,(VLOOKUP($D$3,'Hypothetical Res Bill Impact'!$B$83:$J$86,4,FALSE))) -> 42.31414525 | F79: =IF($D$3="All",'Hypothetical Res Bill Impact'!G87,(VLOOKUP($D$3,'Hypothetical Res Bill Impact'!$B$83:$J$86,6,FALSE))) -> 42.31414525 | G79: =$F79/D79-1 -> 0 | H79: 0 | J79: =Zones -> 1 | K79: ='Hypothetical Res Bill Impact'!Q31 -> 22.59132906 | L79: ='Hypothetical Res Bill Impact'!R31 -> 47.38245383 | M79: ='Hypothetical Res Bill Impact'!S31 -> 17.52905798 | N79: ='Hypothetical Res Bill Impact'!T31 -> 34.06667279
C80: 5-Year Average Usage - CARE | D80: =IF($D$3="All",'Hypothetical Res Bill Impact'!C97,(VLOOKUP($D$3,'Hypothetical Res Bill Impact'!$B$93:$J$96,2,FALSE))) -> 34.09970227 | E80: =IF($D$3="All",'Hypothetical Res Bill Impact'!E97,(VLOOKUP($D$3,'Hypothetical Res Bill Impact'!$B$93:$J$96,4,FALSE))) -> 34.09970227 | F80: =IF($D$3="All",'Hypothetical Res Bill Impact'!G97,(VLOOKUP($D$3,'Hypothetical Res Bill Impact'!$B$93:$J$96,6,FALSE))) -> 34.09970227 | G80: 0 | H80: 0 | J80: 2 | K80: ='Hypothetical Res Bill Impact'!Q32 -> 19.18689438 | L80: ='Hypothetical Res Bill Impact'!R32 -> 52.84630184 | M80: ='Hypothetical Res Bill Impact'!S32 -> 18.44856514 | N80: ='Hypothetical Res Bill Impact'!T32 -> 49.63336211
B81: Total | D81: =D79*(1-'Hypothetical SAR and RAR'!$Z$16)+D80*'Hypothetical SAR and RAR'!$Z$16 -> 40.13313836 | E81: =E79*(1-'Hypothetical SAR and RAR'!$Z$16)+E80*'Hypothetical SAR and RAR'!$Z$16 -> 40.13313836 | F81: =F79*(1-'Hypothetical SAR and RAR'!$Z$16)+F80*'Hypothetical SAR and RAR'!$Z$16 -> 40.13313836 | G81: 0 | H81: 0 | J81: 3 | K81: ='Hypothetical Res Bill Impact'!Q33 -> 19.80325997 | L81: ='Hypothetical Res Bill Impact'!R33 -> 73.84996822 | M81: ='Hypothetical Res Bill Impact'!S33 -> 24.3672052 | N81: ='Hypothetical Res Bill Impact'!T33 -> 83.44843671
J82: 0 | K82: ='Hypothetical Res Bill Impact'!Q34 -> 0 | L82: ='Hypothetical Res Bill Impact'!R34 -> 0 | M82: ='Hypothetical Res Bill Impact'!S34 -> 0 | N82: ='Hypothetical Res Bill Impact'!T34 -> 0
B83: Basic Bundled Typical Residential Monthly Average Bills - Winter
D84: =D78 -> 2026-01-01 | E84: =E78 -> 2026-01-01 | F84: =F78 -> Proposed | G84: =$G$28 -> % Change over 1/1/2026 | H84: % Change over Authorized
B85: 5-Year Average Usage - Non-CARE | D85: =IF($D$3="All",'Hypothetical Res Bill Impact'!D87,(VLOOKUP($D$3,'Hypothetical Res Bill Impact'!$B$83:$J$86,3,FALSE))) -> 107.4494716 | E85: =IF($D$3="All",'Hypothetical Res Bill Impact'!F87,(VLOOKUP($D$3,'Hypothetical Res Bill Impact'!$B$83:$J$86,5,FALSE))) -> 107.4494716 | F85: =IF($D$3="All",'Hypothetical Res Bill Impact'!H87,(VLOOKUP($D$3,'Hypothetical Res Bill Impact'!$B$83:$J$86,7,FALSE))) -> 107.4494716 | G85: =$F85/D85-1 -> 0 | H85: 0
C86: 5-Year Average Usage - CARE | D86: =IF($D$3="All",'Hypothetical Res Bill Impact'!D97,(VLOOKUP($D$3,'Hypothetical Res Bill Impact'!$B$93:$J$96,3,FALSE))) -> 87.32856424 | E86: =IF($D$3="All",'Hypothetical Res Bill Impact'!F97,(VLOOKUP($D$3,'Hypothetical Res Bill Impact'!$B$93:$J$96,5,FALSE))) -> 87.32856424 | F86: =IF($D$3="All",'Hypothetical Res Bill Impact'!H97,(VLOOKUP($D$3,'Hypothetical Res Bill Impact'!$B$93:$J$96,7,FALSE))) -> 87.32856424 | G86: 0 | H86: 0
B87: Total | D87: =D85*(1-'Hypothetical SAR and RAR'!$Z$16)+D86*'Hypothetical SAR and RAR'!$Z$16 -> 102.1071936 | E87: =E85*(1-'Hypothetical SAR and RAR'!$Z$16)+E86*'Hypothetical SAR and RAR'!$Z$16 -> 102.1071936 | F87: =F85*(1-'Hypothetical SAR and RAR'!$Z$16)+F86*'Hypothetical SAR and RAR'!$Z$16 -> 102.1071936 | G87: 0 | H87: 0

Sheet Hypothetical SAR and RAR
B2: Revenue Change ($000)
A3: =RevRecoveryMechanisms -> Core Procurement | B3: ='Hypothetical Summary'!D6 -> 0 | F3: Allocation
A4: Allocated Base Margin | B4: ='Hypothetical Summary'!D7 -> 0 | F4: =TRANSPOSE(RevRecoveryMechanisms) -> Core Procurement | G4: Allocated Base Margin | H4: Distribution | I4: ECPT adjusted | J4: Local Transmission | K4: SGIP | L4: GHG End User | M4: Public Purpose Programs | N4: Backbone Transmission | O4: 47% Res (LUAF, Other) | P4: ECPT | Q4: EPAM | R4: CFCA | S4: Non-Residential
A5: Distribution | B5: ='Hypothetical Summary'!D8 -> 0 | E5: Residential | F5: ='SAR and RAR'!F5 -> 0.6660172187 | G5: ='SAR and RAR'!G5 -> 0.708839031 | H5: ='SAR and RAR'!H5 -> 0.6095871975 | I5: ='SAR and RAR'!I5 -> 0.4012431755 | J5: ='SAR and RAR'!J5 -> 0.4207017225 | K5: ='SAR and RAR'!K5 -> 0.3707585355 | L5: ='SAR and RAR'!L5 -> 0.5437255755 | M5: ='SAR and RAR'!M5 -> 0.5526432166 | N5: ='SAR and RAR'!N5 -> 0 | O5: ='SAR and RAR'!O5 -> 0.4735382425 | P5: ='SAR and RAR'!P5 -> 0.2583309048 | Q5: ='SAR and RAR'!Q5 -> 0.708839031 | R5: ='SAR and RAR'!R5 -> 0.7082921542 | S5: ='SAR and RAR'!S5 -> 0
A6: ECPT adjusted | B6: ='Hypothetical Summary'!D9 -> 0
A7: Local Transmission | B7: ='Hypothetical Summary'!D10 -> 0 | F7: Revenue Change ($000) - System
A8: SGIP | B8: ='Hypothetical Summary'!D11 -> 0 | E8: w/Proposed | F8: =TRANSPOSE(RevRecoveryMechanisms) -> Core Procurement | G8: Allocated Base Margin | H8: Distribution | I8: ECPT adjusted | J8: Local Transmission | K8: SGIP | L8: GHG End User | M8: Public Purpose Programs | N8: Backbone Transmission | O8: 47% Res (LUAF, Other) | P8: ECPT | Q8: EPAM | R8: CFCA | S8: Non-Residential
A9: GHG End User | B9: ='Hypothetical Summary'!D12 -> 0 | E9: Residential | F9: =F5*F10 -> 0 | G9: =G5*G10 -> 0 | H9: =H5*H10 -> 0 | I9: 0 | J9: 0 | K9: 0 | L9: 0 | M9: 0 | N9: =N5*N10 -> 0 | O9: 0 | P9: =P5*P10 -> 0 | Q9: =Q5*Q10 -> 0 | R9: =R5*R10 -> 0 | S9: 0 | T9: =SUM(F9:S9) -> 0 | U9: Check
A10: Public Purpose Programs | B10: ='Hypothetical Summary'!D13 -> 0 | E10: Total System | F10: =B3 -> 0 | G10: =B4 -> 0 | H10: =B5 -> 0 | I10: =B6 -> 0 | J10: =B7 -> 0 | K10: =B8 -> 0 | L10: =B9 -> 0 | M10: =B10 -> 0 | N10: =B11 -> 0 | O10: =B12 -> 0 | P10: =B13 -> 0 | Q10: =B14 -> 0 | R10: =B15 -> 0 | S10: =B16 -> 0 | T10: =SUM(F10:S10) -> 0 | U10: =T10-B17 -> 0
A11: Backbone Transmission | B11: ='Hypothetical Summary'!D14 -> 0
A12: 47% Res (LUAF, Other) | B12: ='Hypothetical Summary'!D15 -> 0
A13: ECPT | B13: ='Hypothetical Summary'!D16 -> 0
A14: EPAM | B14: ='Hypothetical Summary'!D17 -> 0
A15: CFCA | B15: ='Hypothetical Summary'!D18 -> 0 | Z15: w/Proposed
A16: Non-Residential | B16: ='Hypothetical Summary'!D14 -> 0 | T16: Total UDC w/Proposed | V16: Commodity w/Proposed | Y16: % of CARE Sales (Bundled) | Z16: ='SAR and RAR'!AB15 -> 0.2655087991
A17: Total | B17: =SUM(B3:B16) -> 0 | F17: Revenue Split - Bundled | T17: Bundled Revenue Change | V17: Bundled Revenue Change
A18: CPUC Fee | B18: ='SAR and RAR'!C18 -> 0.0035 | F18: =TRANSPOSE(RevRecoveryMechanisms) -> Core Procurement | G18: Allocated Base Margin | H18: Distribution | I18: ECPT adjusted | J18: Local Transmission | K18: SGIP | L18: GHG End User | M18: Public Purpose Programs | N18: Backbone Transmission | O18: 47% Res (LUAF, Other) | P18: ECPT | Q18: EPAM | R18: CFCA | S18: Non-Residential | T18: Total | V18: Total
E19: Residential | F19: 1 | G19: 1 | H19: 1 | I19: 1 | J19: 1 | K19: 1 | L19: 1 | M19: 1 | N19: 1 | O19: 1 | P19: 1 | Q19: 1 | R19: 1 | S19: 0 | T19: =SUMPRODUCT(G9:R9,G19:R19) -> 0 | V19: =SUMPRODUCT(F9,F19) -> 0
E20: Total System | F20: 1 | G20: 1 | H20: 1 | I20: 1 | J20: 1 | K20: 1 | L20: 1 | M20: 1 | N20: 1 | O20: 1 | P20: 1 | Q20: 1 | R20: 1 | S20: 0 | T20: =SUMPRODUCT(G10:R10,G20:R20) -> 0 | V20: =SUMPRODUCT(F10,F20) -> 0
B22: ='SAR and RAR'!B22 -> CAP D.24-07-009 SALES DETERMINANTS SYSTEM NET (MTH) Average year Throughput | C22: ='SAR and RAR'!C22 -> CAP D.24-07-009 SALES DETERMINANTS BUNDLED (MTH)Average year throughput
A23: Residential | B23: ='SAR and RAR'!B23 -> 2185982.983 | C23: ='SAR and RAR'!C23 -> 2158593.606
A24: Total System | B24: ='SAR and RAR'!B24 -> 8461949.161 | C24: ='SAR and RAR'!C24 -> 3032625.674
E26: Bundled | O26: System (Bundled and Unbundled)
E27: =Summary!H3&" Authorized Sales Forecast" -> 2024 Authorized Sales Forecast | F27: ='SAR and RAR'!F27 -> 01/01/2026 Avg Rates(sales adj.) | G27: Proposed Avg Rates | H27: % Change | P27: =E27 -> 2024 Authorized Sales Forecast | Q27: =F27 -> 01/01/2026 Avg Rates(sales adj.) | R27: Proposed Avg Rates | S27: % Change
D28: Residential | E28: ='SAR and RAR'!E28 -> 2158593.606 | F28: 192.1295092 | G28: =(T19/B23*100)+(V19/C23*100)+F28 -> 192.1295092 | H28: =G28/F28-1 -> 0 | O28: Residential | P28: ='SAR and RAR'!P28 -> 2185982.983 | Q28: 191.6750168 | R28: =T9/P28*100+Q28 -> 191.6750168 | S28: =R28/Q28-1 -> 0
D29: Total System | E29: ='SAR and RAR'!E29 -> 3032625.674 | F29: 45.13316575 | G29: =(T20/B24*100)+(V20/C24*100)+F29 -> 45.13316575 | H29: =G29/F29-1 -> 0 | O29: Total System | P29: ='SAR and RAR'!P29 -> 8461949.161 | Q29: 20.25987722 | R29: =T10/P29*100+Q29 -> 20.25987722 | S29: =R29/Q29-1 -> 0

Sheet Hypothetical Res Bill Impact
E3: Schedule GR | P3: Schedule GR [CARE]
E4: ='Res Bill Impact'!E4 -> 2024 | F4: ='Res Bill Impact'!F4 -> 2026-01-01 | G4: ='Res Bill Impact'!G4 -> 2026-01-01 | H4: Proposed | I4: Proposed | P4: =SalesForecastYear -> 2024 | Q4: ='Res Bill Impact'!Q4 -> 2026-01-01 | R4: ='Res Bill Impact'!R4 -> 2026-01-01 | S4: Proposed | T4: Proposed
E5: Sales Forecast | F5: Rates | G5: Revenue | H5: Rates | I5: Revenue | P5: Sales Forecast | Q5: Rates | R5: Revenue | S5: Rates | T5: Revenue
D7: Baseline | E7: ='Res Bill Impact'!E7 -> 1106153.307 | F7: ='Res Bill Impact'!F7 -> 1.640559146 | G7: =F7*E7 -> 1814709.924 | H7: =(Y10/SUM(SUM(E7),F9/F7*SUM(E9),SUM(P7)*(1+(Q7/F7-1)),SUM(P9)*(1+(Q9/F9-1))*F9/F7)) -> 1.640559146 | I7: =E7*H7 -> 1814709.924 | O7: Baseline | P7: ='Res Bill Impact'!P7 -> 408227.7802 | Q7: ='Res Bill Impact'!Q7 -> 1.284668885 | R7: ='Res Bill Impact'!R7 -> 524437.5271 | S7: =H7*(1+(Q7/F7-1)) -> 1.284668885 | T7: =P7*S7 -> 524437.5271 | X7: Bundled Residential Rev Req
X8: Current | Y8: =(SUM(G7:G9)+SUM(R7:R9)) -> 3689132.609
D9: Non-Baseline | E9: ='Res Bill Impact'!E9 -> 490559.9158 | F9: ='Res Bill Impact'!F9 -> 2.132559146 | G9: =F9*E9 -> 1046148.035 | H9: =F9/F$7*H$7 -> 2.132559146 | I9: =E9*H9 -> 1046148.035 | O9: Non-Baseline | P9: ='Res Bill Impact'!P9 -> 181041.9805 | Q9: ='Res Bill Impact'!Q9 -> 1.678268885 | R9: ='Res Bill Impact'!R9 -> 303837.1227 | S9: =H9*(1+(Q9/F9-1)) -> 1.678268885 | T9: =P9*S9 -> 303837.1227 | X9: Change (Proposed) | Y9: ='Hypothetical SAR and RAR'!T9 -> 0
X10: Proposed (w/ Current Revenues) | Y10: =Y8+Y9 -> 3689132.609
E11: Non-CARE customers | P11: CARE Customers
D12: Fixed Charge | E12: =E13-P12 -> 4047089.348 | F12: 5 | G12: =F12*12*E12/1000 -> 242825.3609 | H12: 5 | I12: =(H12*12*E12)/1000 -> 242825.3609 | O12: Fixed Charge | P12: ='Res Bill Impact'!P12 -> 1799771 | Q12: =F12*(1-CAREDiscountPercent) -> 4 | R12: =Q12*12*P12/1000 -> 86389.008 | S12: =H12*(1-CAREDiscountPercent) -> 4 | T12: =(S12*12*P12)/1000 -> 86389.008
D13: Total Customers | E13: ='Res Bill Impact'!E13 -> 5846860.348
P18: ='Res Bill Impact'!P18 -> Basic Bundled
H19: ='Res Bill Impact'!H19 -> Essential Usage | P19: ='Res Bill Impact'!P19 -> 2025 Recorded Data - Average Monthly Usage - ALL-BASIC th
B20: SCHEDULE DR RATES ($/th) | H20: Monthly Tier 1 Baseline Allowance -BASIC (th) | P20: Climate Zone | Q20: Summer | R20: Winter | S20: Summer | T20: Winter | U20: Population Weight
B21: Rates | C21: ='Res Bill Impact'!C21 -> 2026-01-01 | D21: ='Res Bill Impact'!D21 -> 2026-01-01 | E21: Proposed | H21: Climate Zone | I21: Summer | J21: Winter | Q21: Non-CARE | S21: CARE | U21: Non-CARE | V21: CARE
A22: Summer | B22: Tier 1 | C22: 1.640559146 | D22: 1.640559146 | E22: =H7 -> 1.640559146 | H22: =Zones -> 1 | I22: ='Res Bill Impact'!I22 -> 13 | J22: ='Res Bill Impact'!J22 -> 37.33333333 | P22: =Zones -> 1 | Q22: ='Res Bill Impact'!Q22 -> 21.82671825 | R22: ='Res Bill Impact'!R22 -> 41.84251746 | S22: ='Res Bill Impact'!S22 -> 18.4179232 | T22: ='Res Bill Impact'!T22 -> 32.87761186 | U22: =SUM(Q22:R22)/SUM($Q$22:$R$25) -> 0.3041015493 | V22: =SUM(S22:T22)/SUM($S$22:$T$25) -> 0.2381281375
B23: Tier 2 | C23: 2.132559146 | D23: 2.132559146 | E23: =H9 -> 2.132559146 | H23: 2 | I23: ='Res Bill Impact'!I23 -> 13 | J23: ='Res Bill Impact'!J23 -> 42.16666667 | P23: 2 | Q23: ='Res Bill Impact'!Q23 -> 18.16887727 | R23: ='Res Bill Impact'!R23 -> 45.73604348 | S23: ='Res Bill Impact'!S23 -> 19.08467632 | T23: ='Res Bill Impact'!T23 -> 46.37958422 | U23: =SUM(Q23:R23)/SUM($Q$22:$R$25) -> 0.305227245 | V23: =SUM(S23:T23)/SUM($S$22:$T$25) -> 0.3039033011
H24: 3 | I24: ='Res Bill Impact'!I24 -> 13 | J24: ='Res Bill Impact'!J24 -> 65 | P24: 3 | Q24: ='Res Bill Impact'!Q24 -> 19.64221673 | R24: ='Res Bill Impact'!R24 -> 62.15196399 | S24: ='Res Bill Impact'!S24 -> 25.47898298 | T24: ='Res Bill Impact'!T24 -> 73.17270362 | U24: =SUM(Q24:R24)/SUM($Q$22:$R$25) -> 0.3906712057 | V24: =SUM(S24:T24)/SUM($S$22:$T$25) -> 0.4579685613
A25: Winter | B25: Tier 1 | C25: =C22 -> 1.640559146 | D25: 1.640559146 | E25: 1.640559146 | H25: 0 | I25: ='Res Bill Impact'!I25 -> 0 | J25: ='Res Bill Impact'!J25 -> 0 | P25: 0 | Q25: ='Res Bill Impact'!Q25 -> 0 | R25: ='Res Bill Impact'!R25 -> 0 | S25: ='Res Bill Impact'!S25 -> 0 | T25: ='Res Bill Impact'!T25 -> 0 | U25: =SUM(Q25:R25)/SUM($Q$22:$R$25) -> 0 | V25: =SUM(S25:T25)/SUM($S$22:$T$25) -> 0
B26: Tier 2 | C26: 2.132559146 | D26: 2.132559146 | E26: 2.132559146
P27: ='Res Bill Impact'!P27 -> Typical Bundled
P28: ='Res Bill Impact'!P28 -> 2021-2025 Recorded Data - Average Monthly Usage - ALL-BASIC th
B29: SCHEDULE DR [CARE] ($/th) | P29: Climate Zone | Q29: Summer | R29: Winter | S29: Summer | T29: Winter | U29: Population Weight
B30: Rates | C30: =C21 -> 2026-01-01 | D30: =D21 -> 2026-01-01 | E30: Proposed | Q30: Non-CARE | S30: CARE | U30: Non-CARE | V30: CARE
A31: Summer | B31: Tier 1 | C31: 1.284668885 | D31: 1.284668885 | E31: =S7 -> 1.284668885 | P31: =Zones -> 1 | Q31: ='Res Bill Impact'!Q31 -> 22.59132906 | R31: ='Res Bill Impact'!R31 -> 47.38245383 | S31: ='Res Bill Impact'!S31 -> 17.52905798 | T31: ='Res Bill Impact'!T31 -> 34.06667279 | U31: =SUM(Q31:R31)/SUM($Q$31:$R$34) -> 0.2969265948 | V31: =SUM(S31:T31)/SUM($S$31:$T$34) -> 0.2268011005
B32: Tier 2 | C32: 1.678268885 | D32: 1.678268885 | E32: =S9 -> 1.678268885 | P32: 2 | Q32: ='Res Bill Impact'!Q32 -> 19.18689438 | R32: ='Res Bill Impact'!R32 -> 52.84630184 | S32: ='Res Bill Impact'!S32 -> 18.44856514 | T32: ='Res Bill Impact'!T32 -> 49.63336211 | U32: =SUM(Q32:R32)/SUM($Q$31:$R$34) -> 0.3056655048 | V32: =SUM(S32:T32)/SUM($S$31:$T$34) -> 0.2992700325
P33: 3 | Q33: ='Res Bill Impact'!Q33 -> 19.80325997 | R33: ='Res Bill Impact'!R33 -> 73.84996822 | S33: ='Res Bill Impact'!S33 -> 24.3672052 | T33: ='Res Bill Impact'!T33 -> 83.44843671 | U33: 0.3974079004 | V33: 0.4739288671
A34: Winter | B34: Tier 1 | C34: =C31 -> 1.284668885 | D34: 1.284668885 | E34: 1.284668885 | P34: 0 | Q34: ='Res Bill Impact'!Q34 -> 0 | R34: ='Res Bill Impact'!R34 -> 0 | S34: ='Res Bill Impact'!S34 -> 0 | T34: ='Res Bill Impact'!T34 -> 0 | U34: 0 | V34: 0
B35: Tier 2 | C35: 1.678268885 | D35: 1.678268885 | E35: 1.678268885
B39: Note: Bill inserts include CPUC fee in the calculations
C40: 2023 Recorded Average Basic Bundled Non-CARE Customer
C41: =C30 -> 2026-01-01 | E41: =D30 -> 2026-01-01 | G41: =E30 -> Proposed
C42: Summer | D42: Winter | E42: Summer | F42: Winter | G42: Summer | H42: Winter
B43: =Zones -> 1 | C43: =IF($Q22>$I22,C$22*$I22+C$23*($Q22-$I22),$Q22*C$22)+('Hypothetical SAR and RAR'!$B$18*$Q22)+IF(Q22>0,$F$12,0) -> 45.22716115 | D43: =IF($R22>$J22,C$25*$J22+C$26*($R22-$J22),$R22*C$25)+('Hypothetical SAR and RAR'!$B$18*$R22)+IF(R22>0,$F$12,0) -> 76.0100921 | E43: =IF($Q22>$I22,D$22*$I22+D$23*($Q22-$I22),$Q22*D$22)+('Hypothetical SAR and RAR'!$B$18*$Q22)+IF(Q22>0,$F$12,0) -> 45.22716115 | F43: =IF($R22>$J22,D$25*$J22+D$26*($R22-$J22),$R22*D$25)+('Hypothetical SAR and RAR'!$B$18*$R22)+IF(R22>0,$F$12,0) -> 76.0100921 | G43: =IF($Q22>$I22,E$22*$I22+E$23*($Q22-$I22),$Q22*E$22)+('Hypothetical SAR and RAR'!$B$18*$Q22)+IF(Q22>0,$H$12,0) -> 45.22716115 | H43: =IF($R22>$J22,E$25*$J22+E$26*($R22-$J22),$R22*E$25)+('Hypothetical SAR and RAR'!$B$18*$R22)+IF(R22>0,$H$12,0) -> 76.0100921
B44: 2 | C44: =IF($Q23>$I23,C$22*$I23+C$23*($Q23-$I23),$Q23*C$22)+('Hypothetical SAR and RAR'!$B$18*$Q23)+IF(Q23>0,$F$12,0) -> 37.41379645 | D44: =IF($R23>$J23,C$25*$J23+C$26*($R23-$J23),$R23*C$25)+('Hypothetical SAR and RAR'!$B$18*$R23)+IF(R23>0,$F$12,0) -> 81.94889395 | E44: =IF($Q23>$I23,D$22*$I23+D$23*($Q23-$I23),$Q23*D$22)+('Hypothetical SAR and RAR'!$B$18*$Q23)+IF(Q23>0,$F$12,0) -> 37.41379645 | F44: =IF($R23>$J23,D$25*$J23+D$26*($R23-$J23),$R23*D$25)+('Hypothetical SAR and RAR'!$B$18*$R23)+IF(R23>0,$F$12,0) -> 81.94889395 | G44: =IF($Q23>$I23,E$22*$I23+E$23*($Q23-$I23),$Q23*E$22)+('Hypothetical SAR and RAR'!$B$18*$Q23)+IF(Q23>0,$H$12,0) -> 37.41379645 | H44: =IF($R23>$J23,E$25*$J23+E$26*($R23-$J23),$R23*E$25)+('Hypothetical SAR and RAR'!$B$18*$R23)+IF(R23>0,$H$12,0) -> 81.94889395
B45: 3 | C45: =IF($Q24>$I24,C$22*$I24+C$23*($Q24-$I24),$Q24*C$22)+('Hypothetical SAR and RAR'!$B$18*$Q24)+IF(Q24>0,$F$12,0) -> 40.5609367 | D45: =IF($R24>$J24,C$25*$J24+C$26*($R24-$J24),$R24*C$25)+('Hypothetical SAR and RAR'!$B$18*$R24)+IF(R24>0,$F$12,0) -> 107.1815048 | E45: =IF($Q24>$I24,D$22*$I24+D$23*($Q24-$I24),$Q24*D$22)+('Hypothetical SAR and RAR'!$B$18*$Q24)+IF(Q24>0,$F$12,0) -> 40.5609367 | F45: =IF($R24>$J24,D$25*$J24+D$26*($R24-$J24),$R24*D$25)+('Hypothetical SAR and RAR'!$B$18*$R24)+IF(R24>0,$F$12,0) -> 107.1815048 | G45: =IF($Q24>$I24,E$22*$I24+E$23*($Q24-$I24),$Q24*E$22)+('Hypothetical SAR and RAR'!$B$18*$Q24)+IF(Q24>0,$H$12,0) -> 40.5609367 | H45: =IF($R24>$J24,E$25*$J24+E$26*($R24-$J24),$R24*E$25)+('Hypothetical SAR and RAR'!$B$18*$R24)+IF(R24>0,$H$12,0) -> 107.1815048
B46: 0 | C46: =IF($Q25>$I25,C$22*$I25+C$23*($Q25-$I25),$Q25*C$22)+('Hypothetical SAR and RAR'!$B$18*$Q25)+IF(Q25>0,$F$12,0) -> 0 | D46: =IF($R25>$J25,C$25*$J25+C$26*($R25-$J25),$R25*C$25)+('Hypothetical SAR and RAR'!$B$18*$R25)+IF(R25>0,$F$12,0) -> 0 | E46: =IF($Q25>$I25,D$22*$I25+D$23*($Q25-$I25),$Q25*D$22)+('Hypothetical SAR and RAR'!$B$18*$Q25)+IF(Q25>0,$F$12,0) -> 0 | F46: =IF($R25>$J25,D$25*$J25+D$26*($R25-$J25),$R25*D$25)+('Hypothetical SAR and RAR'!$B$18*$R25)+IF(R25>0,$F$12,0) -> 0 | G46: =IF($Q25>$I25,E$22*$I25+E$23*($Q25-$I25),$Q25*E$22)+('Hypothetical SAR and RAR'!$B$18*$Q25)+IF(Q25>0,$H$12,0) -> 0 | H46: =IF($R25>$J25,E$25*$J25+E$26*($R25-$J25),$R25*E$25)+('Hypothetical SAR and RAR'!$B$18*$R25)+IF(R25>0,$H$12,0) -> 0
B47: Total | C47: =SUMPRODUCT(C43:C46,$U$22:$U$25) -> 41.01934983 | D47: =SUMPRODUCT(D43:D46,$U$22:$U$25) -> 90.00054962 | E47: 41.01934983 | F47: 90.00054962 | G47: 41.01934983 | H47: 90.00054962
C50: 2023 Recorded Average Basic Bundled CARE Customer
C51: =C30 -> 2026-01-01 | E51: =D30 -> 2026-01-01 | G51: =E30 -> Proposed
C52: Summer | D52: Winter | E52: Summer | F52: Winter | G52: Summer | H52: Winter
B53: =Zones -> 1 | C53: =IF($S22>$I22,C$31*$I22+C$32*($S22-$I22),$S22*C$31)+('Hypothetical SAR and RAR'!$B$18*$S22)+IF(S22>0,$Q$12,0) -> 29.85789015 | D53: =IF($T22>$J22,C$34*$J22+C$35*($T22-$J22),$T22*C$34)+('Hypothetical SAR and RAR'!$B$18*$T22)+IF(T22>0,$Q$12,0) -> 46.3519166 | E53: =IF($S22>$I22,D$31*$I22+D$32*($S22-$I22),$S22*D$31)+('Hypothetical SAR and RAR'!$B$18*$S22)+IF(S22>0,$Q$12,0) -> 29.85789015 | F53: =IF($T22>$J22,D$34*$J22+D$35*($T22-$J22),$T22*D$34)+('Hypothetical SAR and RAR'!$B$18*$T22)+IF(T22>0,$Q$12,0) -> 46.3519166 | G53: =IF($S22>$I22,E$31*$I22+E$32*($S22-$I22),$S22*E$31)+('Hypothetical SAR and RAR'!$B$18*$S22)+IF(S22>0,$S$12,0) -> 29.85789015 | H53: =IF($T22>$J22,E$34*$J22+E$35*($T22-$J22),$T22*E$34)+('Hypothetical SAR and RAR'!$B$18*$T22)+IF(T22>0,$S$12,0) -> 46.3519166
B54: 2 | C54: =IF($S23>$I23,C$31*$I23+C$32*($S23-$I23),$S23*C$31)+('Hypothetical SAR and RAR'!$B$18*$S23)+IF(S23>0,$Q$12,0) -> 30.97921482 | D54: =IF($T23>$J23,C$34*$J23+C$35*($T23-$J23),$T23*C$34)+('Hypothetical SAR and RAR'!$B$18*$T23)+IF(T23>0,$Q$12,0) -> 65.40294162 | E54: =IF($S23>$I23,D$31*$I23+D$32*($S23-$I23),$S23*D$31)+('Hypothetical SAR and RAR'!$B$18*$S23)+IF(S23>0,$Q$12,0) -> 30.97921482 | F54: =IF($T23>$J23,D$34*$J23+D$35*($T23-$J23),$T23*D$34)+('Hypothetical SAR and RAR'!$B$18*$T23)+IF(T23>0,$Q$12,0) -> 65.40294162 | G54: =IF($S23>$I23,E$31*$I23+E$32*($S23-$I23),$S23*E$31)+('Hypothetical SAR and RAR'!$B$18*$S23)+IF(S23>0,$S$12,0) -> 30.97921482 | H54: =IF($T23>$J23,E$34*$J23+E$35*($T23-$J23),$T23*E$34)+('Hypothetical SAR and RAR'!$B$18*$T23)+IF(T23>0,$S$12,0) -> 65.40294162
B55: 3 | C55: =IF($S24>$I24,C$31*$I24+C$32*($S24-$I24),$S24*C$31)+('Hypothetical SAR and RAR'!$B$18*$S24)+IF(S24>0,$Q$12,0) -> 41.73296078 | D55: =IF($T24>$J24,C$34*$J24+C$35*($T24-$J24),$T24*C$34)+('Hypothetical SAR and RAR'!$B$18*$T24)+IF(T24>0,$Q$12,0) -> 101.4755761 | E55: =IF($S24>$I24,D$31*$I24+D$32*($S24-$I24),$S24*D$31)+('Hypothetical SAR and RAR'!$B$18*$S24)+IF(S24>0,$Q$12,0) -> 41.73296078 | F55: =IF($T24>$J24,D$34*$J24+D$35*($T24-$J24),$T24*D$34)+('Hypothetical SAR and RAR'!$B$18*$T24)+IF(T24>0,$Q$12,0) -> 101.4755761 | G55: =IF($S24>$I24,E$31*$I24+E$32*($S24-$I24),$S24*E$31)+('Hypothetical SAR and RAR'!$B$18*$S24)+IF(S24>0,$S$12,0) -> 41.73296078 | H55: =IF($T24>$J24,E$34*$J24+E$35*($T24-$J24),$T24*E$34)+('Hypothetical SAR and RAR'!$B$18*$T24)+IF(T24>0,$S$12,0) -> 101.4755761
B56: 0 | C56: =IF($S25>$I25,C$31*$I25+C$32*($S25-$I25),$S25*C$31)+('Hypothetical SAR and RAR'!$B$18*$S25)+IF(S25>0,$Q$12,0) -> 0 | D56: =IF($T25>$J25,C$34*$J25+C$35*($T25-$J25),$T25*C$34)+('Hypothetical SAR and RAR'!$B$18*$T25)+IF(T25>0,$Q$12,0) -> 0 | E56: =IF($S25>$I25,D$31*$I25+D$32*($S25-$I25),$S25*D$31)+('Hypothetical SAR and RAR'!$B$18*$S25)+IF(S25>0,$Q$12,0) -> 0 | F56: =IF($T25>$J25,D$34*$J25+D$35*($T25-$J25),$T25*D$34)+('Hypothetical SAR and RAR'!$B$18*$T25)+IF(T25>0,$Q$12,0) -> 0 | G56: =IF($S25>$I25,E$31*$I25+E$32*($S25-$I25),$S25*E$31)+('Hypothetical SAR and RAR'!$B$18*$S25)+IF(S25>0,$S$12,0) -> 0 | H56: =IF($T25>$J25,E$34*$J25+E$35*($T25-$J25),$T25*E$34)+('Hypothetical SAR and RAR'!$B$18*$T25)+IF(T25>0,$S$12,0) -> 0
B57: Total | C57: =SUMPRODUCT(C53:C56,$V$22:$V$25) -> 35.63707343 | D57: =SUMPRODUCT(D53:D56,$V$22:$V$25) -> 77.38648905 | E57: 35.63707343 | F57: 77.38648905 | G57: 35.63707343 | H57: 77.38648905
C60: Essential Usage Basic Bundled Non-CARE Customer
C61: =C51 -> 2026-01-01 | E61: =D30 -> 2026-01-01 | G61: =G51 -> Proposed
C62: Summer | D62: Winter | E62: Summer | F62: Winter | G62: Summer | H62: Winter
B63: =Zones -> 1 | C63: =($C$22*$I22)+('Hypothetical SAR and RAR'!$B$18*$I22)+IF(I22>0,$F$12,0) -> 26.37276889 | D63: =($C$25*$J22)+('Hypothetical SAR and RAR'!$B$18*$J22)+IF(J22>0,$F$12,0) -> 66.3782081 | E63: =($D$22*$I22)+('Hypothetical SAR and RAR'!$B$18*$I22)+IF(I22>0,$F$12,0) -> 26.37276889 | F63: =($D$25*$J22)+('Hypothetical SAR and RAR'!$B$18*$J22)+IF(J22>0,$F$12,0) -> 66.3782081 | G63: =($E$22*$I22)+('Hypothetical SAR and RAR'!$B$18*$I22)+IF(I22>0,$H$12,0) -> 26.37276889 | H63: =($E$25*$J22)+('Hypothetical SAR and RAR'!$B$18*$J22)+IF(J22>0,$H$12,0) -> 66.3782081
B64: 2 | C64: =($C$22*$I23)+('Hypothetical SAR and RAR'!$B$18*$I23)+IF(I23>0,$F$12,0) -> 26.37276889 | D64: =($C$25*$J23)+('Hypothetical SAR and RAR'!$B$18*$J23)+IF(J23>0,$F$12,0) -> 74.32449398 | E64: =($D$22*$I23)+('Hypothetical SAR and RAR'!$B$18*$I23)+IF(I23>0,$F$12,0) -> 26.37276889 | F64: =($D$25*$J23)+('Hypothetical SAR and RAR'!$B$18*$J23)+IF(J23>0,$F$12,0) -> 74.32449398 | G64: =($E$22*$I23)+('Hypothetical SAR and RAR'!$B$18*$I23)+IF(I23>0,$H$12,0) -> 26.37276889 | H64: =($E$25*$J23)+('Hypothetical SAR and RAR'!$B$18*$J23)+IF(J23>0,$H$12,0) -> 74.32449398
B65: 3 | C65: =($C$22*$I24)+('Hypothetical SAR and RAR'!$B$18*$I24)+IF(I24>0,$F$12,0) -> 26.37276889 | D65: =($C$25*$J24)+('Hypothetical SAR and RAR'!$B$18*$J24)+IF(J24>0,$F$12,0) -> 111.8638445 | E65: =($D$22*$I24)+('Hypothetical SAR and RAR'!$B$18*$I24)+IF(I24>0,$F$12,0) -> 26.37276889 | F65: =($D$25*$J24)+('Hypothetical SAR and RAR'!$B$18*$J24)+IF(J24>0,$F$12,0) -> 111.8638445 | G65: =($E$22*$I24)+('Hypothetical SAR and RAR'!$B$18*$I24)+IF(I24>0,$H$12,0) -> 26.37276889 | H65: =($E$25*$J24)+('Hypothetical SAR and RAR'!$B$18*$J24)+IF(J24>0,$H$12,0) -> 111.8638445
B66: 0 | C66: =($C$22*$I25)+('Hypothetical SAR and RAR'!$B$18*$I25)+IF(I25>0,$F$12,0) -> 0 | D66: =($C$25*$J25)+('Hypothetical SAR and RAR'!$B$18*$J25)+IF(J25>0,$F$12,0) -> 0 | E66: =($D$22*$I25)+('Hypothetical SAR and RAR'!$B$18*$I25)+IF(I25>0,$F$12,0) -> 0 | F66: =($D$25*$J25)+('Hypothetical SAR and RAR'!$B$18*$J25)+IF(J25>0,$F$12,0) -> 0 | G66: =($E$22*$I25)+('Hypothetical SAR and RAR'!$B$18*$I25)+IF(I25>0,$H$12,0) -> 0 | H66: =($E$25*$J25)+('Hypothetical SAR and RAR'!$B$18*$J25)+IF(J25>0,$H$12,0) -> 0
B67: Total | C67: =SUMPRODUCT(C63:C66,$U$22:$U$25) -> 26.37276889 | D67: =SUMPRODUCT(D63:D66,$U$22:$U$25) -> 86.57355945 | E67: =SUMPRODUCT(E63:E66,$U$22:$U$25) -> 26.37276889 | F67: 86.57355945 | G67: 26.37276889 | H67: 86.57355945
C70: Essential Usage Basic Bundled CARE Customer
C71: =C51 -> 2026-01-01 | E71: =E61 -> 2026-01-01 | G71: =G61 -> Proposed
C72: Summer | D72: Winter | E72: Summer | F72: Winter | G72: Summer | H72: Winter
B73: =Zones -> 1 | C73: =($C$31*$I22)+('Hypothetical SAR and RAR'!$B$18*$I22)+IF(I22>0,$Q$12,0) -> 20.7461955 | D73: =($C$34*$J22)+('Hypothetical SAR and RAR'!$B$18*$J22)+IF(J22>0,$Q$12,0) -> 52.09163836 | E73: =($D$31*$I22)+('Hypothetical SAR and RAR'!$B$18*$I22)+IF(I22>0,$Q$12,0) -> 20.7461955 | F73: =($D$34*$J22)+('Hypothetical SAR and RAR'!$B$18*$J22)+IF(J22>0,$Q$12,0) -> 52.09163836 | G73: =($E$31*$I22)+('Hypothetical SAR and RAR'!$B$18*$I22)+IF(I22>0,$S$12,0) -> 20.7461955 | H73: =($E$34*$J22)+('Hypothetical SAR and RAR'!$B$18*$J22)+IF(J22>0,$S$12,0) -> 52.09163836
B74: 2 | C74: =($C$31*$I23)+('Hypothetical SAR and RAR'!$B$18*$I23)+IF(I23>0,$Q$12,0) -> 20.7461955 | D74: =($C$34*$J23)+('Hypothetical SAR and RAR'!$B$18*$J23)+IF(J23>0,$Q$12,0) -> 58.31778797 | E74: =($D$31*$I23)+('Hypothetical SAR and RAR'!$B$18*$I23)+IF(I23>0,$Q$12,0) -> 20.7461955 | F74: =($D$34*$J23)+('Hypothetical SAR and RAR'!$B$18*$J23)+IF(J23>0,$Q$12,0) -> 58.31778797 | G74: =($E$31*$I23)+('Hypothetical SAR and RAR'!$B$18*$I23)+IF(I23>0,$S$12,0) -> 20.7461955 | H74: =($E$34*$J23)+('Hypothetical SAR and RAR'!$B$18*$J23)+IF(J23>0,$S$12,0) -> 58.31778797
B75: 3 | C75: =($C$31*$I24)+('Hypothetical SAR and RAR'!$B$18*$I24)+IF(I24>0,$Q$12,0) -> 20.7461955 | D75: =($C$34*$J24)+('Hypothetical SAR and RAR'!$B$18*$J24)+IF(J24>0,$Q$12,0) -> 87.7309775 | E75: =($D$31*$I24)+('Hypothetical SAR and RAR'!$B$18*$I24)+IF(I24>0,$Q$12,0) -> 20.7461955 | F75: =($D$34*$J24)+('Hypothetical SAR and RAR'!$B$18*$J24)+IF(J24>0,$Q$12,0) -> 87.7309775 | G75: =($E$31*$I24)+('Hypothetical SAR and RAR'!$B$18*$I24)+IF(I24>0,$S$12,0) -> 20.7461955 | H75: =($E$34*$J24)+('Hypothetical SAR and RAR'!$B$18*$J24)+IF(J24>0,$S$12,0) -> 87.7309775
B76: 0 | C76: =($C$31*$I25)+('Hypothetical SAR and RAR'!$B$18*$I25)+IF(I25>0,$Q$12,0) -> 0 | D76: =($C$34*$J25)+('Hypothetical SAR and RAR'!$B$18*$J25)+IF(J25>0,$Q$12,0) -> 0 | E76: =($D$31*$I25)+('Hypothetical SAR and RAR'!$B$18*$I25)+IF(I25>0,$Q$12,0) -> 0 | F76: =($D$34*$J25)+('Hypothetical SAR and RAR'!$B$18*$J25)+IF(J25>0,$Q$12,0) -> 0 | G76: =($E$31*$I25)+('Hypothetical SAR and RAR'!$B$18*$I25)+IF(I25>0,$S$12,0) -> 0 | H76: =($E$34*$J25)+('Hypothetical SAR and RAR'!$B$18*$J25)+IF(J25>0,$S$12,0) -> 0
B77: Total | C77: =SUMPRODUCT(C73:C76,$V$22:$V$25) -> 20.7461955 | D77: =SUMPRODUCT(D73:D76,$V$22:$V$25) -> 70.30548265 | E77: 20.7461955 | F77: 70.30548265 | G77: 20.7461955 | H77: 70.30548265
C80: 5-Year Average Monthly Usage Basic Bundled Non-CARE Customer
C81: =C71 -> 2026-01-01 | E81: =E71 -> 2026-01-01 | G81: =G71 -> Proposed
C82: Summer | D82: Winter | E82: Summer | F82: Winter | G82: Summer | H82: Winter
B83: =Zones -> 1 | C83: =IF($Q31>$I22,C$22*$I22+C$23*($Q31-$I22),$Q31*C$22)+('Hypothetical SAR and RAR'!$B$18*$Q31)+IF(Q31>0,$F$12,0) -> 46.86041506 | D83: =IF($R31>$J22,C$25*$J22+C$26*($R31-$J22),$R31*C$25)+('Hypothetical SAR and RAR'!$B$18*$R31)+IF(R31>0,$F$12,0) -> 87.84372385 | E83: =IF($Q31>$I22,D$22*$I22+D$23*($Q31-$I22),$Q31*D$22)+('Hypothetical SAR and RAR'!$B$18*$Q31)+IF(Q31>0,$F$12,0) -> 46.86041506 | F83: =IF($R31>$J22,D$25*$J22+D$26*($R31-$J22),$R31*D$25)+('Hypothetical SAR and RAR'!$B$18*$R31)+IF(R31>0,$F$12,0) -> 87.84372385 | G83: =IF($Q31>$I22,E$22*$I22+E$23*($Q31-$I22),$Q31*E$22)+('Hypothetical SAR and RAR'!$B$18*$Q31)+IF(Q31>0,$H$12,0) -> 46.86041506 | H83: =IF($R31>$J22,E$25*$J22+E$26*($R31-$J22),$R31*E$25)+('Hypothetical SAR and RAR'!$B$18*$R31)+IF(R31>0,$H$12,0) -> 87.84372385
B84: 2 | C84: =IF($Q32>$I23,C$22*$I23+C$23*($Q32-$I23),$Q32*C$22)+('Hypothetical SAR and RAR'!$B$18*$Q32)+IF(Q32>0,$F$12,0) -> 39.58834123 | D84: =IF($R32>$J23,C$25*$J23+C$26*($R32-$J23),$R32*C$25)+('Hypothetical SAR and RAR'!$B$18*$R32)+IF(R32>0,$F$12,0) -> 97.13682636 | E84: =IF($Q32>$I23,D$22*$I23+D$23*($Q32-$I23),$Q32*D$22)+('Hypothetical SAR and RAR'!$B$18*$Q32)+IF(Q32>0,$F$12,0) -> 39.58834123 | F84: =IF($R32>$J23,D$25*$J23+D$26*($R32-$J23),$R32*D$25)+('Hypothetical SAR and RAR'!$B$18*$R32)+IF(R32>0,$F$12,0) -> 97.13682636 | G84: =IF($Q32>$I23,E$22*$I23+E$23*($Q32-$I23),$Q32*E$22)+('Hypothetical SAR and RAR'!$B$18*$Q32)+IF(Q32>0,$H$12,0) -> 39.58834123 | H84: =IF($R32>$J23,E$25*$J23+E$26*($R32-$J23),$R32*E$25)+('Hypothetical SAR and RAR'!$B$18*$R32)+IF(R32>0,$H$12,0) -> 97.13682636
B85: 3 | C85: =IF($Q33>$I24,C$22*$I24+C$23*($Q33-$I24),$Q33*C$22)+('Hypothetical SAR and RAR'!$B$18*$Q33)+IF(Q33>0,$F$12,0) -> 40.90493456 | D85: =IF($R33>$J24,C$25*$J24+C$26*($R33-$J24),$R33*C$25)+('Hypothetical SAR and RAR'!$B$18*$R33)+IF(R33>0,$F$12,0) -> 130.7679 | E85: =IF($Q33>$I24,D$22*$I24+D$23*($Q33-$I24),$Q33*D$22)+('Hypothetical SAR and RAR'!$B$18*$Q33)+IF(Q33>0,$F$12,0) -> 40.90493456 | F85: =IF($R33>$J24,D$25*$J24+D$26*($R33-$J24),$R33*D$25)+('Hypothetical SAR and RAR'!$B$18*$R33)+IF(R33>0,$F$12,0) -> 130.7679 | G85: =IF($Q33>$I24,E$22*$I24+E$23*($Q33-$I24),$Q33*E$22)+('Hypothetical SAR and RAR'!$B$18*$Q33)+IF(Q33>0,$H$12,0) -> 40.90493456 | H85: =IF($R33>$J24,E$25*$J24+E$26*($R33-$J24),$R33*E$25)+('Hypothetical SAR and RAR'!$B$18*$R33)+IF(R33>0,$H$12,0) -> 130.7679
B86: 0 | C86: =IF($Q34>$I25,C$22*$I25+C$23*($Q34-$I25),$Q34*C$22)+('Hypothetical SAR and RAR'!$B$18*$Q34)+IF(Q34>0,$F$12,0) -> 0 | D86: =IF($R34>$J25,C$25*$J25+C$26*($R34-$J25),$R34*C$25)+('Hypothetical SAR and RAR'!$B$18*$R34)+IF(R34>0,$F$12,0) -> 0 | E86: =IF($Q34>$I25,D$22*$I25+D$23*($Q34-$I25),$Q34*D$22)+('Hypothetical SAR and RAR'!$B$18*$Q34)+IF(Q34>0,$F$12,0) -> 0 | F86: =IF($R34>$J25,D$25*$J25+D$26*($R34-$J25),$R34*D$25)+('Hypothetical SAR and RAR'!$B$18*$R34)+IF(R34>0,$F$12,0) -> 0 | G86: =IF($Q34>$I25,E$22*$I25+E$23*($Q34-$I25),$Q34*E$22)+('Hypothetical SAR and RAR'!$B$18*$Q34)+IF(Q34>0,$H$12,0) -> 0 | H86: =IF($R34>$J25,E$25*$J25+E$26*($R34-$J25),$R34*E$25)+('Hypothetical SAR and RAR'!$B$18*$R34)+IF(R34>0,$H$12,0) -> 0
B87: Total | C87: =SUMPRODUCT(C83:C86,$U$22:$U$25) -> 42.31414525 | D87: =SUMPRODUCT(D83:D86,$U$22:$U$25) -> 107.4494716 | E87: 42.31414525 | F87: 107.4494716 | G87: 42.31414525 | H87: 107.4494716
C90: 5-Year Average Monthly Usage Basic Bundled CARE Customer
C91: =C81 -> 2026-01-01 | E91: =E81 -> 2026-01-01 | G91: =G81 -> Proposed
C92: Summer | D92: Winter | E92: Summer | F92: Winter | G92: Summer | H92: Winter
B93: =Zones -> 1 | C93: =IF($S31>$I22,C$31*$I22+C$32*($S31-$I22),$S31*C$31)+('Hypothetical SAR and RAR'!$B$18*$S31)+IF(S31>0,$Q$12,0) -> 28.36302429 | D93: =IF($T31>$J22,C$34*$J22+C$35*($T31-$J22),$T31*C$34)+('Hypothetical SAR and RAR'!$B$18*$T31)+IF(T31>0,$Q$12,0) -> 47.88362789 | E93: =IF($S31>$I22,D$31*$I22+D$32*($S31-$I22),$S31*D$31)+('Hypothetical SAR and RAR'!$B$18*$S31)+IF(S31>0,$Q$12,0) -> 28.36302429 | F93: =IF($T31>$J22,D$34*$J22+D$35*($T31-$J22),$T31*D$34)+('Hypothetical SAR and RAR'!$B$18*$T31)+IF(T31>0,$Q$12,0) -> 47.88362789 | G93: =IF($S31>$I22,E$31*$I22+E$32*($S31-$I22),$S31*E$31)+('Hypothetical SAR and RAR'!$B$18*$S31)+IF(S31>0,$S$12,0) -> 28.36302429 | H93: =IF($T31>$J22,E$34*$J22+E$35*($T31-$J22),$T31*E$34)+('Hypothetical SAR and RAR'!$B$18*$T31)+IF(T31>0,$S$12,0) -> 47.88362789
B94: 2 | C94: =IF($S32>$I23,C$31*$I23+C$32*($S32-$I23),$S32*C$31)+('Hypothetical SAR and RAR'!$B$18*$S32)+IF(S32>0,$Q$12,0) -> 29.90942282 | D94: =IF($T32>$J23,C$34*$J23+C$35*($T32-$J23),$T32*C$34)+('Hypothetical SAR and RAR'!$B$18*$T32)+IF(T32>0,$Q$12,0) -> 70.87504404 | E94: =IF($S32>$I23,D$31*$I23+D$32*($S32-$I23),$S32*D$31)+('Hypothetical SAR and RAR'!$B$18*$S32)+IF(S32>0,$Q$12,0) -> 29.90942282 | F94: =IF($T32>$J23,D$34*$J23+D$35*($T32-$J23),$T32*D$34)+('Hypothetical SAR and RAR'!$B$18*$T32)+IF(T32>0,$Q$12,0) -> 70.87504404 | G94: =IF($S32>$I23,E$31*$I23+E$32*($S32-$I23),$S32*E$31)+('Hypothetical SAR and RAR'!$B$18*$S32)+IF(S32>0,$S$12,0) -> 29.90942282 | H94: =IF($T32>$J23,E$34*$J23+E$35*($T32-$J23),$T32*E$34)+('Hypothetical SAR and RAR'!$B$18*$T32)+IF(T32>0,$S$12,0) -> 70.87504404
B95: 3 | C95: =IF($S33>$I24,C$31*$I24+C$32*($S33-$I24),$S33*C$31)+('Hypothetical SAR and RAR'!$B$18*$S33)+IF(S33>0,$Q$12,0) -> 39.86320751 | D95: =IF($T33>$J24,C$34*$J24+C$35*($T33-$J24),$T33*C$34)+('Hypothetical SAR and RAR'!$B$18*$T33)+IF(T33>0,$Q$12,0) -> 118.7569843 | E95: =IF($S33>$I24,D$31*$I24+D$32*($S33-$I24),$S33*D$31)+('Hypothetical SAR and RAR'!$B$18*$S33)+IF(S33>0,$Q$12,0) -> 39.86320751 | F95: =IF($T33>$J24,D$34*$J24+D$35*($T33-$J24),$T33*D$34)+('Hypothetical SAR and RAR'!$B$18*$T33)+IF(T33>0,$Q$12,0) -> 118.7569843 | G95: =IF($S33>$I24,E$31*$I24+E$32*($S33-$I24),$S33*E$31)+('Hypothetical SAR and RAR'!$B$18*$S33)+IF(S33>0,$S$12,0) -> 39.86320751 | H95: =IF($T33>$J24,E$34*$J24+E$35*($T33-$J24),$T33*E$34)+('Hypothetical SAR and RAR'!$B$18*$T33)+IF(T33>0,$S$12,0) -> 118.7569843
B96: 0 | C96: =IF($S34>$I25,C$31*$I25+C$32*($S34-$I25),$S34*C$31)+('Hypothetical SAR and RAR'!$B$18*$S34)+IF(S34>0,$Q$12,0) -> 0 | D96: =IF($T34>$J25,C$34*$J25+C$35*($T34-$J25),$T34*C$34)+('Hypothetical SAR and RAR'!$B$18*$T34)+IF(T34>0,$Q$12,0) -> 0 | E96: =IF($S34>$I25,D$31*$I25+D$32*($S34-$I25),$S34*D$31)+('Hypothetical SAR and RAR'!$B$18*$S34)+IF(S34>0,$Q$12,0) -> 0 | F96: =IF($T34>$J25,D$34*$J25+D$35*($T34-$J25),$T34*D$34)+('Hypothetical SAR and RAR'!$B$18*$T34)+IF(T34>0,$Q$12,0) -> 0 | G96: =IF($S34>$I25,E$31*$I25+E$32*($S34-$I25),$S34*E$31)+('Hypothetical SAR and RAR'!$B$18*$S34)+IF(S34>0,$S$12,0) -> 0 | H96: =IF($T34>$J25,E$34*$J25+E$35*($T34-$J25),$T34*E$34)+('Hypothetical SAR and RAR'!$B$18*$T34)+IF(T34>0,$S$12,0) -> 0
B97: Total | C97: =SUMPRODUCT(C93:C96,$V$22:$V$25) -> 34.09970227 | D97: =SUMPRODUCT(D93:D96,$V$22:$V$25) -> 87.32856424 | E97: 34.09970227 | F97: 87.32856424 | G97: 34.09970227 | H97: 87.32856424
